Workbook

Sheet Cover Sheet
F4: Tower Hamlets Childhood Immunisations Dashboard
F6: Report designed following the parameters of the Public Health England COVER programme
F8: Contains data on immunisation uptake for children becoming 12m, 24m and 5yrs in the quarter
F10: Patients becoming 12m
F12: DTaP/IPV/Hib/HepB
F13: Men B
F14: PCV
F15: Rotavirus
F18: Patients becoming 24m
F20: DTaP/IPV/Hib/HepB
F21: MMR
F22: HiB/Men C
F23: PCV (Booster)
F24: Men B (Booster)
F25: Patients becoming 5y
F27: DTaP/IPV/Hib
F28: MMR (Primary)
F29: DTaP/IPV (Booster)
F30: MMR (Booster)
F31: HiB/Men C
F33: N.B. Rotavirus not included in performance target
F35: Version tracking
F36: Version 2.8 | G36: - PCV Schedule updated | M36: December 2020
F38: Version 2.7 | G38: - Removed the 5in1 from Patients becoming 12m, now only 6in1 | M38: April 2019
F40: Version 2.6 | G40: - Men B (Booster) included and 5in1 to have to become 6in1 for patients born after 01/08/2017 | M40: April 2018
F42: Version 2.5 | G42: - Men C removed Men B included | M42: May 2017
F44: Version 2.4 | G44: - DTaP/IPV (Booster) (NO LOWER AGE LIMIT) Removed | M44: May 2016
F46: Version 2.3 | G46: - Lower age limit for MMR, HiB/Men C and PCV adjusted to 1 year in line with NHSE guidance | M46: May 2015
F48: Version 2.2 | G48: - Cluster configuration and practice names updated | M48: April 2015
F50: Version 2.1 | G50: - DTaP/IPV/Hib (No lower age limit) added to 5yr cohort | M50: October 2014
F52: Version 2.0 | G52: - Specification and presentation used from CEG report for Tower Hamlets | M52: September 2014

Sheet Network Summary
M2: March 2022
E3: Tower Hamlets Childhood Immunisations Dashboard: Metric Details
E4: Network Summary
Q6: 0.96 | R6: 95% and over | T6: 100% of quarterly performance payment
E7: Coverage | F7: Percentage of target population immunised | Q7: 0.94 | R7: 0.94 | T7: 80% of quarterly performance payment
E8: Activty | F8: Number of patients immunised | Q8: 0.92 | R8: 92% or 93% | T8: 40% of quarterly performance payment
E9: Required | F9: Number of patients requiring immunisation for network to attain 95% coverage | Q9: 0.1 | R9: Less than 92%
I10: NW1 | M10: NW2 | Q10: NW3&4 | U10: NW5 | Y10: NW6 | AC10: NW7 | AG10: NW8
E11: Tower Hamlets Total | H11: The One Network | L11: East End Health Network | P11: Tower Network | T11: Bow Health Network | X11: Mile End East and Bromley by Bow Network | AB11: Poplar and Limehouse Network | AF11: Healthy Island Network
B14: (01) 12 MONTH COHORT | C14: ="Patients becoming 12m within "&'Control Panel'!$B$1 -> Patients becoming 12m within Q3 | F14: =I14+M14+Q14+U14+Y14+AC14+AG14 -> 992 | I14: =SUMIFS(OFFSET(REL_D,,MATCH(B14,IND,0)-1),REL_D,$M$2,IF(LEFT($I$10,1)="N",NwID,OrgID),$I$10) -> 96 | M14: =SUMIFS(OFFSET(REL_D,,MATCH(B14,IND,0)-1),REL_D,$M$2,IF(LEFT($M$10,1)="N",NwID,OrgID),$M$10) -> 90 | Q14: =SUMIFS(OFFSET(REL_D,,MATCH(B14,IND,0)-1),REL_D,$M$2,IF(LEFT($Q$10,1)="N",NwID,OrgID),$Q$10) -> 229 | U14: =SUMIFS(OFFSET(REL_D,,MATCH(B14,IND,0)-1),REL_D,$M$2,IF(LEFT($U$10,1)="N",NwID,OrgID),$U$10) -> 105 | Y14: =SUMIFS(OFFSET(REL_D,,MATCH(B14,IND,0)-1),REL_D,$M$2,IF(LEFT($Y$10,1)="N",NwID,OrgID),$Y$10) -> 167 | AC14: =SUMIFS(OFFSET(REL_D,,MATCH(B14,IND,0)-1),REL_D,$M$2,IF(LEFT($AC$10,1)="N",NwID,OrgID),$AC$10) -> 133 | AG14: =SUMIFS(OFFSET(REL_D,,MATCH(B14,IND,0)-1),REL_D,$M$2,IF(LEFT($AG$10,1)="N",NwID,OrgID),$AG$10) -> 172
E15: Coverage | F15: Activty | H15: Coverage | I15: Activty | J15: Required | L15: Coverage | M15: Activty | N15: Required | P15: Coverage | Q15: Activty | R15: Required | T15: Coverage | U15: Activty | V15: Required | X15: Coverage | Y15: Activty | Z15: Required | AB15: Coverage | AC15: Activty | AD15: Required | AF15: Coverage | AG15: Activty | AH15: Required
B16: (01.01) DTaP/IPV/Hib | C16: DTaP/IPV/Hib/HepB | E16: =IFERROR(F16/F$14,"-") -> 0.8971774194 | F16: =I16+M16+Q16+U16+Y16+AC16+AG16 -> 890 | H16: =IFERROR(I16/I$14,"-") -> 0.8541666667 | I16: =SUMIFS(OFFSET(REL_D,,MATCH(B16,IND,0)-1),REL_D,$M$2,IF(LEFT($I$10,1)="N",NwID,OrgID),$I$10) -> 82 | J16: =IF(AND(I$14*0.95-I16<1,(I$14*0.95-I16>0)),1,IF(I$14*0.95-I16<=0,"",I$14*0.95-I16)) -> 9.2 | L16: =IFERROR(M16/M$14,"-") -> 0.9444444444 | M16: =SUMIFS(OFFSET(REL_D,,MATCH($B16,IND,0)-1),REL_D,$M$2,IF(LEFT($M$10,1)="N",NwID,OrgID),$M$10) -> 85 | N16: =IF(AND(M$14*0.95-M16<1,(M$14*0.95-M16>0)),1,IF(M$14*0.95-M16<=0,"",M$14*0.95-M16)) -> 1 | P16: =IFERROR(Q16/Q$14,"-") -> 0.8820960699 | Q16: =SUMIFS(OFFSET(REL_D,,MATCH($B16,IND,0)-1),REL_D,$M$2,IF(LEFT($Q$10,1)="N",NwID,OrgID),$Q$10) -> 202 | R16: =IF(AND(Q$14*0.95-Q16<1,(Q$14*0.95-Q16>0)),1,IF(Q$14*0.95-Q16<=0,"",Q$14*0.95-Q16)) -> 15.55 | T16: =IFERROR(U16/U$14,"-") -> 0.9238095238 | U16: =SUMIFS(OFFSET(REL_D,,MATCH($B16,IND,0)-1),REL_D,$M$2,IF(LEFT($U$10,1)="N",NwID,OrgID),$U$10) -> 97 | V16: =IF(AND(U$14*0.95-U16<1,(U$14*0.95-U16>0)),1,IF(U$14*0.95-U16<=0,"",U$14*0.95-U16)) -> 2.75 | X16: =IFERROR(Y16/Y$14,"-") -> 0.9041916168 | Y16: =SUMIFS(OFFSET(REL_D,,MATCH($B16,IND,0)-1),REL_D,$M$2,IF(LEFT($Y$10,1)="N",NwID,OrgID),$Y$10) -> 151 | Z16: =IF(AND(Y$14*0.95-Y16<1,(Y$14*0.95-Y16>0)),1,IF(Y$14*0.95-Y16<=0,"",Y$14*0.95-Y16)) -> 7.65 | AB16: =IFERROR(AC16/AC$14,"-") -> 0.8496240602 | AC16: =SUMIFS(OFFSET(REL_D,,MATCH($B16,IND,0)-1),REL_D,$M$2,IF(LEFT($AC$10,1)="N",NwID,OrgID),$AC$10) -> 113 | AD16: =IF(AND(AC$14*0.95-AC16<1,(AC$14*0.95-AC16>0)),1,IF(AC$14*0.95-AC16<=0,"",AC$14*0.95-AC16)) -> 13.35 | AF16: =IFERROR(AG16/AG$14,"-") -> 0.9302325581 | AG16: =SUMIFS(OFFSET(REL_D,,MATCH($B16,IND,0)-1),REL_D,$M$2,IF(LEFT($AG$10,1)="N",NwID,OrgID),$AG$10) -> 160 | AH16: =IF(AND(AG$14*0.95-AG16<1,(AG$14*0.95-AG16>0)),1,IF(AG$14*0.95-AG16<=0,"",AG$14*0.95-AG16)) -> 3.4
B17: (01.02) Men B (1st and 2nd) | C17: Men B | E17: =IFERROR(F17/F$14,"-") -> 0.8921370968 | F17: =I17+M17+Q17+U17+Y17+AC17+AG17 -> 885 | H17: =IFERROR(I17/I$14,"-") -> 0.8645833333 | I17: =SUMIFS(OFFSET(REL_D,,MATCH(B17,IND,0)-1),REL_D,$M$2,IF(LEFT($I$10,1)="N",NwID,OrgID),$I$10) -> 83 | J17: =IF(AND(I$14*0.95-I17<1,(I$14*0.95-I17>0)),1,IF(I$14*0.95-I17<=0,"",I$14*0.95-I17)) -> 8.2 | L17: =IFERROR(M17/M$14,"-") -> 0.9555555556 | M17: =SUMIFS(OFFSET(REL_D,,MATCH($B17,IND,0)-1),REL_D,$M$2,IF(LEFT($M$10,1)="N",NwID,OrgID),$M$10) -> 86 | N17: =IF(AND(M$14*0.95-M17<1,(M$14*0.95-M17>0)),1,IF(M$14*0.95-M17<=0,"",M$14*0.95-M17)) ->  | P17: =IFERROR(Q17/Q$14,"-") -> 0.8689956332 | Q17: =SUMIFS(OFFSET(REL_D,,MATCH($B17,IND,0)-1),REL_D,$M$2,IF(LEFT($Q$10,1)="N",NwID,OrgID),$Q$10) -> 199 | R17: =IF(AND(Q$14*0.95-Q17<1,(Q$14*0.95-Q17>0)),1,IF(Q$14*0.95-Q17<=0,"",Q$14*0.95-Q17)) -> 18.55 | T17: =IFERROR(U17/U$14,"-") -> 0.9333333333 | U17: =SUMIFS(OFFSET(REL_D,,MATCH($B17,IND,0)-1),REL_D,$M$2,IF(LEFT($U$10,1)="N",NwID,OrgID),$U$10) -> 98 | V17: =IF(AND(U$14*0.95-U17<1,(U$14*0.95-U17>0)),1,IF(U$14*0.95-U17<=0,"",U$14*0.95-U17)) -> 1.75 | X17: =IFERROR(Y17/Y$14,"-") -> 0.8982035928 | Y17: =SUMIFS(OFFSET(REL_D,,MATCH($B17,IND,0)-1),REL_D,$M$2,IF(LEFT($Y$10,1)="N",NwID,OrgID),$Y$10) -> 150 | Z17: =IF(AND(Y$14*0.95-Y17<1,(Y$14*0.95-Y17>0)),1,IF(Y$14*0.95-Y17<=0,"",Y$14*0.95-Y17)) -> 8.65 | AB17: =IFERROR(AC17/AC$14,"-") -> 0.8496240602 | AC17: =SUMIFS(OFFSET(REL_D,,MATCH($B17,IND,0)-1),REL_D,$M$2,IF(LEFT($AC$10,1)="N",NwID,OrgID),$AC$10) -> 113 | AD17: =IF(AND(AC$14*0.95-AC17<1,(AC$14*0.95-AC17>0)),1,IF(AC$14*0.95-AC17<=0,"",AC$14*0.95-AC17)) -> 13.35 | AF17: =IFERROR(AG17/AG$14,"-") -> 0.9069767442 | AG17: =SUMIFS(OFFSET(REL_D,,MATCH($B17,IND,0)-1),REL_D,$M$2,IF(LEFT($AG$10,1)="N",NwID,OrgID),$AG$10) -> 156 | AH17: =IF(AND(AG$14*0.95-AG17<1,(AG$14*0.95-AG17>0)),1,IF(AG$14*0.95-AG17<=0,"",AG$14*0.95-AG17)) -> 7.4
B18: (01.03) PCV | C18: PCV | E18: 0.9213709677 | F18: =I18+M18+Q18+U18+Y18+AC18+AG18 -> 914 | H18: 0.90625 | I18: =SUMIFS(OFFSET(REL_D,,MATCH(B18,IND,0)-1),REL_D,$M$2,IF(LEFT($I$10,1)="N",NwID,OrgID),$I$10) -> 87 | J18: 4.2 | L18: 0.9444444444 | M18: =SUMIFS(OFFSET(REL_D,,MATCH($B18,IND,0)-1),REL_D,$M$2,IF(LEFT($M$10,1)="N",NwID,OrgID),$M$10) -> 85 | N18: 1 | P18: 0.903930131 | Q18: =SUMIFS(OFFSET(REL_D,,MATCH($B18,IND,0)-1),REL_D,$M$2,IF(LEFT($Q$10,1)="N",NwID,OrgID),$Q$10) -> 207 | R18: 10.55 | T18: =IFERROR(U18/U$14,"-") -> 0.9333333333 | U18: =SUMIFS(OFFSET(REL_D,,MATCH($B18,IND,0)-1),REL_D,$M$2,IF(LEFT($U$10,1)="N",NwID,OrgID),$U$10) -> 98 | V18: =IF(AND(U$14*0.95-U18<1,(U$14*0.95-U18>0)),1,IF(U$14*0.95-U18<=0,"",U$14*0.95-U18)) -> 1.75 | X18: =IFERROR(Y18/Y$14,"-") -> 0.9341317365 | Y18: =SUMIFS(OFFSET(REL_D,,MATCH($B18,IND,0)-1),REL_D,$M$2,IF(LEFT($Y$10,1)="N",NwID,OrgID),$Y$10) -> 156 | Z18: =IF(AND(Y$14*0.95-Y18<1,(Y$14*0.95-Y18>0)),1,IF(Y$14*0.95-Y18<=0,"",Y$14*0.95-Y18)) -> 2.65 | AB18: =IFERROR(AC18/AC$14,"-") -> 0.8947368421 | AC18: =SUMIFS(OFFSET(REL_D,,MATCH($B18,IND,0)-1),REL_D,$M$2,IF(LEFT($AC$10,1)="N",NwID,OrgID),$AC$10) -> 119 | AD18: =IF(AND(AC$14*0.95-AC18<1,(AC$14*0.95-AC18>0)),1,IF(AC$14*0.95-AC18<=0,"",AC$14*0.95-AC18)) -> 7.35 | AF18: =IFERROR(AG18/AG$14,"-") -> 0.9418604651 | AG18: =SUMIFS(OFFSET(REL_D,,MATCH($B18,IND,0)-1),REL_D,$M$2,IF(LEFT($AG$10,1)="N",NwID,OrgID),$AG$10) -> 162 | AH18: =IF(AND(AG$14*0.95-AG18<1,(AG$14*0.95-AG18>0)),1,IF(AG$14*0.95-AG18<=0,"",AG$14*0.95-AG18)) -> 1.4
B19: (01.04) Rotavirus | C19: Rotavirus | E19: 0.8790322581 | F19: =I19+M19+Q19+U19+Y19+AC19+AG19 -> 872 | H19: 0.84375 | I19: =SUMIFS(OFFSET(REL_D,,MATCH(B19,IND,0)-1),REL_D,$M$2,IF(LEFT($I$10,1)="N",NwID,OrgID),$I$10) -> 81 | J19: 10.2 | L19: 0.9111111111 | M19: =SUMIFS(OFFSET(REL_D,,MATCH($B19,IND,0)-1),REL_D,$M$2,IF(LEFT($M$10,1)="N",NwID,OrgID),$M$10) -> 82 | N19: 3.5 | P19: 0.8820960699 | Q19: =SUMIFS(OFFSET(REL_D,,MATCH($B19,IND,0)-1),REL_D,$M$2,IF(LEFT($Q$10,1)="N",NwID,OrgID),$Q$10) -> 202 | R19: 15.55 | T19: =IFERROR(U19/U$14,"-") -> 0.9142857143 | U19: =SUMIFS(OFFSET(REL_D,,MATCH($B19,IND,0)-1),REL_D,$M$2,IF(LEFT($U$10,1)="N",NwID,OrgID),$U$10) -> 96 | V19: =IF(AND(U$14*0.95-U19<1,(U$14*0.95-U19>0)),1,IF(U$14*0.95-U19<=0,"",U$14*0.95-U19)) -> 3.75 | X19: =IFERROR(Y19/Y$14,"-") -> 0.8862275449 | Y19: =SUMIFS(OFFSET(REL_D,,MATCH($B19,IND,0)-1),REL_D,$M$2,IF(LEFT($Y$10,1)="N",NwID,OrgID),$Y$10) -> 148 | Z19: =IF(AND(Y$14*0.95-Y19<1,(Y$14*0.95-Y19>0)),1,IF(Y$14*0.95-Y19<=0,"",Y$14*0.95-Y19)) -> 10.65 | AB19: =IFERROR(AC19/AC$14,"-") -> 0.7969924812 | AC19: =SUMIFS(OFFSET(REL_D,,MATCH($B19,IND,0)-1),REL_D,$M$2,IF(LEFT($AC$10,1)="N",NwID,OrgID),$AC$10) -> 106 | AD19: =IF(AND(AC$14*0.95-AC19<1,(AC$14*0.95-AC19>0)),1,IF(AC$14*0.95-AC19<=0,"",AC$14*0.95-AC19)) -> 20.35 | AF19: =IFERROR(AG19/AG$14,"-") -> 0.9127906977 | AG19: =SUMIFS(OFFSET(REL_D,,MATCH($B19,IND,0)-1),REL_D,$M$2,IF(LEFT($AG$10,1)="N",NwID,OrgID),$AG$10) -> 157 | AH19: =IF(AND(AG$14*0.95-AG19<1,(AG$14*0.95-AG19>0)),1,IF(AG$14*0.95-AG19<=0,"",AG$14*0.95-AG19)) -> 6.4
B20: (01.05) BCG | C20: BCG | E20: 0.4727822581 | F20: =I20+M20+Q20+U20+Y20+AC20+AG20 -> 469 | H20: 0.3020833333 | I20: =SUMIFS(OFFSET(REL_D,,MATCH(B20,IND,0)-1),REL_D,$M$2,IF(LEFT($I$10,1)="N",NwID,OrgID),$I$10) -> 29 | J20: 62.2 | L20: 0.7222222222 | M20: =SUMIFS(OFFSET(REL_D,,MATCH($B20,IND,0)-1),REL_D,$M$2,IF(LEFT($M$10,1)="N",NwID,OrgID),$M$10) -> 65 | N20: 20.5 | P20: 0.3755458515 | Q20: =SUMIFS(OFFSET(REL_D,,MATCH($B20,IND,0)-1),REL_D,$M$2,IF(LEFT($Q$10,1)="N",NwID,OrgID),$Q$10) -> 86 | R20: 131.55 | T20: =IFERROR(U20/U$14,"-") -> 0.3333333333 | U20: =SUMIFS(OFFSET(REL_D,,MATCH($B20,IND,0)-1),REL_D,$M$2,IF(LEFT($U$10,1)="N",NwID,OrgID),$U$10) -> 35 | V20: =IF(AND(U$14*0.95-U20<1,(U$14*0.95-U20>0)),1,IF(U$14*0.95-U20<=0,"",U$14*0.95-U20)) -> 64.75 | X20: =IFERROR(Y20/Y$14,"-") -> 0.5748502994 | Y20: =SUMIFS(OFFSET(REL_D,,MATCH($B20,IND,0)-1),REL_D,$M$2,IF(LEFT($Y$10,1)="N",NwID,OrgID),$Y$10) -> 96 | Z20: =IF(AND(Y$14*0.95-Y20<1,(Y$14*0.95-Y20>0)),1,IF(Y$14*0.95-Y20<=0,"",Y$14*0.95-Y20)) -> 62.65 | AB20: =IFERROR(AC20/AC$14,"-") -> 0.5112781955 | AC20: =SUMIFS(OFFSET(REL_D,,MATCH($B20,IND,0)-1),REL_D,$M$2,IF(LEFT($AC$10,1)="N",NwID,OrgID),$AC$10) -> 68 | AD20: =IF(AND(AC$14*0.95-AC20<1,(AC$14*0.95-AC20>0)),1,IF(AC$14*0.95-AC20<=0,"",AC$14*0.95-AC20)) -> 58.35 | AF20: =IFERROR(AG20/AG$14,"-") -> 0.523255814 | AG20: =SUMIFS(OFFSET(REL_D,,MATCH($B20,IND,0)-1),REL_D,$M$2,IF(LEFT($AG$10,1)="N",NwID,OrgID),$AG$10) -> 90 | AH20: =IF(AND(AG$14*0.95-AG20<1,(AG$14*0.95-AG20>0)),1,IF(AG$14*0.95-AG20<=0,"",AG$14*0.95-AG20)) -> 73.4
B22: (02) 24 MONTH COHORT | C22: ="Patients becoming 24m within "&'Control Panel'!$B$1 -> Patients becoming 24m within Q3 | F22: =I22+M22+Q22+U22+Y22+AC22+AG22 -> 974 | I22: =SUMIFS(OFFSET(REL_D,,MATCH(B22,IND,0)-1),REL_D,$M$2,IF(LEFT($I$10,1)="N",NwID,OrgID),$I$10) -> 94 | M22: =SUMIFS(OFFSET(REL_D,,MATCH(B22,IND,0)-1),REL_D,$M$2,IF(LEFT($M$10,1)="N",NwID,OrgID),$M$10) -> 90 | Q22: =SUMIFS(OFFSET(REL_D,,MATCH(B22,IND,0)-1),REL_D,$M$2,IF(LEFT($Q$10,1)="N",NwID,OrgID),$Q$10) -> 218 | U22: =SUMIFS(OFFSET(REL_D,,MATCH(B22,IND,0)-1),REL_D,$M$2,IF(LEFT($U$10,1)="N",NwID,OrgID),$U$10) -> 84 | Y22: =SUMIFS(OFFSET(REL_D,,MATCH(B22,IND,0)-1),REL_D,$M$2,IF(LEFT($Y$10,1)="N",NwID,OrgID),$Y$10) -> 167 | AC22: =SUMIFS(OFFSET(REL_D,,MATCH(B22,IND,0)-1),REL_D,$M$2,IF(LEFT($AC$10,1)="N",NwID,OrgID),$AC$10) -> 147 | AG22: =SUMIFS(OFFSET(REL_D,,MATCH(B22,IND,0)-1),REL_D,$M$2,IF(LEFT($AG$10,1)="N",NwID,OrgID),$AG$10) -> 174
E23: Coverage | F23: Activty | H23: Coverage | I23: Activty | J23: Required | L23: Coverage | M23: Activty | N23: Required | P23: Coverage | Q23: Activty | R23: Required | T23: Coverage | U23: Activty | V23: Required | X23: Coverage | Y23: Activty | Z23: Required | AB23: Coverage | AC23: Activty | AD23: Required | AF23: Coverage | AG23: Activty | AH23: Required
B24: (02.01) DTaP/IPV/Hib | C24: DTaP/IPV/Hib/HepB | E24: =IFERROR(F24/F$22,"-") -> 0.9045174538 | F24: =I24+M24+Q24+U24+Y24+AC24+AG24 -> 881 | H24: =IFERROR(I24/I$22,"-") -> 0.9042553191 | I24: =SUMIFS(OFFSET(REL_D,,MATCH(B24,IND,0)-1),REL_D,$M$2,IF(LEFT($I$10,1)="N",NwID,OrgID),$I$10) -> 85 | J24: =IF(AND(I$22*0.95-I24<1,(I$22*0.95-I24>0)),1,IF(I$22*0.95-I24<=0,"",I$22*0.95-I24)) -> 4.3 | L24: =IFERROR(M24/M$22,"-") -> 0.9222222222 | M24: =SUMIFS(OFFSET(REL_D,,MATCH($B24,IND,0)-1),REL_D,$M$2,IF(LEFT($M$10,1)="N",NwID,OrgID),$M$10) -> 83 | N24: =IF(AND(M$22*0.95-M24<1,(M$22*0.95-M24>0)),1,IF(M$22*0.95-M24<=0,"",M$22*0.95-M24)) -> 2.5 | P24: =IFERROR(Q24/Q$22,"-") -> 0.9036697248 | Q24: =SUMIFS(OFFSET(REL_D,,MATCH($B24,IND,0)-1),REL_D,$M$2,IF(LEFT($Q$10,1)="N",NwID,OrgID),$Q$10) -> 197 | R24: =IF(AND(Q$22*0.95-Q24<1,(Q$22*0.95-Q24>0)),1,IF(Q$22*0.95-Q24<=0,"",Q$22*0.95-Q24)) -> 10.1 | T24: =IFERROR(U24/U$22,"-") -> 0.9285714286 | U24: =SUMIFS(OFFSET(REL_D,,MATCH($B24,IND,0)-1),REL_D,$M$2,IF(LEFT($U$10,1)="N",NwID,OrgID),$U$10) -> 78 | V24: =IF(AND(U$22*0.95-U24<1,(U$22*0.95-U24>0)),1,IF(U$22*0.95-U24<=0,"",U$22*0.95-U24)) -> 1.8 | X24: =IFERROR(Y24/Y$22,"-") -> 0.9341317365 | Y24: =SUMIFS(OFFSET(REL_D,,MATCH($B24,IND,0)-1),REL_D,$M$2,IF(LEFT($Y$10,1)="N",NwID,OrgID),$Y$10) -> 156 | Z24: =IF(AND(Y$22*0.95-Y24<1,(Y$22*0.95-Y24>0)),1,IF(Y$22*0.95-Y24<=0,"",Y$22*0.95-Y24)) -> 2.65 | AB24: =IFERROR(AC24/AC$22,"-") -> 0.8639455782 | AC24: =SUMIFS(OFFSET(REL_D,,MATCH($B24,IND,0)-1),REL_D,$M$2,IF(LEFT($AC$10,1)="N",NwID,OrgID),$AC$10) -> 127 | AD24: =IF(AND(AC$22*0.95-AC24<1,(AC$22*0.95-AC24>0)),1,IF(AC$22*0.95-AC24<=0,"",AC$22*0.95-AC24)) -> 12.65 | AF24: =IFERROR(AG24/AG$22,"-") -> 0.8908045977 | AG24: =SUMIFS(OFFSET(REL_D,,MATCH($B24,IND,0)-1),REL_D,$M$2,IF(LEFT($AG$10,1)="N",NwID,OrgID),$AG$10) -> 155 | AH24: =IF(AND(AG$22*0.95-AG24<1,(AG$22*0.95-AG24>0)),1,IF(AG$22*0.95-AG24<=0,"",AG$22*0.95-AG24)) -> 10.3
B25: (02.02) MMR | C25: MMR | E25: =IFERROR(F25/F$22,"-") -> 0.8583162218 | F25: =I25+M25+Q25+U25+Y25+AC25+AG25 -> 836 | H25: =IFERROR(I25/I$22,"-") -> 0.8617021277 | I25: =SUMIFS(OFFSET(REL_D,,MATCH(B25,IND,0)-1),REL_D,$M$2,IF(LEFT($I$10,1)="N",NwID,OrgID),$I$10) -> 81 | J25: =IF(AND(I$22*0.95-I25<1,(I$22*0.95-I25>0)),1,IF(I$22*0.95-I25<=0,"",I$22*0.95-I25)) -> 8.3 | L25: =IFERROR(M25/M$22,"-") -> 0.9 | M25: =SUMIFS(OFFSET(REL_D,,MATCH($B25,IND,0)-1),REL_D,$M$2,IF(LEFT($M$10,1)="N",NwID,OrgID),$M$10) -> 81 | N25: =IF(AND(M$22*0.95-M25<1,(M$22*0.95-M25>0)),1,IF(M$22*0.95-M25<=0,"",M$22*0.95-M25)) -> 4.5 | P25: =IFERROR(Q25/Q$22,"-") -> 0.8394495413 | Q25: =SUMIFS(OFFSET(REL_D,,MATCH($B25,IND,0)-1),REL_D,$M$2,IF(LEFT($Q$10,1)="N",NwID,OrgID),$Q$10) -> 183 | R25: =IF(AND(Q$22*0.95-Q25<1,(Q$22*0.95-Q25>0)),1,IF(Q$22*0.95-Q25<=0,"",Q$22*0.95-Q25)) -> 24.1 | T25: =IFERROR(U25/U$22,"-") -> 0.8571428571 | U25: =SUMIFS(OFFSET(REL_D,,MATCH($B25,IND,0)-1),REL_D,$M$2,IF(LEFT($U$10,1)="N",NwID,OrgID),$U$10) -> 72 | V25: =IF(AND(U$22*0.95-U25<1,(U$22*0.95-U25>0)),1,IF(U$22*0.95-U25<=0,"",U$22*0.95-U25)) -> 7.8 | X25: =IFERROR(Y25/Y$22,"-") -> 0.9161676647 | Y25: =SUMIFS(OFFSET(REL_D,,MATCH($B25,IND,0)-1),REL_D,$M$2,IF(LEFT($Y$10,1)="N",NwID,OrgID),$Y$10) -> 153 | Z25: =IF(AND(Y$22*0.95-Y25<1,(Y$22*0.95-Y25>0)),1,IF(Y$22*0.95-Y25<=0,"",Y$22*0.95-Y25)) -> 5.65 | AB25: =IFERROR(AC25/AC$22,"-") -> 0.843537415 | AC25: =SUMIFS(OFFSET(REL_D,,MATCH($B25,IND,0)-1),REL_D,$M$2,IF(LEFT($AC$10,1)="N",NwID,OrgID),$AC$10) -> 124 | AD25: =IF(AND(AC$22*0.95-AC25<1,(AC$22*0.95-AC25>0)),1,IF(AC$22*0.95-AC25<=0,"",AC$22*0.95-AC25)) -> 15.65 | AF25: =IFERROR(AG25/AG$22,"-") -> 0.816091954 | AG25: =SUMIFS(OFFSET(REL_D,,MATCH($B25,IND,0)-1),REL_D,$M$2,IF(LEFT($AG$10,1)="N",NwID,OrgID),$AG$10) -> 142 | AH25: =IF(AND(AG$22*0.95-AG25<1,(AG$22*0.95-AG25>0)),1,IF(AG$22*0.95-AG25<=0,"",AG$22*0.95-AG25)) -> 23.3
B26: (02.03) HiB/Men C | C26: HiB/Men C | E26: 0.864476386 | F26: =I26+M26+Q26+U26+Y26+AC26+AG26 -> 842 | H26: =IFERROR(I26/I$22,"-") -> 0.8723404255 | I26: =SUMIFS(OFFSET(REL_D,,MATCH(B26,IND,0)-1),REL_D,$M$2,IF(LEFT($I$10,1)="N",NwID,OrgID),$I$10) -> 82 | J26: 7.3 | L26: 0.9111111111 | M26: =SUMIFS(OFFSET(REL_D,,MATCH($B26,IND,0)-1),REL_D,$M$2,IF(LEFT($M$10,1)="N",NwID,OrgID),$M$10) -> 82 | N26: 3.5 | P26: 0.8486238532 | Q26: =SUMIFS(OFFSET(REL_D,,MATCH($B26,IND,0)-1),REL_D,$M$2,IF(LEFT($Q$10,1)="N",NwID,OrgID),$Q$10) -> 185 | R26: 22.1 | T26: =IFERROR(U26/U$22,"-") -> 0.880952381 | U26: =SUMIFS(OFFSET(REL_D,,MATCH($B26,IND,0)-1),REL_D,$M$2,IF(LEFT($U$10,1)="N",NwID,OrgID),$U$10) -> 74 | V26: =IF(AND(U$22*0.95-U26<1,(U$22*0.95-U26>0)),1,IF(U$22*0.95-U26<=0,"",U$22*0.95-U26)) -> 5.8 | X26: =IFERROR(Y26/Y$22,"-") -> 0.9161676647 | Y26: =SUMIFS(OFFSET(REL_D,,MATCH($B26,IND,0)-1),REL_D,$M$2,IF(LEFT($Y$10,1)="N",NwID,OrgID),$Y$10) -> 153 | Z26: =IF(AND(Y$22*0.95-Y26<1,(Y$22*0.95-Y26>0)),1,IF(Y$22*0.95-Y26<=0,"",Y$22*0.95-Y26)) -> 5.65 | AB26: =IFERROR(AC26/AC$22,"-") -> 0.8367346939 | AC26: =SUMIFS(OFFSET(REL_D,,MATCH($B26,IND,0)-1),REL_D,$M$2,IF(LEFT($AC$10,1)="N",NwID,OrgID),$AC$10) -> 123 | AD26: =IF(AND(AC$22*0.95-AC26<1,(AC$22*0.95-AC26>0)),1,IF(AC$22*0.95-AC26<=0,"",AC$22*0.95-AC26)) -> 16.65 | AF26: =IFERROR(AG26/AG$22,"-") -> 0.8218390805 | AG26: =SUMIFS(OFFSET(REL_D,,MATCH($B26,IND,0)-1),REL_D,$M$2,IF(LEFT($AG$10,1)="N",NwID,OrgID),$AG$10) -> 143 | AH26: =IF(AND(AG$22*0.95-AG26<1,(AG$22*0.95-AG26>0)),1,IF(AG$22*0.95-AG26<=0,"",AG$22*0.95-AG26)) -> 22.3
B27: (02.04) PCV (Booster) | C27: PCV (Booster) | E27: 0.863449692 | F27: =I27+M27+Q27+U27+Y27+AC27+AG27 -> 841 | H27: =IFERROR(I27/I$22,"-") -> 0.8829787234 | I27: =SUMIFS(OFFSET(REL_D,,MATCH(B27,IND,0)-1),REL_D,$M$2,IF(LEFT($I$10,1)="N",NwID,OrgID),$I$10) -> 83 | J27: 6.3 | L27: 0.9111111111 | M27: =SUMIFS(OFFSET(REL_D,,MATCH($B27,IND,0)-1),REL_D,$M$2,IF(LEFT($M$10,1)="N",NwID,OrgID),$M$10) -> 82 | N27: 3.5 | P27: 0.8486238532 | Q27: =SUMIFS(OFFSET(REL_D,,MATCH($B27,IND,0)-1),REL_D,$M$2,IF(LEFT($Q$10,1)="N",NwID,OrgID),$Q$10) -> 185 | R27: 22.1 | T27: =IFERROR(U27/U$22,"-") -> 0.880952381 | U27: =SUMIFS(OFFSET(REL_D,,MATCH($B27,IND,0)-1),REL_D,$M$2,IF(LEFT($U$10,1)="N",NwID,OrgID),$U$10) -> 74 | V27: =IF(AND(U$22*0.95-U27<1,(U$22*0.95-U27>0)),1,IF(U$22*0.95-U27<=0,"",U$22*0.95-U27)) -> 5.8 | X27: =IFERROR(Y27/Y$22,"-") -> 0.9161676647 | Y27: =SUMIFS(OFFSET(REL_D,,MATCH($B27,IND,0)-1),REL_D,$M$2,IF(LEFT($Y$10,1)="N",NwID,OrgID),$Y$10) -> 153 | Z27: =IF(AND(Y$22*0.95-Y27<1,(Y$22*0.95-Y27>0)),1,IF(Y$22*0.95-Y27<=0,"",Y$22*0.95-Y27)) -> 5.65 | AB27: =IFERROR(AC27/AC$22,"-") -> 0.8231292517 | AC27: =SUMIFS(OFFSET(REL_D,,MATCH($B27,IND,0)-1),REL_D,$M$2,IF(LEFT($AC$10,1)="N",NwID,OrgID),$AC$10) -> 121 | AD27: =IF(AND(AC$22*0.95-AC27<1,(AC$22*0.95-AC27>0)),1,IF(AC$22*0.95-AC27<=0,"",AC$22*0.95-AC27)) -> 18.65 | AF27: =IFERROR(AG27/AG$22,"-") -> 0.8218390805 | AG27: =SUMIFS(OFFSET(REL_D,,MATCH($B27,IND,0)-1),REL_D,$M$2,IF(LEFT($AG$10,1)="N",NwID,OrgID),$AG$10) -> 143 | AH27: =IF(AND(AG$22*0.95-AG27<1,(AG$22*0.95-AG27>0)),1,IF(AG$22*0.95-AG27<=0,"",AG$22*0.95-AG27)) -> 22.3
B28: (02.05) Men B (Booster) | C28: MenB (Booster) | E28: 0.8613963039 | F28: =I28+M28+Q28+U28+Y28+AC28+AG28 -> 839 | H28: =IFERROR(I28/I$22,"-") -> 0.8829787234 | I28: =SUMIFS(OFFSET(REL_D,,MATCH(B28,IND,0)-1),REL_D,$M$2,IF(LEFT($I$10,1)="N",NwID,OrgID),$I$10) -> 83 | J28: =IF(AND(I$22*0.95-I28<1,(I$22*0.95-I28>0)),1,IF(I$22*0.95-I28<=0,"",I$22*0.95-I28)) -> 6.3 | L28: 0.9111111111 | M28: =SUMIFS(OFFSET(REL_D,,MATCH($B28,IND,0)-1),REL_D,$M$2,IF(LEFT($M$10,1)="N",NwID,OrgID),$M$10) -> 82 | N28: =IF(AND(M$22*0.95-M28<1,(M$22*0.95-M28>0)),1,IF(M$22*0.95-M28<=0,"",M$22*0.95-M28)) -> 3.5 | P28: 0.8394495413 | Q28: =SUMIFS(OFFSET(REL_D,,MATCH($B28,IND,0)-1),REL_D,$M$2,IF(LEFT($Q$10,1)="N",NwID,OrgID),$Q$10) -> 183 | R28: =IF(AND(Q$22*0.95-Q28<1,(Q$22*0.95-Q28>0)),1,IF(Q$22*0.95-Q28<=0,"",Q$22*0.95-Q28)) -> 24.1 | T28: =IFERROR(U28/U$22,"-") -> 0.880952381 | U28: =SUMIFS(OFFSET(REL_D,,MATCH($B28,IND,0)-1),REL_D,$M$2,IF(LEFT($U$10,1)="N",NwID,OrgID),$U$10) -> 74 | V28: =IF(AND(U$22*0.95-U28<1,(U$22*0.95-U28>0)),1,IF(U$22*0.95-U28<=0,"",U$22*0.95-U28)) -> 5.8 | X28: =IFERROR(Y28/Y$22,"-") -> 0.9101796407 | Y28: =SUMIFS(OFFSET(REL_D,,MATCH($B28,IND,0)-1),REL_D,$M$2,IF(LEFT($Y$10,1)="N",NwID,OrgID),$Y$10) -> 152 | Z28: =IF(AND(Y$22*0.95-Y28<1,(Y$22*0.95-Y28>0)),1,IF(Y$22*0.95-Y28<=0,"",Y$22*0.95-Y28)) -> 6.65 | AB28: =IFERROR(AC28/AC$22,"-") -> 0.8299319728 | AC28: =SUMIFS(OFFSET(REL_D,,MATCH($B28,IND,0)-1),REL_D,$M$2,IF(LEFT($AC$10,1)="N",NwID,OrgID),$AC$10) -> 122 | AD28: =IF(AND(AC$22*0.95-AC28<1,(AC$22*0.95-AC28>0)),1,IF(AC$22*0.95-AC28<=0,"",AC$22*0.95-AC28)) -> 17.65 | AF28: =IFERROR(AG28/AG$22,"-") -> 0.8218390805 | AG28: =SUMIFS(OFFSET(REL_D,,MATCH($B28,IND,0)-1),REL_D,$M$2,IF(LEFT($AG$10,1)="N",NwID,OrgID),$AG$10) -> 143 | AH28: =IF(AND(AG$22*0.95-AG28<1,(AG$22*0.95-AG28>0)),1,IF(AG$22*0.95-AG28<=0,"",AG$22*0.95-AG28)) -> 22.3
B30: (03) 5 YEAR COHORT | C30: ="Patients becoming 5y within "&'Control Panel'!$B$1 -> Patients becoming 5y within Q3 | F30: =I30+M30+Q30+U30+Y30+AC30+AG30 -> 936 | I30: =SUMIFS(OFFSET(REL_D,,MATCH(B30,IND,0)-1),REL_D,$M$2,IF(LEFT($I$10,1)="N",NwID,OrgID),$I$10) -> 107 | M30: =SUMIFS(OFFSET(REL_D,,MATCH(B30,IND,0)-1),REL_D,$M$2,IF(LEFT($M$10,1)="N",NwID,OrgID),$M$10) -> 81 | Q30: =SUMIFS(OFFSET(REL_D,,MATCH(B30,IND,0)-1),REL_D,$M$2,IF(LEFT($Q$10,1)="N",NwID,OrgID),$Q$10) -> 197 | U30: =SUMIFS(OFFSET(REL_D,,MATCH(B30,IND,0)-1),REL_D,$M$2,IF(LEFT($U$10,1)="N",NwID,OrgID),$U$10) -> 91 | Y30: =SUMIFS(OFFSET(REL_D,,MATCH(B30,IND,0)-1),REL_D,$M$2,IF(LEFT($Y$10,1)="N",NwID,OrgID),$Y$10) -> 169 | AC30: =SUMIFS(OFFSET(REL_D,,MATCH(B30,IND,0)-1),REL_D,$M$2,IF(LEFT($AC$10,1)="N",NwID,OrgID),$AC$10) -> 133 | AG30: =SUMIFS(OFFSET(REL_D,,MATCH(B30,IND,0)-1),REL_D,$M$2,IF(LEFT($AG$10,1)="N",NwID,OrgID),$AG$10) -> 158
E31: Coverage | F31: Activty | H31: Coverage | I31: Activty | J31: Required | L31: Coverage | M31: Activty | N31: Required | P31: Coverage | Q31: Activty | R31: Required | T31: Coverage | U31: Activty | V31: Required | X31: Coverage | Y31: Activty | Z31: Required | AB31: Coverage | AC31: Activty | AD31: Required | AF31: Coverage | AG31: Activty | AH31: Required
B32: (03.01) DTaP/IPV/Hib | C32: DTaP/IPV/Hib | E32: =IFERROR(F32/F$30,"-") -> 0.9294871795 | F32: =I32+M32+Q32+U32+Y32+AC32+AG32 -> 870 | H32: =IFERROR(I32/I$30,"-") -> 0.9439252336 | I32: =SUMIFS(OFFSET(REL_D,,MATCH(B32,IND,0)-1),REL_D,$M$2,IF(LEFT($I$10,1)="N",NwID,OrgID),$I$10) -> 101 | J32: =IF(AND(I$30*0.95-I32<1,(I$30*0.95-I32>0)),1,IF(I$30*0.95-I32<=0,"",I$30*0.95-I32)) -> 1 | L32: =IFERROR(M32/M$30,"-") -> 0.950617284 | M32: =SUMIFS(OFFSET(REL_D,,MATCH($B32,IND,0)-1),REL_D,$M$2,IF(LEFT($M$10,1)="N",NwID,OrgID),$M$10) -> 77 | N32: =IF(AND(M$30*0.95-M32<1,(M$30*0.95-M32>0)),1,IF(M$30*0.95-M32<=0,"",M$30*0.95-M32)) ->  | P32: =IFERROR(Q32/Q$30,"-") -> 0.923857868 | Q32: =SUMIFS(OFFSET(REL_D,,MATCH($B32,IND,0)-1),REL_D,$M$2,IF(LEFT($Q$10,1)="N",NwID,OrgID),$Q$10) -> 182 | R32: =IF(AND(Q$30*0.95-Q32<1,(Q$30*0.95-Q32>0)),1,IF(Q$30*0.95-Q32<=0,"",Q$30*0.95-Q32)) -> 5.15 | T32: =IFERROR(U32/U$30,"-") -> 0.9120879121 | U32: =SUMIFS(OFFSET(REL_D,,MATCH($B32,IND,0)-1),REL_D,$M$2,IF(LEFT($U$10,1)="N",NwID,OrgID),$U$10) -> 83 | V32: =IF(AND(U$30*0.95-U32<1,(U$30*0.95-U32>0)),1,IF(U$30*0.95-U32<=0,"",U$30*0.95-U32)) -> 3.45 | X32: =IFERROR(Y32/Y$30,"-") -> 0.9408284024 | Y32: =SUMIFS(OFFSET(REL_D,,MATCH($B32,IND,0)-1),REL_D,$M$2,IF(LEFT($Y$10,1)="N",NwID,OrgID),$Y$10) -> 159 | Z32: =IF(AND(Y$30*0.95-Y32<1,(Y$30*0.95-Y32>0)),1,IF(Y$30*0.95-Y32<=0,"",Y$30*0.95-Y32)) -> 1.55 | AB32: =IFERROR(AC32/AC$30,"-") -> 0.9097744361 | AC32: =SUMIFS(OFFSET(REL_D,,MATCH($B32,IND,0)-1),REL_D,$M$2,IF(LEFT($AC$10,1)="N",NwID,OrgID),$AC$10) -> 121 | AD32: =IF(AND(AC$30*0.95-AC32<1,(AC$30*0.95-AC32>0)),1,IF(AC$30*0.95-AC32<=0,"",AC$30*0.95-AC32)) -> 5.35 | AF32: =IFERROR(AG32/AG$30,"-") -> 0.9303797468 | AG32: =SUMIFS(OFFSET(REL_D,,MATCH($B32,IND,0)-1),REL_D,$M$2,IF(LEFT($AG$10,1)="N",NwID,OrgID),$AG$10) -> 147 | AH32: =IF(AND(AG$30*0.95-AG32<1,(AG$30*0.95-AG32>0)),1,IF(AG$30*0.95-AG32<=0,"",AG$30*0.95-AG32)) -> 3.1
B33: (03.02) MMR (Primary) | C33: MMR (Primary) | E33: =IFERROR(F33/F$30,"-") -> 0.8995726496 | F33: =I33+M33+Q33+U33+Y33+AC33+AG33 -> 842 | H33: =IFERROR(I33/I$30,"-") -> 0.8971962617 | I33: =SUMIFS(OFFSET(REL_D,,MATCH(B33,IND,0)-1),REL_D,$M$2,IF(LEFT($I$10,1)="N",NwID,OrgID),$I$10) -> 96 | J33: =IF(AND(I$30*0.95-I33<1,(I$30*0.95-I33>0)),1,IF(I$30*0.95-I33<=0,"",I$30*0.95-I33)) -> 5.65 | L33: =IFERROR(M33/M$30,"-") -> 0.950617284 | M33: =SUMIFS(OFFSET(REL_D,,MATCH($B33,IND,0)-1),REL_D,$M$2,IF(LEFT($M$10,1)="N",NwID,OrgID),$M$10) -> 77 | N33: =IF(AND(M$30*0.95-M33<1,(M$30*0.95-M33>0)),1,IF(M$30*0.95-M33<=0,"",M$30*0.95-M33)) ->  | P33: =IFERROR(Q33/Q$30,"-") -> 0.9035532995 | Q33: =SUMIFS(OFFSET(REL_D,,MATCH($B33,IND,0)-1),REL_D,$M$2,IF(LEFT($Q$10,1)="N",NwID,OrgID),$Q$10) -> 178 | R33: =IF(AND(Q$30*0.95-Q33<1,(Q$30*0.95-Q33>0)),1,IF(Q$30*0.95-Q33<=0,"",Q$30*0.95-Q33)) -> 9.15 | T33: =IFERROR(U33/U$30,"-") -> 0.8681318681 | U33: =SUMIFS(OFFSET(REL_D,,MATCH($B33,IND,0)-1),REL_D,$M$2,IF(LEFT($U$10,1)="N",NwID,OrgID),$U$10) -> 79 | V33: =IF(AND(U$30*0.95-U33<1,(U$30*0.95-U33>0)),1,IF(U$30*0.95-U33<=0,"",U$30*0.95-U33)) -> 7.45 | X33: =IFERROR(Y33/Y$30,"-") -> 0.8816568047 | Y33: =SUMIFS(OFFSET(REL_D,,MATCH($B33,IND,0)-1),REL_D,$M$2,IF(LEFT($Y$10,1)="N",NwID,OrgID),$Y$10) -> 149 | Z33: =IF(AND(Y$30*0.95-Y33<1,(Y$30*0.95-Y33>0)),1,IF(Y$30*0.95-Y33<=0,"",Y$30*0.95-Y33)) -> 11.55 | AB33: =IFERROR(AC33/AC$30,"-") -> 0.8872180451 | AC33: =SUMIFS(OFFSET(REL_D,,MATCH($B33,IND,0)-1),REL_D,$M$2,IF(LEFT($AC$10,1)="N",NwID,OrgID),$AC$10) -> 118 | AD33: =IF(AND(AC$30*0.95-AC33<1,(AC$30*0.95-AC33>0)),1,IF(AC$30*0.95-AC33<=0,"",AC$30*0.95-AC33)) -> 8.35 | AF33: =IFERROR(AG33/AG$30,"-") -> 0.917721519 | AG33: =SUMIFS(OFFSET(REL_D,,MATCH($B33,IND,0)-1),REL_D,$M$2,IF(LEFT($AG$10,1)="N",NwID,OrgID),$AG$10) -> 145 | AH33: =IF(AND(AG$30*0.95-AG33<1,(AG$30*0.95-AG33>0)),1,IF(AG$30*0.95-AG33<=0,"",AG$30*0.95-AG33)) -> 5.1
B34: (03.03) DTaP/IPV (Booster) | C34: DTaP/IPV (Booster) | E34: 0.8162393162 | F34: =I34+M34+Q34+U34+Y34+AC34+AG34 -> 764 | H34: =IFERROR(I34/I$30,"-") -> 0.8785046729 | I34: =SUMIFS(OFFSET(REL_D,,MATCH(B34,IND,0)-1),REL_D,$M$2,IF(LEFT($I$10,1)="N",NwID,OrgID),$I$10) -> 94 | J34: =IF(AND(I$30*0.95-I34<1,(I$30*0.95-I34>0)),1,IF(I$30*0.95-I34<=0,"",I$30*0.95-I34)) -> 7.65 | L34: 0.8641975309 | M34: =SUMIFS(OFFSET(REL_D,,MATCH($B34,IND,0)-1),REL_D,$M$2,IF(LEFT($M$10,1)="N",NwID,OrgID),$M$10) -> 70 | N34: =IF(AND(M$30*0.95-M34<1,(M$30*0.95-M34>0)),1,IF(M$30*0.95-M34<=0,"",M$30*0.95-M34)) -> 6.95 | P34: 0.7614213198 | Q34: =SUMIFS(OFFSET(REL_D,,MATCH($B34,IND,0)-1),REL_D,$M$2,IF(LEFT($Q$10,1)="N",NwID,OrgID),$Q$10) -> 150 | R34: =IF(AND(Q$30*0.95-Q34<1,(Q$30*0.95-Q34>0)),1,IF(Q$30*0.95-Q34<=0,"",Q$30*0.95-Q34)) -> 37.15 | T34: =IFERROR(U34/U$30,"-") -> 0.8351648352 | U34: =SUMIFS(OFFSET(REL_D,,MATCH($B34,IND,0)-1),REL_D,$M$2,IF(LEFT($U$10,1)="N",NwID,OrgID),$U$10) -> 76 | V34: =IF(AND(U$30*0.95-U34<1,(U$30*0.95-U34>0)),1,IF(U$30*0.95-U34<=0,"",U$30*0.95-U34)) -> 10.45 | X34: =IFERROR(Y34/Y$30,"-") -> 0.8520710059 | Y34: =SUMIFS(OFFSET(REL_D,,MATCH($B34,IND,0)-1),REL_D,$M$2,IF(LEFT($Y$10,1)="N",NwID,OrgID),$Y$10) -> 144 | Z34: =IF(AND(Y$30*0.95-Y34<1,(Y$30*0.95-Y34>0)),1,IF(Y$30*0.95-Y34<=0,"",Y$30*0.95-Y34)) -> 16.55 | AB34: =IFERROR(AC34/AC$30,"-") -> 0.7218045113 | AC34: =SUMIFS(OFFSET(REL_D,,MATCH($B34,IND,0)-1),REL_D,$M$2,IF(LEFT($AC$10,1)="N",NwID,OrgID),$AC$10) -> 96 | AD34: =IF(AND(AC$30*0.95-AC34<1,(AC$30*0.95-AC34>0)),1,IF(AC$30*0.95-AC34<=0,"",AC$30*0.95-AC34)) -> 30.35 | AF34: =IFERROR(AG34/AG$30,"-") -> 0.8481012658 | AG34: =SUMIFS(OFFSET(REL_D,,MATCH($B34,IND,0)-1),REL_D,$M$2,IF(LEFT($AG$10,1)="N",NwID,OrgID),$AG$10) -> 134 | AH34: =IF(AND(AG$30*0.95-AG34<1,(AG$30*0.95-AG34>0)),1,IF(AG$30*0.95-AG34<=0,"",AG$30*0.95-AG34)) -> 16.1
B35: (03.05) MMR (Booster) | C35: MMR (Booster) | E35: 0.8215811966 | F35: =I35+M35+Q35+U35+Y35+AC35+AG35 -> 769 | H35: 0.8785046729 | I35: =SUMIFS(OFFSET(REL_D,,MATCH(B35,IND,0)-1),REL_D,$M$2,IF(LEFT($I$10,1)="N",NwID,OrgID),$I$10) -> 94 | J35: 7.65 | L35: 0.8641975309 | M35: =SUMIFS(OFFSET(REL_D,,MATCH($B35,IND,0)-1),REL_D,$M$2,IF(LEFT($M$10,1)="N",NwID,OrgID),$M$10) -> 70 | N35: 6.95 | P35: 0.7868020305 | Q35: =SUMIFS(OFFSET(REL_D,,MATCH($B35,IND,0)-1),REL_D,$M$2,IF(LEFT($Q$10,1)="N",NwID,OrgID),$Q$10) -> 155 | R35: 32.15 | T35: =IFERROR(U35/U$30,"-") -> 0.8351648352 | U35: =SUMIFS(OFFSET(REL_D,,MATCH($B35,IND,0)-1),REL_D,$M$2,IF(LEFT($U$10,1)="N",NwID,OrgID),$U$10) -> 76 | V35: =IF(AND(U$30*0.95-U35<1,(U$30*0.95-U35>0)),1,IF(U$30*0.95-U35<=0,"",U$30*0.95-U35)) -> 10.45 | X35: =IFERROR(Y35/Y$30,"-") -> 0.8461538462 | Y35: =SUMIFS(OFFSET(REL_D,,MATCH($B35,IND,0)-1),REL_D,$M$2,IF(LEFT($Y$10,1)="N",NwID,OrgID),$Y$10) -> 143 | Z35: =IF(AND(Y$30*0.95-Y35<1,(Y$30*0.95-Y35>0)),1,IF(Y$30*0.95-Y35<=0,"",Y$30*0.95-Y35)) -> 17.55 | AB35: =IFERROR(AC35/AC$30,"-") -> 0.7218045113 | AC35: =SUMIFS(OFFSET(REL_D,,MATCH($B35,IND,0)-1),REL_D,$M$2,IF(LEFT($AC$10,1)="N",NwID,OrgID),$AC$10) -> 96 | AD35: =IF(AND(AC$30*0.95-AC35<1,(AC$30*0.95-AC35>0)),1,IF(AC$30*0.95-AC35<=0,"",AC$30*0.95-AC35)) -> 30.35 | AF35: =IFERROR(AG35/AG$30,"-") -> 0.8544303797 | AG35: =SUMIFS(OFFSET(REL_D,,MATCH($B35,IND,0)-1),REL_D,$M$2,IF(LEFT($AG$10,1)="N",NwID,OrgID),$AG$10) -> 135 | AH35: =IF(AND(AG$30*0.95-AG35<1,(AG$30*0.95-AG35>0)),1,IF(AG$30*0.95-AG35<=0,"",AG$30*0.95-AG35)) -> 15.1
B36: (03.04) HiB/Men C | C36: HiB/Men C | E36: 0.905982906 | F36: =I36+M36+Q36+U36+Y36+AC36+AG36 -> 848 | H36: 0.9065420561 | I36: =SUMIFS(OFFSET(REL_D,,MATCH(B36,IND,0)-1),REL_D,$M$2,IF(LEFT($I$10,1)="N",NwID,OrgID),$I$10) -> 97 | J36: 4.65 | L36: 0.9259259259 | M36: =SUMIFS(OFFSET(REL_D,,MATCH($B36,IND,0)-1),REL_D,$M$2,IF(LEFT($M$10,1)="N",NwID,OrgID),$M$10) -> 75 | N36: 1.95 | P36: 0.8984771574 | Q36: =SUMIFS(OFFSET(REL_D,,MATCH($B36,IND,0)-1),REL_D,$M$2,IF(LEFT($Q$10,1)="N",NwID,OrgID),$Q$10) -> 177 | R36: 10.15 | T36: =IFERROR(U36/U$30,"-") -> 0.8901098901 | U36: =SUMIFS(OFFSET(REL_D,,MATCH($B36,IND,0)-1),REL_D,$M$2,IF(LEFT($U$10,1)="N",NwID,OrgID),$U$10) -> 81 | V36: =IF(AND(U$30*0.95-U36<1,(U$30*0.95-U36>0)),1,IF(U$30*0.95-U36<=0,"",U$30*0.95-U36)) -> 5.45 | X36: =IFERROR(Y36/Y$30,"-") -> 0.9230769231 | Y36: =SUMIFS(OFFSET(REL_D,,MATCH($B36,IND,0)-1),REL_D,$M$2,IF(LEFT($Y$10,1)="N",NwID,OrgID),$Y$10) -> 156 | Z36: =IF(AND(Y$30*0.95-Y36<1,(Y$30*0.95-Y36>0)),1,IF(Y$30*0.95-Y36<=0,"",Y$30*0.95-Y36)) -> 4.55 | AB36: =IFERROR(AC36/AC$30,"-") -> 0.8646616541 | AC36: =SUMIFS(OFFSET(REL_D,,MATCH($B36,IND,0)-1),REL_D,$M$2,IF(LEFT($AC$10,1)="N",NwID,OrgID),$AC$10) -> 115 | AD36: =IF(AND(AC$30*0.95-AC36<1,(AC$30*0.95-AC36>0)),1,IF(AC$30*0.95-AC36<=0,"",AC$30*0.95-AC36)) -> 11.35 | AF36: =IFERROR(AG36/AG$30,"-") -> 0.9303797468 | AG36: =SUMIFS(OFFSET(REL_D,,MATCH($B36,IND,0)-1),REL_D,$M$2,IF(LEFT($AG$10,1)="N",NwID,OrgID),$AG$10) -> 147 | AH36: =IF(AND(AG$30*0.95-AG36<1,(AG$30*0.95-AG36>0)),1,IF(AG$30*0.95-AG36<=0,"",AG$30*0.95-AG36)) -> 3.1

Sheet Patients becoming 12m
D2: Tower Hamlets Childhood Immunisations Dashboard: Metric Details
D3: Patients becoming 12m | F3: =E15 -> 992
C5: March 2022 | D5: All Patients | E5: (01) 12 MONTH COHORT | F5: (01.01) DTaP/IPV/Hib | G5: DTaP/IPV/Hib(%) | H5: Patients required to achieve CCG Target (95%) | I5: (01.02) Men B (1st and 2nd) | J5: Men B(%) | K5: Patients required to achieve CCG Target (95%) | L5: (01.03) PCV | M5: PCV(%) | N5: Patients required to achieve CCG Target (95%) | O5: (01.04) Rotavirus | P5: Rotavirus(%)
B6: Home | D6: Listsize | E6: Patients becoming 12m | F6: DTaP/IPV/Hib/HepB | G6: DTaP/IPV/Hib/HepB(%) | H6: Patients required to achieve CCG Target (95%) | I6: Men B | J6: Men B(%) | K6: Patients required to achieve CCG Target (95%) | L6: PCV | M6: PCV(%) | N6: Patients required to achieve CCG Target (95%) | O6: Rotavirus | P6: Rotavirus(%)
A7: Cluster
A8: ='Control Panel'!A3 -> NW1 | B8: ='Control Panel'!B3 -> The One Network | D8: =SUM(IF($A8=$A$19:$A$50,D$19:D$50)) -> 49033 | E8: =SUM(IF($A8=$A$19:$A$50,E$19:E$50)) -> 96 | F8: =SUM(IF($A8=$A$19:$A$50,F$19:F$50)) -> 82 | G8: =IF(OR(ISTEXT($E8),$E8=0),"N/A",F8/$E8) -> 0.8541666667 | I8: =SUM(IF($A8=$A$19:$A$50,I$19:I$50)) -> 83 | J8: =IF(OR(ISTEXT($E8),$E8=0),"N/A",I8/$E8) -> 0.8645833333 | L8: =SUM(IF($A8=$A$19:$A$50,L$19:L$50)) -> 87 | M8: =IF(OR(ISTEXT($E8),$E8=0),"N/A",L8/$E8) -> 0.90625 | O8: =SUM(IF($A8=$A$19:$A$50,O$19:O$50)) -> 81 | P8: =IF(OR(ISTEXT($E8),$E8=0),"N/A",O8/$E8) -> 0.84375
A9: ='Control Panel'!A4 -> NW2 | B9: ='Control Panel'!B4 -> East End Health Network | D9: =SUM(IF($A9=$A$19:$A$50,D$19:D$50)) -> 40368 | E9: =SUM(IF($A9=$A$19:$A$50,E$19:E$50)) -> 90 | F9: =SUM(IF($A9=$A$19:$A$50,F$19:F$50)) -> 85 | G9: =IF(OR(ISTEXT($E9),$E9=0),"N/A",F9/$E9) -> 0.9444444444 | I9: =SUM(IF($A9=$A$19:$A$50,I$19:I$50)) -> 86 | J9: =IF(OR(ISTEXT($E9),$E9=0),"N/A",I9/$E9) -> 0.9555555556 | L9: =SUM(IF($A9=$A$19:$A$50,L$19:L$50)) -> 85 | M9: =IF(OR(ISTEXT($E9),$E9=0),"N/A",L9/$E9) -> 0.9444444444 | O9: =SUM(IF($A9=$A$19:$A$50,O$19:O$50)) -> 82 | P9: =IF(OR(ISTEXT($E9),$E9=0),"N/A",O9/$E9) -> 0.9111111111
A10: ='Control Panel'!A5 -> NW3&4 | B10: ='Control Panel'!B5 -> Tower Network | D10: =SUM(IF($A10=$A$19:$A$50,D$19:D$50)) -> 79369 | E10: =SUM(IF($A10=$A$19:$A$50,E$19:E$50)) -> 229 | F10: =SUM(IF($A10=$A$19:$A$50,F$19:F$50)) -> 202 | G10: 0.8820960699 | I10: =SUM(IF($A10=$A$19:$A$50,I$19:I$50)) -> 199 | J10: 0.8689956332 | L10: =SUM(IF($A10=$A$19:$A$50,L$19:L$50)) -> 207 | M10: 0.903930131 | O10: =SUM(IF($A10=$A$19:$A$50,O$19:O$50)) -> 202 | P10: 0.8820960699
A11: ='Control Panel'!A6 -> NW5 | B11: ='Control Panel'!B6 -> Bow Health Network | D11: =SUM(IF($A11=$A$19:$A$50,D$19:D$50)) -> 35730 | E11: =SUM(IF($A11=$A$19:$A$50,E$19:E$50)) -> 105 | F11: =SUM(IF($A11=$A$19:$A$50,F$19:F$50)) -> 97 | G11: 0.9238095238 | I11: =SUM(IF($A11=$A$19:$A$50,I$19:I$50)) -> 98 | J11: 0.9333333333 | L11: =SUM(IF($A11=$A$19:$A$50,L$19:L$50)) -> 98 | M11: 0.9333333333 | O11: =SUM(IF($A11=$A$19:$A$50,O$19:O$50)) -> 96 | P11: 0.9142857143
A12: ='Control Panel'!A7 -> NW6 | B12: ='Control Panel'!B7 -> Mile End East and Bromley by Bow Network | D12: =SUM(IF($A12=$A$19:$A$50,D$19:D$50)) -> 59327 | E12: =SUM(IF($A12=$A$19:$A$50,E$19:E$50)) -> 167 | F12: =SUM(IF($A12=$A$19:$A$50,F$19:F$50)) -> 151 | G12: 0.9041916168 | I12: =SUM(IF($A12=$A$19:$A$50,I$19:I$50)) -> 150 | J12: 0.8982035928 | L12: =SUM(IF($A12=$A$19:$A$50,L$19:L$50)) -> 156 | M12: 0.9341317365 | O12: =SUM(IF($A12=$A$19:$A$50,O$19:O$50)) -> 148 | P12: 0.8862275449
A13: ='Control Panel'!A8 -> NW7 | B13: ='Control Panel'!B8 -> Poplar and Limehouse Network | D13: =SUM(IF($A13=$A$19:$A$50,D$19:D$50)) -> 50962 | E13: =SUM(IF($A13=$A$19:$A$50,E$19:E$50)) -> 133 | F13: =SUM(IF($A13=$A$19:$A$50,F$19:F$50)) -> 113 | G13: 0.8496240602 | I13: =SUM(IF($A13=$A$19:$A$50,I$19:I$50)) -> 113 | J13: 0.8496240602 | L13: =SUM(IF($A13=$A$19:$A$50,L$19:L$50)) -> 119 | M13: 0.8947368421 | O13: =SUM(IF($A13=$A$19:$A$50,O$19:O$50)) -> 106 | P13: 0.7969924812
A14: ='Control Panel'!A9 -> NW8 | B14: ='Control Panel'!B9 -> Healthy Island Network | D14: =SUM(IF($A14=$A$19:$A$50,D$19:D$50)) -> 62657 | E14: =SUM(IF($A14=$A$19:$A$50,E$19:E$50)) -> 172 | F14: =SUM(IF($A14=$A$19:$A$50,F$19:F$50)) -> 160 | G14: 0.9302325581 | I14: =SUM(IF($A14=$A$19:$A$50,I$19:I$50)) -> 156 | J14: 0.9069767442 | L14: =SUM(IF($A14=$A$19:$A$50,L$19:L$50)) -> 162 | M14: 0.9418604651 | O14: =SUM(IF($A14=$A$19:$A$50,O$19:O$50)) -> 157 | P14: 0.9127906977
A15: Total | D15: =SUM(D8:D14) -> 377446 | E15: =SUM(E8:E14) -> 992 | F15: =SUM(F8:F14) -> 890 | G15: 0.8971774194 | I15: =SUM(I8:I14) -> 885 | J15: 0.8921370968 | L15: =SUM(L8:L14) -> 914 | M15: 0.9213709677 | O15: =SUM(O8:O14) -> 872 | P15: 0.8790322581
A16: Minimum and Maximum % | F16: Min | G16: Max | I16: Min | J16: Max | L16: Min | M16: Max | O16: Min | P16: Max
F17: =SMALL(G19:G50,COUNTIF(G19:G50,0)+1) -> 0.8181818182 | G17: =MAX(G19:G50) -> 1 | I17: =SMALL(J19:J50,COUNTIF(J19:J50,0)+1) -> 0.8058252427 | J17: =MAX(J19:J50) -> 1 | L17: =SMALL(M19:M50,COUNTIF(M19:M50,0)+1) -> 0.8484848485 | M17: =MAX(M19:M50) -> 1 | O17: =SMALL(P19:P50,COUNTIF(P19:P50,0)+1) -> 0.6666666667 | P17: =MAX(P19:P50) -> 1
A18: Practices
A19: ='Control Panel'!A12 -> NW1 | B19: ='Control Panel'!B12 -> Bethnal Green Health Centre | C19: ='Control Panel'!C12 -> F84083 | D19: =SUMIFS(OFFSET(REL_D,,MATCH($D$5,IND,0)-1),REL_D,$C$5,OrgID,$C19) -> 9766 | E19: =SUMIFS(OFFSET(REL_D,,MATCH($E$5,IND,0)-1),REL_D,$C$5,OrgID,$C19) -> 20 | F19: =SUMIFS(OFFSET(REL_D,,MATCH($F$5,IND,0)-1),REL_D,$C$5,OrgID,$C19) -> 17 | G19: =IF(OR(ISTEXT($E19),$E19=0),"N/A",F19/$E19) -> 0.85 | H19: =IFERROR(ROUNDUP(IF($E19*0.95-F19>=0,$E19*0.95-F19,""),0),"") -> 2 | I19: =SUMIFS(OFFSET(REL_D,,MATCH($I$5,IND,0)-1),REL_D,$C$5,OrgID,$C19) -> 17 | J19: =IF(OR(ISTEXT($E19),$E19=0),"N/A",I19/$E19) -> 0.85 | K19: =IFERROR(ROUNDUP(IF($E19*0.95-I19>=0,$E19*0.95-I19,""),0),"") -> 2 | L19: =SUMIFS(OFFSET(REL_D,,MATCH($L$5,IND,0)-1),REL_D,$C$5,OrgID,$C19) -> 18 | M19: =IF(OR(ISTEXT($E19),$E19=0),"N/A",L19/$E19) -> 0.9 | N19: =IFERROR(ROUNDUP(IF($E19*0.95-L19>=0,$E19*0.95-L19,""),0),"") -> 1 | O19: =SUMIFS(OFFSET(REL_D,,MATCH($O$5,IND,0)-1),REL_D,$C$5,OrgID,$C19) -> 17 | P19: =IF(OR(ISTEXT($E19),$E19=0),"N/A",O19/$E19) -> 0.85
A20: ='Control Panel'!A13 -> NW1 | B20: ='Control Panel'!B13 -> The Mission Practice | C20: ='Control Panel'!C13 -> F84016 | D20: 12618 | E20: 25 | F20: 22 | G20: 0.88 | H20: 2 | I20: 22 | J20: 0.88 | K20: 2 | L20: 23 | M20: 0.92 | N20: 1 | O20: 23 | P20: =IF(OR(ISTEXT($E20),$E20=0),"N/A",O20/$E20) -> 0.92
A21: ='Control Panel'!A14 -> NW1 | B21: ='Control Panel'!B14 -> Globe Town Surgery | C21: ='Control Panel'!C14 -> F84123 | D21: 18056 | E21: 33 | F21: 27 | G21: 0.8181818182 | H21: 5 | I21: 28 | J21: 0.8484848485 | K21: 4 | L21: 29 | M21: 0.8787878788 | N21: 3 | O21: 27 | P21: 0.8181818182
A22: ='Control Panel'!A16 -> NW1 | B22: ='Control Panel'!B16 -> Strouts Place Medical Centre | C22: ='Control Panel'!C16 -> F84051 | D22: 8593 | E22: 18 | F22: 16 | G22: 0.8888888889 | H22: 2 | I22: 16 | J22: 0.8888888889 | K22: 2 | L22: 17 | M22: 0.9444444444 | N22: 1 | O22: 14 | P22: 0.7777777778
A23: ='Control Panel'!A17 -> NW2 | B23: ='Control Panel'!B17 -> Spitalfields Practice | C23: ='Control Panel'!C17 -> F84081 | D23: 14828 | E23: 25 | F23: 22 | G23: =IF(OR(ISTEXT($E23),$E23=0),"N/A",F23/$E23) -> 0.88 | H23: 2 | I23: 23 | J23: =IF(OR(ISTEXT($E23),$E23=0),"N/A",I23/$E23) -> 0.92 | K23: 1 | L23: 22 | M23: =IF(OR(ISTEXT($E23),$E23=0),"N/A",L23/$E23) -> 0.88 | N23: 2 | O23: 21 | P23: =IF(OR(ISTEXT($E23),$E23=0),"N/A",O23/$E23) -> 0.84
A24: ='Control Panel'!A18 -> NW2 | B24: ='Control Panel'!B18 -> Blithehale Medical Centre | C24: ='Control Panel'!C18 -> F84718 | D24: 14732 | E24: 36 | F24: 35 | G24: 0.9722222222 | I24: 35 | J24: 0.9722222222 | L24: 36 | M24: 1 | O24: 35 | P24: 0.9722222222
A25: ='Control Panel'!A19 -> NW2 | B25: ='Control Panel'!B19 -> Health E1 | C25: ='Control Panel'!C19 -> F84733 | D25: 1109 | E25: 0 | F25: 0 | G25: N/A | H25: 0 | I25: 0 | J25: N/A | K25: 0 | L25: 0 | M25: N/A | N25: 0 | O25: 0 | P25: N/A
A26: ='Control Panel'!A20 -> NW2 | B26: ='Control Panel'!B20 -> Albion Health Centre | C26: ='Control Panel'!C20 -> F84012 | D26: 9699 | E26: 29 | F26: 28 | G26: =IF(OR(ISTEXT($E26),$E26=0),"N/A",F26/$E26) -> 0.9655172414 | I26: 28 | J26: 0.9655172414 | L26: 27 | M26: 0.9310344828 | N26: 1 | O26: 26 | P26: 0.8965517241
A27: ='Control Panel'!A21 -> NW3&4 | B27: ='Control Panel'!B21 -> Harford Health Centre | C27: ='Control Panel'!C21 -> F84087 | D27: 9781 | E27: 33 | F27: 31 | G27: 0.9393939394 | H27: 1 | I27: 31 | J27: 0.9393939394 | K27: 1 | L27: 32 | M27: 0.9696969697 | O27: 31 | P27: 0.9393939394
A28: ='Control Panel'!A23 -> NW3&4 | B28: ='Control Panel'!B23 -> Goodman’s Field Health Centre | C28: ='Control Panel'!C23 -> F84039 | D28: 29370 | E28: 103 | F28: 85 | G28: 0.8252427184 | H28: 13 | I28: 83 | J28: 0.8058252427 | K28: 15 | L28: 88 | M28: 0.854368932 | N28: 10 | O28: 84 | P28: 0.8155339806
A29: ='Control Panel'!A24 -> NW3&4 | B29: ='Control Panel'!B24 -> City Wellbeing Practice (Tower Medical) | C29: ='Control Panel'!C24 -> F84114 | D29: 12178 | E29: 32 | F29: 28 | G29: 0.875 | H29: 3 | I29: 27 | J29: 0.84375 | K29: 4 | L29: 29 | M29: 0.90625 | N29: 2 | O29: 29 | P29: 0.90625
A30: ='Control Panel'!A25 -> NW3&4 | B30: ='Control Panel'!B25 -> Wapping Group Practice | C30: ='Control Panel'!C25 -> F84079 | D30: 11843 | E30: 19 | F30: 19 | G30: 1 | I30: 19 | J30: 1 | L30: 19 | M30: 1 | O30: 19 | P30: 1
A31: ='Control Panel'!A26 -> NW3&4 | B31: ='Control Panel'!B26 -> Jubilee Street Practice | C31: ='Control Panel'!C26 -> F84031 | D31: 14178 | E31: 39 | F31: 36 | G31: 0.9230769231 | H31: 2 | I31: 36 | J31: 0.9230769231 | K31: 2 | L31: 36 | M31: 0.9230769231 | N31: 2 | O31: 36 | P31: 0.9230769231
A32: ='Control Panel'!A27 -> NW3&4 | B32: ='Control Panel'!B27 -> St Katharine Docks Practice | C32: ='Control Panel'!C27 -> F84731 | D32: 2019 | E32: 3 | F32: 3 | G32: 1 | I32: 3 | J32: 1 | L32: 3 | M32: 1 | O32: 3 | P32: 1
A33: ='Control Panel'!A29 -> NW5 | B33: ='Control Panel'!B29 -> Harley Grove Medical Centre | C33: ='Control Panel'!C29 -> F84044 | D33: 8063 | E33: 23 | F33: 21 | G33: 0.9130434783 | H33: 1 | I33: 21 | J33: 0.9130434783 | K33: 1 | L33: 21 | M33: 0.9130434783 | N33: 1 | O33: 21 | P33: 0.9130434783
A34: ='Control Panel'!A30 -> NW5 | B34: ='Control Panel'!B30 -> St Stephens Health Centre | C34: ='Control Panel'!C30 -> F84034 | D34: 13458 | E34: 43 | F34: 40 | G34: 0.9302325581 | H34: 1 | I34: 40 | J34: 0.9302325581 | K34: 1 | L34: 40 | M34: 0.9302325581 | N34: 1 | O34: 38 | P34: 0.8837209302
A35: ='Control Panel'!A31 -> NW5 | B35: ='Control Panel'!B31 -> Ruston Street Clinic (Dr Amin) | C35: ='Control Panel'!C31 -> F84030 | D35: 3818 | E35: 13 | F35: 11 | G35: 0.8461538462 | H35: 2 | I35: 12 | J35: 0.9230769231 | K35: 1 | L35: 12 | M35: 0.9230769231 | N35: 1 | O35: 12 | P35: 0.9230769231
A36: ='Control Panel'!A32 -> NW5 | B36: ='Control Panel'!B32 -> Grove Road Surgery (Dr Shah) | C36: ='Control Panel'!C32 -> F84055 | D36: 4204 | E36: 8 | F36: 7 | G36: 0.875 | H36: 1 | I36: 7 | J36: 0.875 | K36: 1 | L36: 7 | M36: 0.875 | N36: 1 | O36: 7 | P36: 0.875
A37: ='Control Panel'!A33 -> NW5 | B37: ='Control Panel'!B33 -> The Tredegar Practice | C37: ='Control Panel'!C33 -> F84696 | D37: 6187 | E37: 18 | F37: 18 | G37: 1 | I37: 18 | J37: 1 | L37: 18 | M37: 1 | O37: 18 | P37: 1
A38: ='Control Panel'!A34 -> NW6 | B38: ='Control Panel'!B34 -> Stroudley Walk Centre | C38: ='Control Panel'!C34 -> F84676 | D38: 4223 | E38: 11 | F38: 10 | G38: 0.9090909091 | H38: 1 | I38: 10 | J38: 0.9090909091 | K38: 1 | L38: 11 | M38: 1 | O38: 9 | P38: 0.8181818182
A39: ='Control Panel'!A35 -> NW6 | B39: ='Control Panel'!B35 -> St Andrews Health Centre | C39: ='Control Panel'!C35 -> Y03023 | D39: 15467 | E39: 50 | F39: 43 | G39: 0.86 | H39: 5 | I39: 43 | J39: 0.86 | K39: 5 | L39: 44 | M39: 0.88 | N39: 4 | O39: 43 | P39: 0.86
A40: ='Control Panel'!A36 -> NW6 | B40: ='Control Panel'!B36 -> Merchant Street (Dr Rana) | C40: ='Control Panel'!C36 -> F84118 | D40: 6097 | E40: 13 | F40: 12 | G40: 0.9230769231 | H40: 1 | I40: 12 | J40: 0.9230769231 | K40: 1 | L40: 13 | M40: 1 | O40: 12 | P40: 0.9230769231
A41: ='Control Panel'!A37 -> NW6 | B41: ='Control Panel'!B37 -> St Pauls Way Medical Centre | C41: ='Control Panel'!C37 -> F84714 | D41: 16336 | E41: 54 | F41: 49 | G41: 0.9074074074 | H41: 3 | I41: 48 | J41: 0.8888888889 | K41: 4 | L41: 50 | M41: 0.9259259259 | N41: 2 | O41: 48 | P41: 0.8888888889
A42: ='Control Panel'!A38 -> NW6 | B42: ='Control Panel'!B38 -> Bromley-By-Bow Health Centre / XX Place | C42: ='Control Panel'!O30 -> F84122 | D42: 17204 | E42: 39 | F42: 37 | G42: =IF(OR(ISTEXT($E42),$E42=0),"N/A",F42/$E42) -> 0.9487179487 | H42: 1 | I42: 37 | J42: =IF(OR(ISTEXT($E42),$E42=0),"N/A",I42/$E42) -> 0.9487179487 | K42: 1 | L42: 38 | M42: =IF(OR(ISTEXT($E42),$E42=0),"N/A",L42/$E42) -> 0.9743589744 | O42: 36 | P42: =IF(OR(ISTEXT($E42),$E42=0),"N/A",O42/$E42) -> 0.9230769231
A43: ='Control Panel'!A39 -> NW7 | B43: ='Control Panel'!B39 -> Limehouse Practice (Gill Street) | C43: ='Control Panel'!C39 -> F84054 | D43: 11987 | E43: 24 | F43: 21 | G43: 0.875 | H43: 2 | I43: 21 | J43: 0.875 | K43: 2 | L43: 22 | M43: 0.9166666667 | N43: 1 | O43: 16 | P43: 0.6666666667
A44: ='Control Panel'!A40 -> NW7 | B44: ='Control Panel'!B40 -> Chrisp Street Health Centre | C44: ='Control Panel'!C40 -> F84062 | D44: 15612 | E44: 47 | F44: 40 | G44: 0.8510638298 | H44: 5 | I44: 40 | J44: 0.8510638298 | K44: 5 | L44: 43 | M44: 0.914893617 | N44: 2 | O44: 39 | P44: 0.829787234
A45: ='Control Panel'!A41 -> NW7 | B45: ='Control Panel'!B41 -> Aberfeldy Practice | C45: ='Control Panel'!C41 -> F84698 | D45: 11510 | E45: 33 | F45: 27 | G45: 0.8181818182 | H45: 5 | I45: 27 | J45: 0.8181818182 | K45: 5 | L45: 28 | M45: 0.8484848485 | N45: 4 | O45: 27 | P45: 0.8181818182
A46: ='Control Panel'!A42 -> NW7 | B46: ='Control Panel'!B42 -> Gough Walk (Dr Selvan) | C46: ='Control Panel'!C42 -> F84025 | D46: 11853 | E46: 29 | F46: 25 | G46: 0.8620689655 | H46: 3 | I46: 25 | J46: 0.8620689655 | K46: 3 | L46: 26 | M46: 0.8965517241 | N46: 2 | O46: 24 | P46: 0.8275862069
A47: ='Control Panel'!A43 -> NW8 | B47: ='Control Panel'!B43 -> Island Health | C47: ='Control Panel'!C43 -> F84710 | D47: 15259 | E47: 35 | F47: 34 | G47: 0.9714285714 | I47: 34 | J47: 0.9714285714 | L47: 34 | M47: 0.9714285714 | O47: 33 | P47: 0.9428571429
A48: ='Control Panel'!A44 -> NW8 | B48: ='Control Panel'!B44 -> Docklands Medical Centre | C48: ='Control Panel'!C44 -> F84656 | D48: 9970 | E48: 21 | F48: 21 | G48: 1 | I48: 21 | J48: 1 | L48: 21 | M48: 1 | O48: 21 | P48: 1
A49: ='Control Panel'!A45 -> NW8 | B49: ='Control Panel'!B45 -> Island Medical Centre | C49: ='Control Panel'!C45 -> F84647 | D49: 9506 | E49: 25 | F49: 24 | G49: 0.96 | I49: 23 | J49: 0.92 | K49: 1 | L49: 24 | M49: 0.96 | O49: 24 | P49: 0.96
A50: ='Control Panel'!A46 -> NW8 | B50: ='Control Panel'!B46 -> Barkantine Practice | C50: ='Control Panel'!C46 -> F84747 | D50: 27922 | E50: 91 | F50: 81 | G50: 0.8901098901 | H50: 6 | I50: 78 | J50: 0.8571428571 | K50: 9 | L50: 83 | M50: 0.9120879121 | N50: 4 | O50: 79 | P50: 0.8681318681
B51: Total | D51: =SUM(D19:D50) -> 377446 | E51: =SUM(E19:E50) -> 992 | F51: =SUM(F19:F50) -> 890 | G51: 0.8971774194 | I51: =SUM(I19:I50) -> 885 | J51: 0.8921370968 | L51: =SUM(L19:L50) -> 914 | M51: 0.9213709677 | O51: =SUM(O19:O50) -> 872 | P51: 0.8790322581

Sheet Patients becoming 24m
D2: Tower Hamlets Childhood Immunisations Dashboard: Metric Details
D3: Patients becoming 24m | F3: =E15 -> 974
C5: March 2022 | D5: All Patients | E5: (02) 24 MONTH COHORT | F5: (02.01) DTaP/IPV/Hib | G5: DTaP/IPV/Hib(%) | H5: (02.02) MMR | I5: MMR(%) | J5: Patients required to achieve CCG Target (95%) | K5: (02.03) HiB/Men C | L5: HiB/Men C (%) | M5: Patients required to achieve CCG Target (95%) | N5: (02.04) PCV (Booster) | O5: PCV (Booster)(%) | P5: Patients required to achieve CCG Target (95%) | Q5: (02.05) Men B (Booster) | R5: Men B (Booster)(%)
B6: Home | D6: Listsize | E6: Patients becoming 24m | F6: DTaP/IPV/Hib/HepB | G6: DTaP/IPV/Hib/HepB(%) | H6: MMR | I6: MMR(%) | J6: Patients required to achieve CCG Target (95%) | K6: HiB/Men C | L6: HiB/Men C (%) | M6: Patients required to achieve CCG Target (95%) | N6: PCV (Booster) | O6: PCV (Booster)(%) | P6: Patients required to achieve CCG Target (95%) | Q6: Men B (Booster) | R6: Men B (Booster)(%)
A7: Cluster
A8: ='Control Panel'!A3 -> NW1 | B8: ='Control Panel'!B3 -> The One Network | D8: =SUM(IF($A8=$A$19:$A$50,D$19:D$50)) -> 49033 | E8: =SUM(IF($A8=$A$19:$A$50,E$19:E$50)) -> 94 | F8: =SUM(IF($A8=$A$19:$A$50,F$19:F$50)) -> 85 | G8: =IF(OR(ISTEXT($E8),$E8=0),"N/A",F8/$E8) -> 0.9042553191 | H8: =SUM(IF($A8=$A$19:$A$50,H$19:H$50)) -> 81 | I8: =IF(OR(ISTEXT($E8),$E8=0),"N/A",H8/$E8) -> 0.8617021277 | K8: =SUM(IF($A8=$A$19:$A$50,K$19:K$50)) -> 82 | L8: =IF(OR(ISTEXT($E8),$E8=0),"N/A",K8/$E8) -> 0.8723404255 | N8: =SUM(IF($A8=$A$19:$A$50,N$19:N$50)) -> 83 | O8: =IF(OR(ISTEXT($E8),$E8=0),"N/A",N8/$E8) -> 0.8829787234 | Q8: =SUM(IF($A8=$A$19:$A$50,Q$19:Q$50)) -> 83 | R8: =IF(OR(ISTEXT($E8),$E8=0),"N/A",Q8/$E8) -> 0.8829787234
A9: ='Control Panel'!A4 -> NW2 | B9: ='Control Panel'!B4 -> East End Health Network | D9: =SUM(IF($A9=$A$19:$A$50,D$19:D$50)) -> 40368 | E9: =SUM(IF($A9=$A$19:$A$50,E$19:E$50)) -> 90 | F9: =SUM(IF($A9=$A$19:$A$50,F$19:F$50)) -> 83 | G9: =IF(OR(ISTEXT($E9),$E9=0),"N/A",F9/$E9) -> 0.9222222222 | H9: =SUM(IF($A9=$A$19:$A$50,H$19:H$50)) -> 81 | I9: 0.9 | K9: =SUM(IF($A9=$A$19:$A$50,K$19:K$50)) -> 82 | L9: =IF(OR(ISTEXT($E9),$E9=0),"N/A",K9/$E9) -> 0.9111111111 | N9: =SUM(IF($A9=$A$19:$A$50,N$19:N$50)) -> 82 | O9: =IF(OR(ISTEXT($E9),$E9=0),"N/A",N9/$E9) -> 0.9111111111 | Q9: =SUM(IF($A9=$A$19:$A$50,Q$19:Q$50)) -> 82 | R9: =IF(OR(ISTEXT($E9),$E9=0),"N/A",Q9/$E9) -> 0.9111111111
A10: ='Control Panel'!A5 -> NW3&4 | B10: ='Control Panel'!B5 -> Tower Network | D10: =SUM(IF($A10=$A$19:$A$50,D$19:D$50)) -> 79369 | E10: =SUM(IF($A10=$A$19:$A$50,E$19:E$50)) -> 218 | F10: =SUM(IF($A10=$A$19:$A$50,F$19:F$50)) -> 197 | G10: 0.9036697248 | H10: =SUM(IF($A10=$A$19:$A$50,H$19:H$50)) -> 183 | I10: 0.8394495413 | K10: =SUM(IF($A10=$A$19:$A$50,K$19:K$50)) -> 185 | L10: 0.8486238532 | N10: =SUM(IF($A10=$A$19:$A$50,N$19:N$50)) -> 185 | O10: 0.8486238532 | Q10: =SUM(IF($A10=$A$19:$A$50,Q$19:Q$50)) -> 183 | R10: 0.8394495413
A11: ='Control Panel'!A6 -> NW5 | B11: ='Control Panel'!B6 -> Bow Health Network | D11: =SUM(IF($A11=$A$19:$A$50,D$19:D$50)) -> 35730 | E11: =SUM(IF($A11=$A$19:$A$50,E$19:E$50)) -> 84 | F11: =SUM(IF($A11=$A$19:$A$50,F$19:F$50)) -> 78 | G11: 0.9285714286 | H11: =SUM(IF($A11=$A$19:$A$50,H$19:H$50)) -> 72 | I11: 0.8571428571 | K11: =SUM(IF($A11=$A$19:$A$50,K$19:K$50)) -> 74 | L11: 0.880952381 | N11: =SUM(IF($A11=$A$19:$A$50,N$19:N$50)) -> 74 | O11: 0.880952381 | Q11: =SUM(IF($A11=$A$19:$A$50,Q$19:Q$50)) -> 74 | R11: 0.880952381
A12: ='Control Panel'!A7 -> NW6 | B12: ='Control Panel'!B7 -> Mile End East and Bromley by Bow Network | D12: =SUM(IF($A12=$A$19:$A$50,D$19:D$50)) -> 59327 | E12: =SUM(IF($A12=$A$19:$A$50,E$19:E$50)) -> 167 | F12: =SUM(IF($A12=$A$19:$A$50,F$19:F$50)) -> 156 | G12: 0.9341317365 | H12: =SUM(IF($A12=$A$19:$A$50,H$19:H$50)) -> 153 | I12: 0.9161676647 | K12: =SUM(IF($A12=$A$19:$A$50,K$19:K$50)) -> 153 | L12: 0.9161676647 | N12: =SUM(IF($A12=$A$19:$A$50,N$19:N$50)) -> 153 | O12: 0.9161676647 | Q12: =SUM(IF($A12=$A$19:$A$50,Q$19:Q$50)) -> 152 | R12: 0.9101796407
A13: ='Control Panel'!A8 -> NW7 | B13: ='Control Panel'!B8 -> Poplar and Limehouse Network | D13: =SUM(IF($A13=$A$19:$A$50,D$19:D$50)) -> 50962 | E13: =SUM(IF($A13=$A$19:$A$50,E$19:E$50)) -> 147 | F13: =SUM(IF($A13=$A$19:$A$50,F$19:F$50)) -> 127 | G13: 0.8639455782 | H13: =SUM(IF($A13=$A$19:$A$50,H$19:H$50)) -> 124 | I13: 0.843537415 | K13: =SUM(IF($A13=$A$19:$A$50,K$19:K$50)) -> 123 | L13: 0.8367346939 | N13: =SUM(IF($A13=$A$19:$A$50,N$19:N$50)) -> 121 | O13: 0.8231292517 | Q13: =SUM(IF($A13=$A$19:$A$50,Q$19:Q$50)) -> 122 | R13: 0.8299319728
A14: ='Control Panel'!A9 -> NW8 | B14: ='Control Panel'!B9 -> Healthy Island Network | D14: =SUM(IF($A14=$A$19:$A$50,D$19:D$50)) -> 62657 | E14: =SUM(IF($A14=$A$19:$A$50,E$19:E$50)) -> 174 | F14: =SUM(IF($A14=$A$19:$A$50,F$19:F$50)) -> 155 | G14: 0.8908045977 | H14: =SUM(IF($A14=$A$19:$A$50,H$19:H$50)) -> 142 | I14: 0.816091954 | K14: =SUM(IF($A14=$A$19:$A$50,K$19:K$50)) -> 143 | L14: 0.8218390805 | N14: =SUM(IF($A14=$A$19:$A$50,N$19:N$50)) -> 143 | O14: 0.8218390805 | Q14: =SUM(IF($A14=$A$19:$A$50,Q$19:Q$50)) -> 143 | R14: 0.8218390805
A15: Total | D15: =SUM(D8:D14) -> 377446 | E15: =SUM(E8:E14) -> 974 | F15: =SUM(F8:F14) -> 881 | G15: 0.9045174538 | H15: =SUM(H8:H14) -> 836 | I15: 0.8583162218 | K15: =SUM(K8:K14) -> 842 | L15: 0.864476386 | N15: =SUM(N8:N14) -> 841 | O15: 0.863449692 | Q15: =SUM(Q8:Q14) -> 839 | R15: 0.8613963039
A16: Minimum and Maximum % | F16: Min | G16: Max | H16: Min | I16: Max | K16: Min | L16: Max | N16: Min | O16: Max | Q16: Min | R16: Max
F17: =SMALL(G19:G50,COUNTIF(G19:G50,0)+1) -> 0.75 | G17: =MAX(G19:G50) -> 1 | H17: =SMALL(I19:I50,COUNTIF(I19:I50,0)+1) -> 0.75 | I17: =MAX(I19:I50) -> 1 | K17: =SMALL(L19:L50,COUNTIF(L19:L50,0)+1) -> 0.75 | L17: =MAX(L19:L50) -> 1 | N17: =SMALL(O19:O50,COUNTIF(O19:O50,0)+1) -> 0.75 | O17: =MAX(O19:O50) -> 1 | Q17: =SMALL(R19:R50,COUNTIF(R19:R50,0)+1) -> 0.75 | R17: =MAX(R19:R50) -> 1
A18: Practices
A19: ='Control Panel'!A12 -> NW1 | B19: ='Control Panel'!B12 -> Bethnal Green Health Centre | C19: ='Control Panel'!C12 -> F84083 | D19: =SUMIFS(OFFSET(REL_D,,MATCH($D$5,IND,0)-1),REL_D,$C$5,OrgID,$C19) -> 9766 | E19: =SUMIFS(OFFSET(REL_D,,MATCH($E$5,IND,0)-1),REL_D,$C$5,OrgID,$C19) -> 21 | F19: =SUMIFS(OFFSET(REL_D,,MATCH($F$5,IND,0)-1),REL_D,$C$5,OrgID,$C19) -> 20 | G19: =IF(OR(ISTEXT($E19),$E19=0),"N/A",F19/$E19) -> 0.9523809524 | H19: =SUMIFS(OFFSET(REL_D,,MATCH($H$5,IND,0)-1),REL_D,$C$5,OrgID,$C19) -> 17 | I19: =IF(OR(ISTEXT($E19),$E19=0),"N/A",H19/$E19) -> 0.8095238095 | J19: =IFERROR(ROUNDUP(IF($E19*0.95-H19>=0,$E19*0.95-H19,""),0),"") -> 3 | K19: =SUMIFS(OFFSET(REL_D,,MATCH($K$5,IND,0)-1),REL_D,$C$5,OrgID,$C19) -> 17 | L19: =IF(OR(ISTEXT($E19),$E19=0),"N/A",K19/$E19) -> 0.8095238095 | M19: =IFERROR(ROUNDUP(IF($E19*0.95-K19>=0,$E19*0.95-K19,""),0),"") -> 3 | N19: =SUMIFS(OFFSET(REL_D,,MATCH($N$5,IND,0)-1),REL_D,$C$5,OrgID,$C19) -> 17 | O19: =IF(OR(ISTEXT($E19),$E19=0),"N/A",N19/$E19) -> 0.8095238095 | P19: =IFERROR(ROUNDUP(IF($E19*0.95-N19>=0,$E19*0.95-N19,""),0),"") -> 3 | Q19: =SUMIFS(OFFSET(REL_D,,MATCH($Q$5,IND,0)-1),REL_D,$C$5,OrgID,$C19) -> 17 | R19: =IF(OR(ISTEXT($E19),$E19=0),"N/A",Q19/$E19) -> 0.8095238095
A20: ='Control Panel'!A13 -> NW1 | B20: ='Control Panel'!B13 -> The Mission Practice | C20: ='Control Panel'!C13 -> F84016 | D20: 12618 | E20: 29 | F20: 25 | G20: 0.8620689655 | H20: 27 | I20: 0.9310344828 | J20: 1 | K20: 28 | L20: 0.9655172414 | N20: =SUMIFS(OFFSET(REL_D,,MATCH($N$5,IND,0)-1),REL_D,$C$5,OrgID,$C20) -> 28 | O20: 0.9655172414 | P20: =IFERROR(ROUNDUP(IF($E20*0.95-N20>=0,$E20*0.95-N20,""),0),"") ->  | Q20: 28 | R20: 0.9655172414
A21: ='Control Panel'!A14 -> NW1 | B21: ='Control Panel'!B14 -> Globe Town Surgery | C21: ='Control Panel'!C14 -> F84123 | D21: 18056 | E21: 29 | F21: 26 | G21: 0.8965517241 | H21: 25 | I21: 0.8620689655 | J21: 3 | K21: 25 | L21: 0.8620689655 | M21: 3 | N21: =SUMIFS(OFFSET(REL_D,,MATCH($N$5,IND,0)-1),REL_D,$C$5,OrgID,$C21) -> 25 | O21: 0.8620689655 | P21: 3 | Q21: 25 | R21: 0.8620689655
A22: ='Control Panel'!A16 -> NW1 | B22: ='Control Panel'!B16 -> Strouts Place Medical Centre | C22: ='Control Panel'!C16 -> F84051 | D22: 8593 | E22: 15 | F22: 14 | G22: 0.9333333333 | H22: 12 | I22: 0.8 | J22: 3 | K22: 12 | L22: 0.8 | M22: 3 | N22: =SUMIFS(OFFSET(REL_D,,MATCH($N$5,IND,0)-1),REL_D,$C$5,OrgID,$C22) -> 13 | O22: 0.8666666667 | P22: 2 | Q22: 13 | R22: 0.8666666667
A23: ='Control Panel'!A17 -> NW2 | B23: ='Control Panel'!B17 -> Spitalfields Practice | C23: ='Control Panel'!C17 -> F84081 | D23: 14828 | E23: 27 | F23: 25 | G23: 0.9259259259 | H23: 23 | I23: 0.8518518519 | J23: 3 | K23: 23 | L23: 0.8518518519 | M23: 3 | N23: =SUMIFS(OFFSET(REL_D,,MATCH($N$5,IND,0)-1),REL_D,$C$5,OrgID,$C23) -> 22 | O23: 0.8148148148 | P23: 4 | Q23: 23 | R23: 0.8518518519
A24: ='Control Panel'!A18 -> NW2 | B24: ='Control Panel'!B18 -> Blithehale Medical Centre | C24: ='Control Panel'!C18 -> F84718 | D24: 14732 | E24: 32 | F24: 31 | G24: 0.96875 | H24: 31 | I24: 0.96875 | K24: 31 | L24: 0.96875 | N24: =SUMIFS(OFFSET(REL_D,,MATCH($N$5,IND,0)-1),REL_D,$C$5,OrgID,$C24) -> 31 | O24: 0.96875 | Q24: 31 | R24: 0.96875
A25: ='Control Panel'!A19 -> NW2 | B25: ='Control Panel'!B19 -> Health E1 | C25: ='Control Panel'!C19 -> F84733 | D25: 1109 | E25: 0 | F25: 0 | G25: N/A | H25: 0 | I25: N/A | J25: 0 | K25: 0 | L25: N/A | M25: 0 | N25: =SUMIFS(OFFSET(REL_D,,MATCH($N$5,IND,0)-1),REL_D,$C$5,OrgID,$C25) -> 0 | O25: N/A | P25: 0 | Q25: 0 | R25: N/A
A26: ='Control Panel'!A20 -> NW2 | B26: ='Control Panel'!B20 -> Albion Health Centre | C26: ='Control Panel'!C20 -> F84012 | D26: 9699 | E26: 31 | F26: 27 | G26: 0.8709677419 | H26: 27 | I26: 0.8709677419 | J26: 3 | K26: 28 | L26: 0.9032258065 | M26: 2 | N26: =SUMIFS(OFFSET(REL_D,,MATCH($N$5,IND,0)-1),REL_D,$C$5,OrgID,$C26) -> 29 | O26: 0.935483871 | P26: 1 | Q26: 28 | R26: 0.9032258065
A27: ='Control Panel'!A21 -> NW3&4 | B27: ='Control Panel'!B21 -> Harford Health Centre | C27: ='Control Panel'!C21 -> F84087 | D27: 9781 | E27: 33 | F27: 28 | G27: 0.8484848485 | H27: 27 | I27: 0.8181818182 | J27: 5 | K27: 28 | L27: 0.8484848485 | M27: 4 | N27: =SUMIFS(OFFSET(REL_D,,MATCH($N$5,IND,0)-1),REL_D,$C$5,OrgID,$C27) -> 31 | O27: 0.9393939394 | P27: 1 | Q27: 28 | R27: 0.8484848485
A28: ='Control Panel'!A23 -> NW3&4 | B28: ='Control Panel'!B23 -> Goodman’s Field Health Centre | C28: ='Control Panel'!C23 -> F84039 | D28: 29370 | E28: 76 | F28: 69 | G28: 0.9078947368 | H28: 62 | I28: 0.8157894737 | J28: 11 | K28: 63 | L28: 0.8289473684 | M28: 10 | N28: =SUMIFS(OFFSET(REL_D,,MATCH($N$5,IND,0)-1),REL_D,$C$5,OrgID,$C28) -> 60 | O28: 0.7894736842 | P28: 13 | Q28: 62 | R28: 0.8157894737
A29: ='Control Panel'!A24 -> NW3&4 | B29: ='Control Panel'!B24 -> City Wellbeing Practice (Tower Medical) | C29: ='Control Panel'!C24 -> F84114 | D29: 12178 | E29: 37 | F29: 34 | G29: 0.9189189189 | H29: 33 | I29: 0.8918918919 | J29: 3 | K29: 32 | L29: 0.8648648649 | M29: 4 | N29: =SUMIFS(OFFSET(REL_D,,MATCH($N$5,IND,0)-1),REL_D,$C$5,OrgID,$C29) -> 32 | O29: 0.8648648649 | P29: 4 | Q29: 32 | R29: 0.8648648649
A30: ='Control Panel'!A25 -> NW3&4 | B30: ='Control Panel'!B25 -> Wapping Group Practice | C30: ='Control Panel'!C25 -> F84079 | D30: 11843 | E30: 25 | F30: 22 | G30: 0.88 | H30: 23 | I30: 0.92 | J30: 1 | K30: 23 | L30: 0.92 | M30: 1 | N30: =SUMIFS(OFFSET(REL_D,,MATCH($N$5,IND,0)-1),REL_D,$C$5,OrgID,$C30) -> 23 | O30: 0.92 | P30: 1 | Q30: 22 | R30: 0.88
A31: ='Control Panel'!A26 -> NW3&4 | B31: ='Control Panel'!B26 -> Jubilee Street Practice | C31: ='Control Panel'!C26 -> F84031 | D31: 14178 | E31: 44 | F31: 41 | G31: 0.9318181818 | H31: 35 | I31: 0.7954545455 | J31: 7 | K31: 36 | L31: 0.8181818182 | M31: 6 | N31: =SUMIFS(OFFSET(REL_D,,MATCH($N$5,IND,0)-1),REL_D,$C$5,OrgID,$C31) -> 36 | O31: 0.8181818182 | P31: 6 | Q31: 36 | R31: 0.8181818182
A32: ='Control Panel'!A27 -> NW3&4 | B32: ='Control Panel'!B27 -> St Katharine Docks Practice | C32: ='Control Panel'!C27 -> F84731 | D32: 2019 | E32: 3 | F32: 3 | G32: 1 | H32: 3 | I32: 1 | K32: 3 | L32: 1 | N32: =SUMIFS(OFFSET(REL_D,,MATCH($N$5,IND,0)-1),REL_D,$C$5,OrgID,$C32) -> 3 | O32: 1 | Q32: 3 | R32: 1
A33: ='Control Panel'!A29 -> NW5 | B33: ='Control Panel'!B29 -> Harley Grove Medical Centre | C33: ='Control Panel'!C29 -> F84044 | D33: 8063 | E33: 18 | F33: 17 | G33: 0.9444444444 | H33: 16 | I33: 0.8888888889 | J33: 2 | K33: 17 | L33: 0.9444444444 | M33: 1 | N33: =SUMIFS(OFFSET(REL_D,,MATCH($N$5,IND,0)-1),REL_D,$C$5,OrgID,$C33) -> 17 | O33: 0.9444444444 | P33: 1 | Q33: 17 | R33: 0.9444444444
A34: ='Control Panel'!A30 -> NW5 | B34: ='Control Panel'!B30 -> St Stephens Health Centre | C34: ='Control Panel'!C30 -> F84034 | D34: 13458 | E34: 40 | F34: 37 | G34: 0.925 | H34: 33 | I34: 0.825 | J34: 5 | K34: 34 | L34: 0.85 | M34: 4 | N34: =SUMIFS(OFFSET(REL_D,,MATCH($N$5,IND,0)-1),REL_D,$C$5,OrgID,$C34) -> 34 | O34: 0.85 | P34: 4 | Q34: 34 | R34: 0.85
A35: ='Control Panel'!A31 -> NW5 | B35: ='Control Panel'!B31 -> Ruston Street Clinic (Dr Amin) | C35: ='Control Panel'!C31 -> F84030 | D35: 3818 | E35: 10 | F35: 9 | G35: 0.9 | H35: 8 | I35: 0.8 | J35: 2 | K35: 8 | L35: 0.8 | M35: 2 | N35: =SUMIFS(OFFSET(REL_D,,MATCH($N$5,IND,0)-1),REL_D,$C$5,OrgID,$C35) -> 8 | O35: 0.8 | P35: 2 | Q35: 8 | R35: 0.8
A36: ='Control Panel'!A32 -> NW5 | B36: ='Control Panel'!B32 -> Grove Road Surgery (Dr Shah) | C36: ='Control Panel'!C32 -> F84055 | D36: 4204 | E36: 4 | F36: 3 | G36: 0.75 | H36: 3 | I36: 0.75 | J36: 1 | K36: 3 | L36: 0.75 | M36: 1 | N36: =SUMIFS(OFFSET(REL_D,,MATCH($N$5,IND,0)-1),REL_D,$C$5,OrgID,$C36) -> 3 | O36: 0.75 | P36: 1 | Q36: 3 | R36: 0.75
A37: ='Control Panel'!A33 -> NW5 | B37: ='Control Panel'!B33 -> The Tredegar Practice | C37: ='Control Panel'!C33 -> F84696 | D37: 6187 | E37: 12 | F37: 12 | G37: 1 | H37: 12 | I37: 1 | K37: 12 | L37: 1 | N37: =SUMIFS(OFFSET(REL_D,,MATCH($N$5,IND,0)-1),REL_D,$C$5,OrgID,$C37) -> 12 | O37: 1 | Q37: 12 | R37: 1
A38: ='Control Panel'!A34 -> NW6 | B38: ='Control Panel'!B34 -> Stroudley Walk Centre | C38: ='Control Panel'!C34 -> F84676 | D38: 4223 | E38: 7 | F38: 7 | G38: 1 | H38: 7 | I38: 1 | K38: 7 | L38: 1 | N38: =SUMIFS(OFFSET(REL_D,,MATCH($N$5,IND,0)-1),REL_D,$C$5,OrgID,$C38) -> 7 | O38: 1 | Q38: 7 | R38: 1
A39: ='Control Panel'!A35 -> NW6 | B39: ='Control Panel'!B35 -> St Andrews Health Centre | C39: ='Control Panel'!C35 -> Y03023 | D39: 15467 | E39: 65 | F39: 62 | G39: 0.9538461538 | H39: 59 | I39: 0.9076923077 | J39: 3 | K39: 58 | L39: 0.8923076923 | M39: 4 | N39: =SUMIFS(OFFSET(REL_D,,MATCH($N$5,IND,0)-1),REL_D,$C$5,OrgID,$C39) -> 58 | O39: 0.8923076923 | P39: 4 | Q39: 57 | R39: 0.8769230769
A40: ='Control Panel'!A36 -> NW6 | B40: ='Control Panel'!B36 -> Merchant Street (Dr Rana) | C40: ='Control Panel'!C36 -> F84118 | D40: 6097 | E40: 7 | F40: 6 | G40: 0.8571428571 | H40: 6 | I40: 0.8571428571 | J40: 1 | K40: 6 | L40: 0.8571428571 | M40: 1 | N40: =SUMIFS(OFFSET(REL_D,,MATCH($N$5,IND,0)-1),REL_D,$C$5,OrgID,$C40) -> 6 | O40: 0.8571428571 | P40: 1 | Q40: 6 | R40: 0.8571428571
A41: ='Control Panel'!A37 -> NW6 | B41: ='Control Panel'!B37 -> St Pauls Way Medical Centre | C41: ='Control Panel'!C37 -> F84714 | D41: 16336 | E41: 46 | F41: 43 | G41: 0.9347826087 | H41: 44 | I41: 0.9565217391 | K41: 44 | L41: 0.9565217391 | N41: =SUMIFS(OFFSET(REL_D,,MATCH($N$5,IND,0)-1),REL_D,$C$5,OrgID,$C41) -> 43 | O41: 0.9347826087 | P41: 1 | Q41: 43 | R41: 0.9347826087
A42: ='Control Panel'!A38 -> NW6 | B42: ='Control Panel'!B38 -> Bromley-By-Bow Health Centre / XX Place | C42: ='Control Panel'!O30 -> F84122 | D42: 17204 | E42: 42 | F42: 38 | G42: =IF(OR(ISTEXT($E42),$E42=0),"N/A",F42/$E42) -> 0.9047619048 | H42: 37 | I42: 0.880952381 | J42: 3 | K42: 38 | L42: =IF(OR(ISTEXT($E42),$E42=0),"N/A",K42/$E42) -> 0.9047619048 | M42: 2 | N42: =SUMIFS(OFFSET(REL_D,,MATCH($N$5,IND,0)-1),REL_D,$C$5,OrgID,$C42) -> 39 | O42: =IF(OR(ISTEXT($E42),$E42=0),"N/A",N42/$E42) -> 0.9285714286 | P42: 1 | Q42: 39 | R42: 0.9285714286
A43: ='Control Panel'!A39 -> NW7 | B43: ='Control Panel'!B39 -> Limehouse Practice (Gill Street) | C43: ='Control Panel'!C39 -> F84054 | D43: 11987 | E43: 32 | F43: 28 | G43: 0.875 | H43: 26 | I43: 0.8125 | J43: 5 | K43: 27 | L43: 0.84375 | M43: 4 | N43: =SUMIFS(OFFSET(REL_D,,MATCH($N$5,IND,0)-1),REL_D,$C$5,OrgID,$C43) -> 26 | O43: 0.8125 | P43: 5 | Q43: 27 | R43: 0.84375
A44: ='Control Panel'!A40 -> NW7 | B44: ='Control Panel'!B40 -> Chrisp Street Health Centre | C44: ='Control Panel'!C40 -> F84062 | D44: 15612 | E44: 41 | F44: 37 | G44: 0.9024390244 | H44: 37 | I44: 0.9024390244 | J44: 2 | K44: 37 | L44: 0.9024390244 | M44: 2 | N44: =SUMIFS(OFFSET(REL_D,,MATCH($N$5,IND,0)-1),REL_D,$C$5,OrgID,$C44) -> 37 | O44: 0.9024390244 | P44: 2 | Q44: 37 | R44: 0.9024390244
A45: ='Control Panel'!A41 -> NW7 | B45: ='Control Panel'!B41 -> Aberfeldy Practice | C45: ='Control Panel'!C41 -> F84698 | D45: 11510 | E45: 35 | F45: 31 | G45: 0.8857142857 | H45: 29 | I45: 0.8285714286 | J45: 5 | K45: 28 | L45: 0.8 | M45: 6 | N45: =SUMIFS(OFFSET(REL_D,,MATCH($N$5,IND,0)-1),REL_D,$C$5,OrgID,$C45) -> 28 | O45: 0.8 | P45: 6 | Q45: 28 | R45: 0.8
A46: ='Control Panel'!A42 -> NW7 | B46: ='Control Panel'!B42 -> Gough Walk (Dr Selvan) | C46: ='Control Panel'!C42 -> F84025 | D46: 11853 | E46: 39 | F46: 31 | G46: 0.7948717949 | H46: 32 | I46: 0.8205128205 | J46: 6 | K46: 31 | L46: 0.7948717949 | M46: 7 | N46: =SUMIFS(OFFSET(REL_D,,MATCH($N$5,IND,0)-1),REL_D,$C$5,OrgID,$C46) -> 30 | O46: 0.7692307692 | P46: 8 | Q46: 30 | R46: 0.7692307692
A47: ='Control Panel'!A43 -> NW8 | B47: ='Control Panel'!B43 -> Island Health | C47: ='Control Panel'!C43 -> F84710 | D47: 15259 | E47: 34 | F47: 30 | G47: 0.8823529412 | H47: 27 | I47: 0.7941176471 | J47: 6 | K47: 28 | L47: 0.8235294118 | M47: 5 | N47: =SUMIFS(OFFSET(REL_D,,MATCH($N$5,IND,0)-1),REL_D,$C$5,OrgID,$C47) -> 28 | O47: 0.8235294118 | P47: 5 | Q47: 29 | R47: 0.8529411765
A48: ='Control Panel'!A44 -> NW8 | B48: ='Control Panel'!B44 -> Docklands Medical Centre | C48: ='Control Panel'!C44 -> F84656 | D48: 9970 | E48: 21 | F48: 20 | G48: 0.9523809524 | H48: 17 | I48: 0.8095238095 | J48: 3 | K48: 17 | L48: 0.8095238095 | M48: 3 | N48: =SUMIFS(OFFSET(REL_D,,MATCH($N$5,IND,0)-1),REL_D,$C$5,OrgID,$C48) -> 17 | O48: 0.8095238095 | P48: 3 | Q48: 17 | R48: 0.8095238095
A49: ='Control Panel'!A45 -> NW8 | B49: ='Control Panel'!B45 -> Island Medical Centre | C49: ='Control Panel'!C45 -> F84647 | D49: 9506 | E49: 20 | F49: 18 | G49: 0.9 | H49: 16 | I49: 0.8 | J49: 3 | K49: 16 | L49: 0.8 | M49: 3 | N49: =SUMIFS(OFFSET(REL_D,,MATCH($N$5,IND,0)-1),REL_D,$C$5,OrgID,$C49) -> 16 | O49: 0.8 | P49: 3 | Q49: 16 | R49: 0.8
A50: ='Control Panel'!A46 -> NW8 | B50: ='Control Panel'!B46 -> Barkantine Practice | C50: ='Control Panel'!C46 -> F84747 | D50: 27922 | E50: 99 | F50: 87 | G50: 0.8787878788 | H50: 82 | I50: 0.8282828283 | J50: 13 | K50: 82 | L50: 0.8282828283 | M50: 13 | N50: =SUMIFS(OFFSET(REL_D,,MATCH($N$5,IND,0)-1),REL_D,$C$5,OrgID,$C50) -> 82 | O50: 0.8282828283 | P50: 13 | Q50: 81 | R50: 0.8181818182
B51: Total | D51: =SUM(D19:D50) -> 377446 | E51: =SUM(E19:E50) -> 974 | F51: =SUM(F19:F50) -> 881 | G51: 0.9045174538 | H51: =SUM(H19:H50) -> 836 | I51: 0.8583162218 | K51: =SUM(K19:K50) -> 842 | L51: 0.864476386 | N51: =SUM(N19:N50) -> 841 | O51: 0.863449692 | Q51: =SUM(Q19:Q50) -> 839 | R51: 0.8613963039

Sheet Patients becoming 5y
D2: Tower Hamlets Childhood Immunisations Dashboard: Metric Details
D3: Patients becoming 5y | F3: =E15 -> 936
C5: March 2022 | D5: All Patients | E5: (03) 5 YEAR COHORT | F5: (03.01) DTaP/IPV/Hib | G5: DTaP/IPV/Hib(%) | H5: (03.02) MMR (Primary) | I5: MMR (Primary)(%) | J5: (03.03) DTaP/IPV (Booster) | K5: DTaP/IPV (Booster)(%) | L5: Patients required to achieve CCG Target (95%) | M5: (03.05) MMR (Booster) | N5: MMR (Booster)(%) | O5: Patients required to achieve CCG Target (95%) | P5: (03.04) HiB/Men C | Q5: HiB/Men C(%)
B6: Home | D6: Listsize | E6: Patients becoming 5y | F6: DTaP/IPV/Hib | G6: DTaP/IPV/Hib(%) | H6: MMR (Primary) | I6: MMR (Primary)(%) | J6: DTaP/IPV (Booster) | K6: DTaP/IPV (Booster)(%) | L6: Patients required to achieve CCG Target (95%) | M6: MMR (Booster) | N6: MMR (Booster)(%) | O6: Patients required to achieve CCG Target (95%) | P6: HiB/Men C | Q6: HiB/Men C(%)
A7: Cluster
A8: ='Control Panel'!A3 -> NW1 | B8: ='Control Panel'!B3 -> The One Network | D8: =SUM(IF($A8=$A$19:$A$50,D$19:D$50)) -> 49033 | E8: =SUM(IF($A8=$A$19:$A$50,E$19:E$50)) -> 107 | F8: =SUM(IF($A8=$A$19:$A$50,F$19:F$50)) -> 101 | G8: =IF(OR(ISTEXT($E8),$E8=0),"N/A",F8/$E8) -> 0.9439252336 | H8: =SUM(IF($A8=$A$19:$A$50,H$19:H$50)) -> 96 | I8: =IF(OR(ISTEXT($E8),$E8=0),"N/A",H8/$E8) -> 0.8971962617 | J8: =SUM(IF($A8=$A$19:$A$50,J$19:J$50)) -> 94 | K8: =IF(OR(ISTEXT($E8),$E8=0),"N/A",J8/$E8) -> 0.8785046729 | M8: =SUM(IF($A8=$A$19:$A$50,M$19:M$50)) -> 94 | N8: =IF(OR(ISTEXT($E8),$E8=0),"N/A",M8/$E8) -> 0.8785046729 | P8: =SUM(IF($A8=$A$19:$A$50,P$19:P$50)) -> 97 | Q8: =IF(OR(ISTEXT($E8),$E8=0),"N/A",P8/$E8) -> 0.9065420561
A9: ='Control Panel'!A4 -> NW2 | B9: ='Control Panel'!B4 -> East End Health Network | D9: =SUM(IF($A9=$A$19:$A$50,D$19:D$50)) -> 40368 | E9: =SUM(IF($A9=$A$19:$A$50,E$19:E$50)) -> 81 | F9: =SUM(IF($A9=$A$19:$A$50,F$19:F$50)) -> 77 | G9: =IF(OR(ISTEXT($E9),$E9=0),"N/A",F9/$E9) -> 0.950617284 | H9: =SUM(IF($A9=$A$19:$A$50,H$19:H$50)) -> 77 | I9: =IF(OR(ISTEXT($E9),$E9=0),"N/A",H9/$E9) -> 0.950617284 | J9: =SUM(IF($A9=$A$19:$A$50,J$19:J$50)) -> 70 | K9: =IF(OR(ISTEXT($E9),$E9=0),"N/A",J9/$E9) -> 0.8641975309 | M9: =SUM(IF($A9=$A$19:$A$50,M$19:M$50)) -> 70 | N9: =IF(OR(ISTEXT($E9),$E9=0),"N/A",M9/$E9) -> 0.8641975309 | P9: =SUM(IF($A9=$A$19:$A$50,P$19:P$50)) -> 75 | Q9: =IF(OR(ISTEXT($E9),$E9=0),"N/A",P9/$E9) -> 0.9259259259
A10: ='Control Panel'!A5 -> NW3&4 | B10: ='Control Panel'!B5 -> Tower Network | D10: =SUM(IF($A10=$A$19:$A$50,D$19:D$50)) -> 79369 | E10: =SUM(IF($A10=$A$19:$A$50,E$19:E$50)) -> 197 | F10: =SUM(IF($A10=$A$19:$A$50,F$19:F$50)) -> 182 | G10: 0.923857868 | H10: =SUM(IF($A10=$A$19:$A$50,H$19:H$50)) -> 178 | I10: 0.9035532995 | J10: =SUM(IF($A10=$A$19:$A$50,J$19:J$50)) -> 150 | K10: 0.7614213198 | M10: =SUM(IF($A10=$A$19:$A$50,M$19:M$50)) -> 155 | N10: 0.7868020305 | P10: =SUM(IF($A10=$A$19:$A$50,P$19:P$50)) -> 177 | Q10: 0.8984771574
A11: ='Control Panel'!A6 -> NW5 | B11: ='Control Panel'!B6 -> Bow Health Network | D11: =SUM(IF($A11=$A$19:$A$50,D$19:D$50)) -> 35730 | E11: =SUM(IF($A11=$A$19:$A$50,E$19:E$50)) -> 91 | F11: =SUM(IF($A11=$A$19:$A$50,F$19:F$50)) -> 83 | G11: 0.9120879121 | H11: =SUM(IF($A11=$A$19:$A$50,H$19:H$50)) -> 79 | I11: 0.8681318681 | J11: =SUM(IF($A11=$A$19:$A$50,J$19:J$50)) -> 76 | K11: 0.8351648352 | M11: =SUM(IF($A11=$A$19:$A$50,M$19:M$50)) -> 76 | N11: 0.8351648352 | P11: =SUM(IF($A11=$A$19:$A$50,P$19:P$50)) -> 81 | Q11: 0.8901098901
A12: ='Control Panel'!A7 -> NW6 | B12: ='Control Panel'!B7 -> Mile End East and Bromley by Bow Network | D12: =SUM(IF($A12=$A$19:$A$50,D$19:D$50)) -> 59327 | E12: =SUM(IF($A12=$A$19:$A$50,E$19:E$50)) -> 169 | F12: =SUM(IF($A12=$A$19:$A$50,F$19:F$50)) -> 159 | G12: 0.9408284024 | H12: =SUM(IF($A12=$A$19:$A$50,H$19:H$50)) -> 149 | I12: 0.8816568047 | J12: =SUM(IF($A12=$A$19:$A$50,J$19:J$50)) -> 144 | K12: 0.8520710059 | M12: =SUM(IF($A12=$A$19:$A$50,M$19:M$50)) -> 143 | N12: 0.8461538462 | P12: =SUM(IF($A12=$A$19:$A$50,P$19:P$50)) -> 156 | Q12: 0.9230769231
A13: ='Control Panel'!A8 -> NW7 | B13: ='Control Panel'!B8 -> Poplar and Limehouse Network | D13: =SUM(IF($A13=$A$19:$A$50,D$19:D$50)) -> 50962 | E13: =SUM(IF($A13=$A$19:$A$50,E$19:E$50)) -> 133 | F13: =SUM(IF($A13=$A$19:$A$50,F$19:F$50)) -> 121 | G13: 0.9097744361 | H13: =SUM(IF($A13=$A$19:$A$50,H$19:H$50)) -> 118 | I13: 0.8872180451 | J13: =SUM(IF($A13=$A$19:$A$50,J$19:J$50)) -> 96 | K13: 0.7218045113 | M13: =SUM(IF($A13=$A$19:$A$50,M$19:M$50)) -> 96 | N13: 0.7218045113 | P13: =SUM(IF($A13=$A$19:$A$50,P$19:P$50)) -> 115 | Q13: 0.8646616541
A14: ='Control Panel'!A9 -> NW8 | B14: ='Control Panel'!B9 -> Healthy Island Network | D14: =SUM(IF($A14=$A$19:$A$50,D$19:D$50)) -> 62657 | E14: =SUM(IF($A14=$A$19:$A$50,E$19:E$50)) -> 158 | F14: =SUM(IF($A14=$A$19:$A$50,F$19:F$50)) -> 147 | G14: 0.9303797468 | H14: =SUM(IF($A14=$A$19:$A$50,H$19:H$50)) -> 145 | I14: 0.917721519 | J14: =SUM(IF($A14=$A$19:$A$50,J$19:J$50)) -> 134 | K14: 0.8481012658 | M14: =SUM(IF($A14=$A$19:$A$50,M$19:M$50)) -> 135 | N14: 0.8544303797 | P14: =SUM(IF($A14=$A$19:$A$50,P$19:P$50)) -> 147 | Q14: 0.9303797468
A15: Total | D15: =SUM(D8:D14) -> 377446 | E15: =SUM(E8:E14) -> 936 | F15: =SUM(F8:F14) -> 870 | G15: 0.9294871795 | H15: =SUM(H8:H14) -> 842 | I15: 0.8995726496 | J15: =SUM(J8:J14) -> 764 | K15: 0.8162393162 | M15: =SUM(M8:M14) -> 769 | N15: 0.8215811966 | P15: =SUM(P8:P14) -> 848 | Q15: 0.905982906
A16: Minimum and Maximum % | F16: Min | G16: Max | H16: Min | I16: Max | J16: Min | K16: Max | M16: Min | N16: Max | P16: Min | Q16: Max
F17: =SMALL(G19:G50,COUNTIF(G19:G50,0)+1) -> 0.7826086957 | G17: =MAX(G19:G50) -> 1 | H17: =SMALL(I19:I50,COUNTIF(I19:I50,0)+1) -> 0.7647058824 | I17: =MAX(I19:I50) -> 1 | J17: =SMALL(K19:K50,COUNTIF(K19:K50,0)+1) -> 0.6 | K17: =MAX(K19:K50) -> 1 | M17: =SMALL(N19:N50,COUNTIF(N19:N50,0)+1) -> 0.6111111111 | N17: =MAX(N19:N50) -> 1 | P17: =SMALL(Q19:Q50,COUNTIF(Q19:Q50,0)+1) -> 0.7826086957 | Q17: =MAX(Q19:Q50) -> 1
A18: Practices
A19: ='Control Panel'!A12 -> NW1 | B19: ='Control Panel'!B12 -> Bethnal Green Health Centre | C19: ='Control Panel'!C12 -> F84083 | D19: =SUMIFS(OFFSET(REL_D,,MATCH($D$5,IND,0)-1),REL_D,$C$5,OrgID,$C19) -> 9766 | E19: =SUMIFS(OFFSET(REL_D,,MATCH($E$5,IND,0)-1),REL_D,$C$5,OrgID,$C19) -> 28 | F19: =SUMIFS(OFFSET(REL_D,,MATCH($F$5,IND,0)-1),REL_D,$C$5,OrgID,$C19) -> 27 | G19: =IF(OR(ISTEXT($E19),$E19=0),"N/A",F19/$E19) -> 0.9642857143 | H19: =SUMIFS(OFFSET(REL_D,,MATCH($H$5,IND,0)-1),REL_D,$C$5,OrgID,$C19) -> 25 | I19: =IF(OR(ISTEXT($E19),$E19=0),"N/A",H19/$E19) -> 0.8928571429 | J19: =SUMIFS(OFFSET(REL_D,,MATCH($J$5,IND,0)-1),REL_D,$C$5,OrgID,$C19) -> 24 | K19: =IF(OR(ISTEXT($E19),$E19=0),"N/A",J19/$E19) -> 0.8571428571 | L19: =IFERROR(ROUNDUP(IF($E19*0.95-J19>=0,$E19*0.95-J19,""),0),"") -> 3 | M19: =SUMIFS(OFFSET(REL_D,,MATCH($M$5,IND,0)-1),REL_D,$C$5,OrgID,$C19) -> 25 | N19: =IF(OR(ISTEXT($E19),$E19=0),"N/A",M19/$E19) -> 0.8928571429 | O19: =IFERROR(ROUNDUP(IF($E19*0.95-M19>=0,$E19*0.95-M19,""),0),"") -> 2 | P19: =SUMIFS(OFFSET(REL_D,,MATCH($P$5,IND,0)-1),REL_D,$C$5,OrgID,$C19) -> 26 | Q19: =IF(OR(ISTEXT($E19),$E19=0),"N/A",P19/$E19) -> 0.9285714286
A20: ='Control Panel'!A13 -> NW1 | B20: ='Control Panel'!B13 -> The Mission Practice | C20: ='Control Panel'!C13 -> F84016 | D20: 12618 | E20: 35 | F20: 32 | G20: 0.9142857143 | H20: 30 | I20: 0.8571428571 | J20: 30 | K20: 0.8571428571 | L20: 4 | M20: =SUMIFS(OFFSET(REL_D,,MATCH($M$5,IND,0)-1),REL_D,$C$5,OrgID,$C20) -> 29 | N20: 0.8285714286 | O20: 5 | P20: 31 | Q20: 0.8857142857
A21: ='Control Panel'!A14 -> NW1 | B21: ='Control Panel'!B14 -> Globe Town Surgery | C21: ='Control Panel'!C14 -> F84123 | D21: 18056 | E21: 33 | F21: 31 | G21: 0.9393939394 | H21: 30 | I21: 0.9090909091 | J21: 30 | K21: 0.9090909091 | L21: 2 | M21: =SUMIFS(OFFSET(REL_D,,MATCH($M$5,IND,0)-1),REL_D,$C$5,OrgID,$C21) -> 30 | N21: 0.9090909091 | O21: 2 | P21: 29 | Q21: 0.8787878788
A22: ='Control Panel'!A16 -> NW1 | B22: ='Control Panel'!B16 -> Strouts Place Medical Centre | C22: ='Control Panel'!C16 -> F84051 | D22: 8593 | E22: 11 | F22: 11 | G22: 1 | H22: 11 | I22: 1 | J22: 10 | K22: 0.9090909091 | L22: 1 | M22: =SUMIFS(OFFSET(REL_D,,MATCH($M$5,IND,0)-1),REL_D,$C$5,OrgID,$C22) -> 10 | N22: 0.9090909091 | O22: 1 | P22: 11 | Q22: 1
A23: ='Control Panel'!A17 -> NW2 | B23: ='Control Panel'!B17 -> Spitalfields Practice | C23: ='Control Panel'!C17 -> F84081 | D23: 14828 | E23: 29 | F23: 27 | G23: 0.9310344828 | H23: 27 | I23: 0.9310344828 | J23: 26 | K23: 0.8965517241 | L23: 2 | M23: =SUMIFS(OFFSET(REL_D,,MATCH($M$5,IND,0)-1),REL_D,$C$5,OrgID,$C23) -> 26 | N23: 0.8965517241 | O23: 2 | P23: 27 | Q23: 0.9310344828
A24: ='Control Panel'!A18 -> NW2 | B24: ='Control Panel'!B18 -> Blithehale Medical Centre | C24: ='Control Panel'!C18 -> F84718 | D24: 14732 | E24: 21 | F24: 20 | G24: 0.9523809524 | H24: 21 | I24: 1 | J24: 18 | K24: 0.8571428571 | L24: 2 | M24: =SUMIFS(OFFSET(REL_D,,MATCH($M$5,IND,0)-1),REL_D,$C$5,OrgID,$C24) -> 18 | N24: 0.8571428571 | O24: 2 | P24: 20 | Q24: 0.9523809524
A25: ='Control Panel'!A19 -> NW2 | B25: ='Control Panel'!B19 -> Health E1 | C25: ='Control Panel'!C19 -> F84733 | D25: 1109 | E25: 0 | F25: 0 | G25: N/A | H25: 0 | I25: N/A | J25: 0 | K25: N/A | L25: 0 | M25: =SUMIFS(OFFSET(REL_D,,MATCH($M$5,IND,0)-1),REL_D,$C$5,OrgID,$C25) -> 0 | N25: N/A | O25: 0 | P25: 0 | Q25: N/A
A26: ='Control Panel'!A20 -> NW2 | B26: ='Control Panel'!B20 -> Albion Health Centre | C26: ='Control Panel'!C20 -> F84012 | D26: 9699 | E26: 31 | F26: 30 | G26: 0.9677419355 | H26: 29 | I26: 0.935483871 | J26: 26 | K26: 0.8387096774 | L26: 4 | M26: =SUMIFS(OFFSET(REL_D,,MATCH($M$5,IND,0)-1),REL_D,$C$5,OrgID,$C26) -> 26 | N26: 0.8387096774 | O26: 4 | P26: 28 | Q26: 0.9032258065
A27: ='Control Panel'!A21 -> NW3&4 | B27: ='Control Panel'!B21 -> Harford Health Centre | C27: ='Control Panel'!C21 -> F84087 | D27: 9781 | E27: 35 | F27: 32 | G27: 0.9142857143 | H27: 31 | I27: 0.8857142857 | J27: 27 | K27: 0.7714285714 | L27: 7 | M27: =SUMIFS(OFFSET(REL_D,,MATCH($M$5,IND,0)-1),REL_D,$C$5,OrgID,$C27) -> 27 | N27: 0.7714285714 | O27: 7 | P27: 31 | Q27: 0.8857142857
A28: ='Control Panel'!A23 -> NW3&4 | B28: ='Control Panel'!B23 -> Goodman’s Field Health Centre | C28: ='Control Panel'!C23 -> F84039 | D28: 29370 | E28: 73 | F28: 66 | G28: 0.904109589 | H28: 65 | I28: 0.8904109589 | J28: 56 | K28: 0.7671232877 | L28: 14 | M28: =SUMIFS(OFFSET(REL_D,,MATCH($M$5,IND,0)-1),REL_D,$C$5,OrgID,$C28) -> 60 | N28: 0.8219178082 | O28: 10 | P28: 65 | Q28: 0.8904109589
A29: ='Control Panel'!A24 -> NW3&4 | B29: ='Control Panel'!B24 -> City Wellbeing Practice (Tower Medical) | C29: ='Control Panel'!C24 -> F84114 | D29: 12178 | E29: 25 | F29: 22 | G29: 0.88 | H29: 22 | I29: 0.88 | J29: 15 | K29: 0.6 | L29: 9 | M29: =SUMIFS(OFFSET(REL_D,,MATCH($M$5,IND,0)-1),REL_D,$C$5,OrgID,$C29) -> 16 | N29: 0.64 | O29: 8 | P29: 22 | Q29: 0.88
A30: ='Control Panel'!A25 -> NW3&4 | B30: ='Control Panel'!B25 -> Wapping Group Practice | C30: ='Control Panel'!C25 -> F84079 | D30: 11843 | E30: 19 | F30: 19 | G30: 1 | H30: 19 | I30: 1 | J30: 16 | K30: 0.8421052632 | L30: 3 | M30: =SUMIFS(OFFSET(REL_D,,MATCH($M$5,IND,0)-1),REL_D,$C$5,OrgID,$C30) -> 16 | N30: 0.8421052632 | O30: 3 | P30: 18 | Q30: 0.9473684211
A31: ='Control Panel'!A26 -> NW3&4 | B31: ='Control Panel'!B26 -> Jubilee Street Practice | C31: ='Control Panel'!C26 -> F84031 | D31: 14178 | E31: 44 | F31: 42 | G31: 0.9545454545 | H31: 40 | I31: 0.9090909091 | J31: 35 | K31: 0.7954545455 | L31: 7 | M31: =SUMIFS(OFFSET(REL_D,,MATCH($M$5,IND,0)-1),REL_D,$C$5,OrgID,$C31) -> 35 | N31: 0.7954545455 | O31: 7 | P31: 40 | Q31: 0.9090909091
A32: ='Control Panel'!A27 -> NW3&4 | B32: ='Control Panel'!B27 -> St Katharine Docks Practice | C32: ='Control Panel'!C27 -> F84731 | D32: 2019 | E32: 1 | F32: 1 | G32: 1 | H32: 1 | I32: 1 | J32: 1 | K32: 1 | M32: =SUMIFS(OFFSET(REL_D,,MATCH($M$5,IND,0)-1),REL_D,$C$5,OrgID,$C32) -> 1 | N32: 1 | P32: 1 | Q32: 1
A33: ='Control Panel'!A29 -> NW5 | B33: ='Control Panel'!B29 -> Harley Grove Medical Centre | C33: ='Control Panel'!C29 -> F84044 | D33: 8063 | E33: 23 | F33: 18 | G33: 0.7826086957 | H33: 18 | I33: 0.7826086957 | J33: 16 | K33: 0.6956521739 | L33: 6 | M33: =SUMIFS(OFFSET(REL_D,,MATCH($M$5,IND,0)-1),REL_D,$C$5,OrgID,$C33) -> 16 | N33: 0.6956521739 | O33: 6 | P33: 18 | Q33: 0.7826086957
A34: ='Control Panel'!A30 -> NW5 | B34: ='Control Panel'!B30 -> St Stephens Health Centre | C34: ='Control Panel'!C30 -> F84034 | D34: 13458 | E34: 37 | F34: 37 | G34: 1 | H34: 33 | I34: 0.8918918919 | J34: 35 | K34: 0.9459459459 | L34: 1 | M34: =SUMIFS(OFFSET(REL_D,,MATCH($M$5,IND,0)-1),REL_D,$C$5,OrgID,$C34) -> 33 | N34: 0.8918918919 | O34: 3 | P34: 36 | Q34: 0.972972973
A35: ='Control Panel'!A31 -> NW5 | B35: ='Control Panel'!B31 -> Ruston Street Clinic (Dr Amin) | C35: ='Control Panel'!C31 -> F84030 | D35: 3818 | E35: 6 | F35: 6 | G35: 1 | H35: 6 | I35: 1 | J35: 5 | K35: 0.8333333333 | L35: 1 | M35: =SUMIFS(OFFSET(REL_D,,MATCH($M$5,IND,0)-1),REL_D,$C$5,OrgID,$C35) -> 5 | N35: 0.8333333333 | O35: 1 | P35: 6 | Q35: 1
A36: ='Control Panel'!A32 -> NW5 | B36: ='Control Panel'!B32 -> Grove Road Surgery (Dr Shah) | C36: ='Control Panel'!C32 -> F84055 | D36: 4204 | E36: 10 | F36: 9 | G36: 0.9 | H36: 9 | I36: 0.9 | J36: 7 | K36: 0.7 | L36: 3 | M36: =SUMIFS(OFFSET(REL_D,,MATCH($M$5,IND,0)-1),REL_D,$C$5,OrgID,$C36) -> 9 | N36: 0.9 | O36: 1 | P36: 8 | Q36: 0.8
A37: ='Control Panel'!A33 -> NW5 | B37: ='Control Panel'!B33 -> The Tredegar Practice | C37: ='Control Panel'!C33 -> F84696 | D37: 6187 | E37: 15 | F37: 13 | G37: 0.8666666667 | H37: 13 | I37: 0.8666666667 | J37: 13 | K37: 0.8666666667 | L37: 2 | M37: =SUMIFS(OFFSET(REL_D,,MATCH($M$5,IND,0)-1),REL_D,$C$5,OrgID,$C37) -> 13 | N37: 0.8666666667 | O37: 2 | P37: 13 | Q37: 0.8666666667
A38: ='Control Panel'!A34 -> NW6 | B38: ='Control Panel'!B34 -> Stroudley Walk Centre | C38: ='Control Panel'!C34 -> F84676 | D38: 4223 | E38: 17 | F38: 14 | G38: 0.8235294118 | H38: 13 | I38: 0.7647058824 | J38: 14 | K38: 0.8235294118 | L38: 3 | M38: =SUMIFS(OFFSET(REL_D,,MATCH($M$5,IND,0)-1),REL_D,$C$5,OrgID,$C38) -> 14 | N38: 0.8235294118 | O38: 3 | P38: 14 | Q38: 0.8235294118
A39: ='Control Panel'!A35 -> NW6 | B39: ='Control Panel'!B35 -> St Andrews Health Centre | C39: ='Control Panel'!C35 -> Y03023 | D39: 15467 | E39: 46 | F39: 45 | G39: 0.9782608696 | H39: 44 | I39: 0.9565217391 | J39: 40 | K39: 0.8695652174 | L39: 4 | M39: =SUMIFS(OFFSET(REL_D,,MATCH($M$5,IND,0)-1),REL_D,$C$5,OrgID,$C39) -> 41 | N39: 0.8913043478 | O39: 3 | P39: 45 | Q39: 0.9782608696
A40: ='Control Panel'!A36 -> NW6 | B40: ='Control Panel'!B36 -> Merchant Street (Dr Rana) | C40: ='Control Panel'!C36 -> F84118 | D40: 6097 | E40: 10 | F40: 10 | G40: 1 | H40: 10 | I40: 1 | J40: 10 | K40: 1 | M40: =SUMIFS(OFFSET(REL_D,,MATCH($M$5,IND,0)-1),REL_D,$C$5,OrgID,$C40) -> 10 | N40: 1 | P40: 10 | Q40: 1
A41: ='Control Panel'!A37 -> NW6 | B41: ='Control Panel'!B37 -> St Pauls Way Medical Centre | C41: ='Control Panel'!C37 -> F84714 | D41: 16336 | E41: 54 | F41: 49 | G41: 0.9074074074 | H41: 45 | I41: 0.8333333333 | J41: 45 | K41: 0.8333333333 | L41: 7 | M41: =SUMIFS(OFFSET(REL_D,,MATCH($M$5,IND,0)-1),REL_D,$C$5,OrgID,$C41) -> 44 | N41: 0.8148148148 | O41: 8 | P41: 47 | Q41: 0.8703703704
A42: ='Control Panel'!A38 -> NW6 | B42: ='Control Panel'!B38 -> Bromley-By-Bow Health Centre / XX Place | C42: ='Control Panel'!O30 -> F84122 | D42: 17204 | E42: 42 | F42: 41 | G42: =IF(OR(ISTEXT($E42),$E42=0),"N/A",F42/$E42) -> 0.9761904762 | H42: 37 | I42: =IF(OR(ISTEXT($E42),$E42=0),"N/A",H42/$E42) -> 0.880952381 | J42: 35 | K42: =IF(OR(ISTEXT($E42),$E42=0),"N/A",J42/$E42) -> 0.8333333333 | L42: 5 | M42: =SUMIFS(OFFSET(REL_D,,MATCH($M$5,IND,0)-1),REL_D,$C$5,OrgID,$C42) -> 34 | N42: 0.8095238095 | O42: 6 | P42: 40 | Q42: =IF(OR(ISTEXT($E42),$E42=0),"N/A",P42/$E42) -> 0.9523809524
A43: ='Control Panel'!A39 -> NW7 | B43: ='Control Panel'!B39 -> Limehouse Practice (Gill Street) | C43: ='Control Panel'!C39 -> F84054 | D43: 11987 | E43: 28 | F43: 27 | G43: 0.9642857143 | H43: 25 | I43: 0.8928571429 | J43: 20 | K43: 0.7142857143 | L43: 7 | M43: =SUMIFS(OFFSET(REL_D,,MATCH($M$5,IND,0)-1),REL_D,$C$5,OrgID,$C43) -> 20 | N43: 0.7142857143 | O43: 7 | P43: 23 | Q43: 0.8214285714
A44: ='Control Panel'!A40 -> NW7 | B44: ='Control Panel'!B40 -> Chrisp Street Health Centre | C44: ='Control Panel'!C40 -> F84062 | D44: 15612 | E44: 43 | F44: 39 | G44: 0.9069767442 | H44: 37 | I44: 0.8604651163 | J44: 31 | K44: 0.7209302326 | L44: 10 | M44: =SUMIFS(OFFSET(REL_D,,MATCH($M$5,IND,0)-1),REL_D,$C$5,OrgID,$C44) -> 31 | N44: 0.7209302326 | O44: 10 | P44: 38 | Q44: 0.8837209302
A45: ='Control Panel'!A41 -> NW7 | B45: ='Control Panel'!B41 -> Aberfeldy Practice | C45: ='Control Panel'!C41 -> F84698 | D45: 11510 | E45: 26 | F45: 24 | G45: 0.9230769231 | H45: 24 | I45: 0.9230769231 | J45: 23 | K45: 0.8846153846 | L45: 2 | M45: =SUMIFS(OFFSET(REL_D,,MATCH($M$5,IND,0)-1),REL_D,$C$5,OrgID,$C45) -> 23 | N45: 0.8846153846 | O45: 2 | P45: 23 | Q45: 0.8846153846
A46: ='Control Panel'!A42 -> NW7 | B46: ='Control Panel'!B42 -> Gough Walk (Dr Selvan) | C46: ='Control Panel'!C42 -> F84025 | D46: 11853 | E46: 36 | F46: 31 | G46: 0.8611111111 | H46: 32 | I46: 0.8888888889 | J46: 22 | K46: 0.6111111111 | L46: 13 | M46: =SUMIFS(OFFSET(REL_D,,MATCH($M$5,IND,0)-1),REL_D,$C$5,OrgID,$C46) -> 22 | N46: 0.6111111111 | O46: 13 | P46: 31 | Q46: 0.8611111111
A47: ='Control Panel'!A43 -> NW8 | B47: ='Control Panel'!B43 -> Island Health | C47: ='Control Panel'!C43 -> F84710 | D47: 15259 | E47: 37 | F47: 35 | G47: 0.9459459459 | H47: 34 | I47: 0.9189189189 | J47: 26 | K47: 0.7027027027 | L47: 10 | M47: =SUMIFS(OFFSET(REL_D,,MATCH($M$5,IND,0)-1),REL_D,$C$5,OrgID,$C47) -> 26 | N47: 0.7027027027 | O47: 10 | P47: 35 | Q47: 0.9459459459
A48: ='Control Panel'!A44 -> NW8 | B48: ='Control Panel'!B44 -> Docklands Medical Centre | C48: ='Control Panel'!C44 -> F84656 | D48: 9970 | E48: 25 | F48: 22 | G48: 0.88 | H48: 21 | I48: 0.84 | J48: 21 | K48: 0.84 | L48: 3 | M48: =SUMIFS(OFFSET(REL_D,,MATCH($M$5,IND,0)-1),REL_D,$C$5,OrgID,$C48) -> 21 | N48: 0.84 | O48: 3 | P48: 22 | Q48: 0.88
A49: ='Control Panel'!A45 -> NW8 | B49: ='Control Panel'!B45 -> Island Medical Centre | C49: ='Control Panel'!C45 -> F84647 | D49: 9506 | E49: 18 | F49: 17 | G49: 0.9444444444 | H49: 17 | I49: 0.9444444444 | J49: 17 | K49: 0.9444444444 | L49: 1 | M49: =SUMIFS(OFFSET(REL_D,,MATCH($M$5,IND,0)-1),REL_D,$C$5,OrgID,$C49) -> 17 | N49: 0.9444444444 | O49: 1 | P49: 17 | Q49: 0.9444444444
A50: ='Control Panel'!A46 -> NW8 | B50: ='Control Panel'!B46 -> Barkantine Practice | C50: ='Control Panel'!C46 -> F84747 | D50: 27922 | E50: 78 | F50: 73 | G50: 0.9358974359 | H50: 73 | I50: 0.9358974359 | J50: 70 | K50: 0.8974358974 | L50: 5 | M50: =SUMIFS(OFFSET(REL_D,,MATCH($M$5,IND,0)-1),REL_D,$C$5,OrgID,$C50) -> 71 | N50: 0.9102564103 | O50: 4 | P50: 73 | Q50: 0.9358974359
B51: Total | D51: =SUM(D19:D50) -> 377446 | E51: =SUM(E19:E50) -> 936 | F51: =SUM(F19:F50) -> 870 | G51: 0.9294871795 | H51: =SUM(H19:H50) -> 842 | I51: 0.8995726496 | J51: =SUM(J19:J50) -> 764 | K51: 0.8162393162 | M51: =SUM(M19:M50) -> 769 | N51: 0.8215811966 | P51: =SUM(P19:P50) -> 848 | Q51: 0.905982906

Sheet Chart Data
D1: Tower Hamlets - Childhood Immunisations | M1: ="'"&K3&"'!$C$9:$AT$71" -> '1st April 2016'!$C$9:$AT$71
G2: Tower Hamlets
B3: 2015/16 Q1 | D3: =VLOOKUP(G2,'Control Panel'!B2:C9,2,FALSE) -> Total | G3: FHV | K3: 1st April 2016
G4: Patient becoming 12m | H4: Control Panel'!J34:J36
B6: =INDEX(INDIRECT(VLOOKUP($G$4,'Control Panel'!$J$41:$K$43,2,FALSE)),COLUMN(Rows!A1)) -> (01) 12 MONTH COHORT | C6: =INDEX(INDIRECT(VLOOKUP($G$4,'Control Panel'!$J$41:$K$43,2,FALSE)),COLUMN(Rows!B1)) -> (01.01) DTaP/IPV/Hib | D6: =INDEX(INDIRECT(VLOOKUP($G$4,'Control Panel'!$J$41:$K$43,2,FALSE)),COLUMN(Rows!C1)) -> (01.02) Men B (1st and 2nd) | E6: =INDEX(INDIRECT(VLOOKUP($G$4,'Control Panel'!$J$41:$K$43,2,FALSE)),COLUMN(Rows!D1)) -> (01.03) PCV
A7: Time Stamp | B7: =IFERROR(INDEX(INDIRECT(VLOOKUP($G$4,'Control Panel'!$J$36:$L$38,3,FALSE)),COLUMN(Rows!B17)),"") -> DTaP/IPV/Hib % | C7: =IFERROR(INDEX(INDIRECT(VLOOKUP($G$4,'Control Panel'!$J$36:$L$38,3,FALSE)),COLUMN(Rows!C17)),"") -> Men C / Men B % | D7: =IFERROR(INDEX(INDIRECT(VLOOKUP($G$4,'Control Panel'!$J$36:$L$38,3,FALSE)),COLUMN(Rows!D17)),"") -> PCV %
A8: 2015/16 Q1 | B8: =IFERROR(C37/B37,"") -> 0.9376718607 | C8: =IFERROR(D37/B37,"") -> 0.9541704858 | D8: =IFERROR(E37/B37,NA()) -> 0.9413382218
A9: 2015/16 Q2 | B9: 0.9582985822 | C9: 0.9624687239 | D9: =IFERROR(E38/B38,NA()) -> 0.9549624687
A10: 2015/16 Q3 | B10: 0.947094536 | C10: 0.9549002602 | D10: =IFERROR(E39/B39,NA()) -> 0.9444926279
A11: 2015/16 Q4 | B11: 0.9580291971 | C11: 0.9708029197 | D11: 0.9562043796
A12: 2016/17 Q1 | B12: 0.9402023919 | C12: 0.9466421343 | D12: 0.9383624655
A13: 2016/17 Q2 | B13: 0.9548736462 | C13: 0.9584837545 | D13: 0.9566787004
A14: 2016/17 Q3 | B14: 0.9519230769 | C14: 0.9353146853 | D14: 0.9554195804
A15: 2016/17 Q4 | B15: 0.943452381 | C15: 0.7906746032 | D15: 0.9513888889
A16: 2017/18 Q1 | B16: 0.9325938567 | C16: 0.9052901024 | D16: 0.9343003413
A17: 2017/18 Q2 | B17: 0.9333333333 | C17: 0.92 | D17: 0.9386666667
A18: 2017/18 Q3 | B18: 0.93632287 | C18: 0.9210762332 | D18: 0.9417040359
A19: 2017/18 Q4 | B19: 0.9288425047 | C19: 0.9222011385 | D19: 0.9430740038
A20: 2018/19 Q1 | B20: 0.9348795718 | C20: 0.9259589652 | D20: 0.9393398751
A21: 2018/19 Q2 | B21: 0.9109947644 | C21: 0.9083769634 | D21: 0.9267015707
A22: 2018/19 Q3 | B22: 0.9371534196 | C22: 0.9279112754 | D22: 0.9454713494
A23: 2018/19 Q4 | B23: 0.9414225941 | C23: 0.9246861925 | D23: 0.9424686192
A24: 2019/20 Q1 | B24: =IFERROR(C53/B53,"") -> 0.9312217195 | C24: =IFERROR(D53/B53,"") -> 0.92760181 | D24: =IFERROR(E53/B53,NA()) -> 0.9393665158
A25: 2019/20 Q2 | B25: =IFERROR(C54/B54,"") -> 0.9229340761 | C25: =IFERROR(D54/B54,"") -> 0.9108635097 | D25: =IFERROR(E54/B54,NA()) -> 0.9322191272
A26: 2019/20 Q3 | B26: =IFERROR(C55/B55,"") -> 0.9340659341 | C26: =IFERROR(D55/B55,"") -> 0.9194139194 | D26: =IFERROR(E55/B55,NA()) -> 0.9395604396
A27: 2019/20 Q4 | B27: =IFERROR(C56/B56,"") -> 0.9432624113 | C27: =IFERROR(D56/B56,"") -> 0.9341438703 | D27: =IFERROR(E56/B56,NA()) -> 0.9442755826
A28: 2020/21 Q1 | B28: =IFERROR(C57/B57,"") -> 0.9149952245 | C28: =IFERROR(D57/B57,"") -> 0.9130850048 | D28: =IFERROR(E57/B57,NA()) -> 0.9226361032
A29: 2020/21 Q2 | B29: =IFERROR(C58/B58,"") -> 0.9230055659 | C29: =IFERROR(D58/B58,"") -> 0.9202226345 | D29: =IFERROR(E58/B58,NA()) -> 0.9239332096
A30: 2020/21 Q3 | B30: =IFERROR(C59/B59,"") -> 0.8822412156 | C30: =IFERROR(D59/B59,"") -> 0.8841405508 | D30: =IFERROR(E59/B59,NA()) -> 0.8717948718
A31: 2020/21 Q4 | B31: =IFERROR(C60/B60,"") -> 0.8809055118 | C31: =IFERROR(D60/B60,"") -> 0.8828740157 | D31: =IFERROR(E60/B60,NA()) -> 0.9153543307
A32: 2021/22 Q1 | B32: =IFERROR(C61/B61,"") -> 0.8935140368 | C32: =IFERROR(D61/B61,"") -> 0.8935140368 | D32: =IFERROR(E61/B61,NA()) -> 0.9273959342
A33: 2021/22 Q2 | B33: =IFERROR(C62/B62,"") -> 0.8901482127 | C33: =IFERROR(D62/B62,"") -> 0.8936355711 | D33: =IFERROR(E62/B62,NA()) -> 0.9241499564
A34: 2021/22 Q3 | B34: =IFERROR(C63/B63,"") -> 0.9 | C34: =IFERROR(D63/B63,"") -> 0.9020408163 | D34: =IFERROR(E63/B63,NA()) -> 0.9224489796
A35: 2021/22 Q4 | B35: =IFERROR(C64/B64,"") -> 0.8971774194 | C35: =IFERROR(D64/B64,"") -> 0.8921370968 | D35: =IFERROR(E64/B64,NA()) -> 0.9213709677
A36: Time Stamp | B36: =IFERROR(INDEX(INDIRECT(VLOOKUP($G$4,'Control Panel'!$J$36:$K$38,2,FALSE)),COLUMN(Rows!A1)),"") -> Patients becoming 12m | C36: =IFERROR(INDEX(INDIRECT(VLOOKUP($G$4,'Control Panel'!$J$36:$K$38,2,FALSE)),COLUMN(Rows!B1)),"") -> DTaP/IPV/Hib | D36: =IFERROR(INDEX(INDIRECT(VLOOKUP($G$4,'Control Panel'!$J$36:$K$38,2,FALSE)),COLUMN(Rows!C1)),"") -> Men B
A37: 2015/16 Q1 | B37: =SUMIFS(OFFSET(REL_D,,MATCH($B$6,IND,0)-1),REL_D,$A37,IF(LEFT($D$3,1)="N",NwID,OrgID),$D$3) -> 1091 | C37: =IFERROR(SUMIFS(OFFSET(REL_D,,MATCH($C$6,IND,0)-1),REL_D,$A37,IF(LEFT($D$3,1)="N",NwID,OrgID),$D$3),"") -> 1023 | D37: =IFERROR(SUMIFS(OFFSET(REL_D,,MATCH($D$6,IND,0)-1),REL_D,$A37,IF(LEFT($D$3,1)="N",NwID,OrgID),$D$3),"") -> 1041 | E37: =IFERROR(SUMIFS(OFFSET(REL_D,,MATCH($E$6,IND,0)-1),REL_D,$A37,IF(LEFT($D$3,1)="N",NwID,OrgID),$D$3),"") -> 1027
A38: 2015/16 Q2 | B38: 1199 | C38: 1149 | D38: 1154 | E38: 1145
A39: 2015/16 Q3 | B39: 1153 | C39: 1092 | D39: 1101 | E39: 1089
A40: 2015/16 Q4 | B40: 1096 | C40: 1050 | D40: 1064 | E40: 1048
A41: 2016/17 Q1 | B41: 1087 | C41: 1022 | D41: 1029 | E41: 1020
A42: 2016/17 Q2 | B42: 1108 | C42: 1058 | D42: 1062 | E42: 1060
A43: 2016/17 Q3 | B43: 1144 | C43: 1089 | D43: 1070 | E43: 1093
A44: 2016/17 Q4 | B44: 1008 | C44: 951 | D44: 797 | E44: 959
A45: 2017/18 Q1 | B45: 1172 | C45: 1093 | D45: 1061 | E45: 1095
A46: 2017/18 Q2 | B46: 1125 | C46: 1050 | D46: 1035 | E46: 1056
A47: 2017/18 Q3 | B47: 1115 | C47: 1044 | D47: 1027 | E47: 1050
A48: 2017/18 Q4 | B48: 1054 | C48: 979 | D48: 972 | E48: 994
A49: 2018-06-01 | B49: 1121 | C49: 1048 | D49: 1038 | E49: 1053
A50: 2018-09-01 | B50: 1146 | C50: 1044 | D50: 1041 | E50: 1062
A51: 2018-12-01 | B51: 1082 | C51: 1014 | D51: 1004 | E51: 1023
A52: 2019-03-01 | B52: 956 | C52: 900 | D52: 884 | E52: 901
A53: 2019-06-01 | B53: 1105 | C53: 1029 | D53: 1025 | E53: 1038
A54: 2019-09-01 | B54: 1077 | C54: 994 | D54: 981 | E54: 1004
A55: 2019-12-01 | B55: 1092 | C55: 1020 | D55: 1004 | E55: 1026
A56: 2020-03-01 | B56: 987 | C56: 931 | D56: 922 | E56: 932
A57: 2020-06-01 | B57: 1047 | C57: 958 | D57: 956 | E57: 966
A58: 2020-09-01 | B58: 1078 | C58: 995 | D58: 992 | E58: 996
A59: 2020-12-01 | B59: 1053 | C59: 929 | D59: 931 | E59: 918
A60: 2021-03-01 | B60: 1016 | C60: 895 | D60: 897 | E60: 930
A61: 2021-06-01 | B61: 1033 | C61: 923 | D61: 923 | E61: 958
A62: 2021-09-01 | B62: 1147 | C62: 1021 | D62: 1025 | E62: 1060
A63: 2021-12-01 | B63: 980 | C63: 882 | D63: 884 | E63: 904
A64: 2022-03-01 | B64: 992 | C64: 890 | D64: 885 | E64: 914

Sheet Ranking Tables

Sheet Ranking (hidden)
B1: March 2022 | C1: =INDEX(INDIRECT(VLOOKUP($AN$39,'Control Panel'!$E$67:$G$75,2,FALSE)),COLUMN(Rows!A1)) -> (01) 12 MONTH COHORT | D1: =INDEX(INDIRECT(VLOOKUP($AN$39,'Control Panel'!$E$67:$G$75,2,FALSE)),COLUMN(Rows!B1)) -> (01.01) DTaP/IPV/Hib | E1: =INDEX(INDIRECT(VLOOKUP($AN$39,'Control Panel'!$E$67:$G$75,2,FALSE)),COLUMN(Rows!C1)) -> DTaP/IPV/Hib(%) | Q1: (02) 24 MONTH COHORT | R1: (02.02) MMR | AD1: (03) 5 YEAR COHORT | AE1: (03.05) MMR (Booster)
A2: Code | B2: Practice | C2: =VLOOKUP(C1,'Control Panel'!$E$2:$G$23,2,FALSE) -> Patients becoming 12m | D2: =VLOOKUP(D1,'Control Panel'!$E$2:$G$23,2,FALSE) -> DTaP/IPV/Hib/HepB | E2: =VLOOKUP(E1,'Control Panel'!$E$2:$F$63,2,FALSE) -> DTaP/IPV/Hib/HepB(%) | F2: Rank | H2: Order | I2: NACS | J2: Practice | K2: Ranking | O2: Code | P2: Practice | S2: MMR(%) | T2: Rank | V2: Order | W2: NACS | X2: Practice | Y2: Ranking | AB2: Code | AC2: Practice | AF2: % | AG2: Rank | AI2: Order | AJ2: NACS | AK2: Practice | AL2: Ranking | AN2: NW | AO2: (01) 12 MONTH COHORT | AP2: (01.01) DTaP/IPV/Hib | AQ2: DTaP/IPV/Hib(%) | AR2: Rank | AS2: Order | AT2: NACS | AU2: Ranking
A3: F84733 | B3: Health E1 | C3: =SUMIFS(OFFSET(REL_D,,MATCH($C$1,IND,0)-1),REL_D,$B$1,IF(LEFT($A3,1)="N",NwID,OrgID),$A3) -> 0 | D3: =SUMIFS(OFFSET(REL_D,,MATCH($D$1,IND,0)-1),REL_D,$B$1,IF(LEFT($A3,1)="N",NwID,OrgID),$A3) -> 0 | E3: =IF(OR(ISTEXT($C3),$C3=0),"0%",D3/$C3) -> 0% | F3: =IFERROR(RANK(E3,$E$3:$E$38,0)+COUNTIF(E$3:$E3,E3)-1,"36") -> 36 | H3: 36 | I3: =INDEX($A$3:$A$38,MATCH($H3,$F$3:$F$38,0)) ->  | J3: =IFERROR(INDEX($B$3:$B$39,MATCH($H3,$F$3:$F$39,0)),"Health E1") -> Health E1 | K3: =IFERROR(INDEX($E$3:$E$38,MATCH($H3,$F$3:$F$38,0)),"0%") -> 0% | O3: F84733 | P3: Health E1 | Q3: =SUMIFS(OFFSET(REL_D,,MATCH($Q$1,IND,0)-1),REL_D,$B$1,IF(LEFT($O3,1)="N",NwID,OrgID),$O3) -> 0 | R3: =SUMIFS(OFFSET(REL_D,,MATCH($R$1,IND,0)-1),REL_D,$B$1,IF(LEFT($O3,1)="N",NwID,OrgID),$O3) -> 0 | S3: =IF(OR(ISTEXT($Q3),$Q3=0),"N/A",R3/$Q3) -> N/A | T3: =IFERROR(RANK(S3,$S$3:$S$38,0)+COUNTIF($S$3:S3,S3)-1,"36") -> 36 | V3: 36 | W3: =INDEX($O$2:$O$38,MATCH($V3,$T$2:$T$38,0)) ->  | X3: =IFERROR(INDEX($P$3:$P$39,MATCH($V3,$T$3:$T$39,0)),"Health E1") -> Health E1 | Y3: =IFERROR(INDEX($S$3:$S$38,MATCH($V3,$T$3:$T$38,0)),"0%") -> 0% | AB3: F84733 | AC3: Health E1 | AD3: =SUMIFS(OFFSET(REL_D,,MATCH($AD$1,IND,0)-1),REL_D,$B$1,IF(LEFT($AB3,1)="N",NwID,OrgID),$AB3) -> 0 | AE3: =SUMIFS(OFFSET(REL_D,,MATCH($AE$1,IND,0)-1),REL_D,$B$1,IF(LEFT($AB3,1)="N",NwID,OrgID),$AB3) -> 0 | AF3: =IF(OR(ISTEXT($AD3),$AD3=0),"N/A",AE3/$AD3) -> N/A | AG3: =IFERROR(RANK(AF3,$AF$3:$AF$38,0)+COUNTIF($AF$3:AF3,AF3)-1,"36") -> 36 | AI3: 36 | AJ3: =INDEX($AB$2:$AB$38,MATCH($AI3,$AG$2:$AG$38,0)) ->  | AK3: =IFERROR(INDEX($AC$2:$AC$38,MATCH($AI3,$AG$2:$AG$38,0)),"Health E1") -> Health E1 | AL3: =IFERROR(INDEX($AF$3:$AF$38,MATCH($AI3,$AG$3:$AG$38,0)),"0%") -> 0% | AN3: NW1 | AO3: =SUMIFS(OFFSET(REL_D,,MATCH($AO$2,IND,0)-1),REL_D,$B$1,IF(LEFT(AN3,1)="N",NwID,OrgID),AN3) -> 96 | AP3: =SUMIFS(OFFSET(REL_D,,MATCH($AP$2,IND,0)-1),REL_D,$B$1,IF(LEFT(AN3,1)="N",NwID,OrgID),AN3) -> 82 | AQ3: =IF(OR(ISTEXT($AO3),$AO3=0),"N/A",AP3/$AO3) -> 0.8541666667 | AR3: =IFERROR(RANK(AQ3,$AQ$3:$AQ$11,0)+COUNTIF($AQ3:AQ$3,AQ3)-1,"36") -> 7 | AS3: 9 | AT3: =INDEX($AN$3:$AN$11,MATCH($AS3,$AR$3:$AR$11,0)) ->  | AU3: =IFERROR(INDEX($AQ$3:$AQ$11,MATCH($AS3,$AR$3:$AR$11,0)),"0%") -> 0%
A4: F84123 | B4: Globe Town Surgery | C4: 33 | D4: 27 | E4: =IF(OR(ISTEXT($C4),$C4=0),"N/A",D4/$C4) -> 0.8181818182 | F4: =IFERROR(RANK(E4,$E$3:$E$38,0)+COUNTIF(E$3:$E4,E4)-1,"37") -> 31 | H4: 35 | I4: =INDEX($A$2:$A$38,MATCH($H4,$F$2:$F$38,0)) ->  | J4: =IFERROR(INDEX($B$3:$B$39,MATCH($H4,$F$3:$F$39,0)),"Pollard Row Surgery") -> Pollard Row Surgery | K4: =IFERROR(INDEX($E$3:$E$38,MATCH($H4,$F$3:$F$38,0)),"0%") -> 0% | O4: F84123 | P4: Globe Town Surgery | Q4: 29 | R4: 25 | S4: 0.8620689655 | T4: =IFERROR(RANK(S4,$S$3:$S$38,0)+COUNTIF($S$3:S4,S4)-1,"36") -> 14 | V4: 35 | W4: =INDEX($O$2:$O$38,MATCH($V4,$T$2:$T$38,0)) ->  | X4: =IFERROR(INDEX($P$3:$P$39,MATCH($V4,$T$3:$T$39,0)),"Pollard Row Surgery") -> Pollard Row Surgery | Y4: =IFERROR(INDEX($S$3:$S$38,MATCH($V4,$T$3:$T$38,0)),"0%") -> 0% | AB4: F84123 | AC4: Globe Town Surgery | AD4: 33 | AE4: 30 | AF4: 0.9090909091 | AG4: =IFERROR(RANK(AF4,$AF$3:$AF$38,0)+COUNTIF($AF$3:AF4,AF4)-1,"36") -> 5 | AI4: 35 | AJ4: =INDEX($AB$2:$AB$38,MATCH($AI4,$AG$2:$AG$38,0)) ->  | AK4: =IFERROR(INDEX($AC$2:$AC$38,MATCH($AI4,$AG$2:$AG$38,0)),"Pollard Row Surgery") -> Pollard Row Surgery | AL4: =IFERROR(INDEX($AF$3:$AF$38,MATCH($AI4,$AG$3:$AG$38,0)),"0%") -> 0% | AN4: NW6 | AO4: 167 | AP4: 151 | AQ4: 0.9041916168 | AR4: =IFERROR(RANK(AQ4,$AQ$3:$AQ$11,0)+COUNTIF($AQ$3:AQ4,AQ4)-1,"36") -> 4 | AS4: 8 | AT4: =INDEX($AN$3:$AN$11,MATCH($AS4,$AR$3:$AR$11,0)) -> NW7 | AU4: =IFERROR(INDEX($AQ$3:$AQ$11,MATCH($AS4,$AR$3:$AR$11,0)),"0%") -> 0.8496240602
A5: F84051 | B5: Strouts Place Medical Centre | C5: 18 | D5: 16 | E5: 0.8888888889 | F5: =IFERROR(RANK(E5,$E$3:$E$38,0)+COUNTIF(E$3:$E5,E5)-1,"37") -> 19 | H5: 34 | J5: =IFERROR(INDEX($B$3:$B$39,MATCH($H5,$F$3:$F$39,0)),"Health E1") -> Health E1 | K5: 0% | O5: F84051 | P5: Strouts Place Medical Centre | Q5: 15 | R5: 12 | S5: 0.8 | T5: =IFERROR(RANK(S5,$S$3:$S$38,0)+COUNTIF($S$3:S5,S5)-1,"36") -> 27 | V5: 34 | X5: =IFERROR(INDEX($P$3:$P$39,MATCH($V5,$T$3:$T$39,0)),"Health E1") -> Health E1 | Y5: 0% | AB5: F84051 | AC5: Strouts Place Medical Centre | AD5: 11 | AE5: 10 | AF5: 0.9090909091 | AG5: =IFERROR(RANK(AF5,$AF$3:$AF$38,0)+COUNTIF($AF$3:AF5,AF5)-1,"36") -> 6 | AI5: 34 | AK5: =IFERROR(INDEX($AC$2:$AC$38,MATCH($AI5,$AG$2:$AG$38,0)),"Health E1") -> Health E1 | AL5: 0% | AN5: NW2 | AO5: 90 | AP5: 85 | AQ5: 0.9444444444 | AR5: =IFERROR(RANK(AQ5,$AQ$3:$AQ$11,0)+COUNTIF($AQ$3:AQ5,AQ5)-1,"36") -> 1 | AS5: 7 | AT5: NW1 | AU5: 0.8541666667
A6: F84044 | B6: Harley Grove Medical Centre | C6: 23 | D6: 21 | E6: 0.9130434783 | F6: =IFERROR(RANK(E6,$E$3:$E$38,0)+COUNTIF(E$3:$E6,E6)-1,"37") -> 14 | H6: 33 | J6: Health E1 | K6: 0% | O6: F84044 | P6: Harley Grove Medical Centre | Q6: 18 | R6: 16 | S6: 0.8888888889 | T6: =IFERROR(RANK(S6,$S$3:$S$38,0)+COUNTIF($S$3:S6,S6)-1,"36") -> 11 | V6: 33 | X6: Health E1 | Y6: 0% | AB6: F84044 | AC6: Harley Grove Medical Centre | AD6: 23 | AE6: 16 | AF6: 0.6956521739 | AG6: =IFERROR(RANK(AF6,$AF$3:$AF$38,0)+COUNTIF($AF$3:AF6,AF6)-1,"36") -> 30 | AI6: 33 | AK6: Health E1 | AL6: 0% | AN6: Total | AO6: 992 | AP6: 890 | AQ6: 0.8971774194 | AR6: =IFERROR(RANK(AQ6,$AQ$3:$AQ$11,0)+COUNTIF($AQ$3:AQ6,AQ6)-1,"36") -> 5 | AS6: 6 | AT6: NW3&4 | AU6: 0.8820960699
H7: 32 | I7: F84698 | J7: Aberfeldy Practice | K7: 0.8181818182 | O7: F84046 | P7: Brayford Square (Dr Varma) | Q7: 0 | R7: 0 | S7: N/A | T7: =IFERROR(RANK(S7,$S$3:$S$38,0)+COUNTIF($S$3:S7,S7)-1,"36") -> 36 | V7: 32 | W7: F84055 | X7: Grove Road Surgery (Dr Shah) | Y7: 0.75 | AB7: F84046 | AC7: Brayford Square (Dr Varma) | AD7: 0 | AE7: 0 | AF7: N/A | AG7: =IFERROR(RANK(AF7,$AF$3:$AF$38,0)+COUNTIF($AF$3:AF7,AF7)-1,"36") -> 36 | AI7: 32 | AJ7: F84025 | AK7: Gough Walk (Dr Selvan) | AL7: 0.6111111111 | AN7: NW4 | AO7: 0 | AP7: 0 | AQ7: N/A | AR7: =IFERROR(RANK(AQ7,$AQ$3:$AQ$11,0)+COUNTIF($AQ$3:AQ7,AQ7)-1,"36") -> 36 | AS7: 5 | AT7: Total | AU7: 0.8971774194
A8: F84079 | B8: Wapping Group Practice | C8: 19 | D8: 19 | E8: 1 | F8: =IFERROR(RANK(E8,$E$3:$E$38,0)+COUNTIF(E$3:$E8,E8)-1,"37") -> 1 | H8: 31 | I8: F84123 | J8: Globe Town Surgery | K8: 0.8181818182 | O8: F84079 | P8: Wapping Group Practice | Q8: 25 | R8: 23 | S8: 0.92 | T8: =IFERROR(RANK(S8,$S$3:$S$38,0)+COUNTIF($S$3:S8,S8)-1,"36") -> 7 | V8: 31 | W8: F84710 | X8: Island Health | Y8: 0.7941176471 | AB8: F84079 | AC8: Wapping Group Practice | AD8: 19 | AE8: 16 | AF8: 0.8421052632 | AG8: =IFERROR(RANK(AF8,$AF$3:$AF$38,0)+COUNTIF($AF$3:AF8,AF8)-1,"36") -> 15 | AI8: 31 | AJ8: F84114 | AK8: City Wellbeing Practice (Tower Medical) | AL8: 0.64 | AN8: NW7 | AO8: 133 | AP8: 113 | AQ8: 0.8496240602 | AR8: =IFERROR(RANK(AQ8,$AQ$3:$AQ$11,0)+COUNTIF($AQ$3:AQ8,AQ8)-1,"36") -> 8 | AS8: 4 | AT8: NW6 | AU8: 0.9041916168
A9: F84122 | B9: Bromley-By-Bow Health Centre / XX Place | C9: 39 | D9: 37 | E9: 0.9487179487 | F9: =IFERROR(RANK(E9,$E$3:$E$38,0)+COUNTIF(E$3:$E9,E9)-1,"37") -> 9 | H9: 30 | I9: F84039 | J9: Goodman’s Field Health Centre | K9: 0.8252427184 | O9: F84122 | P9: Bromley-By-Bow Health Centre / XX Place | Q9: 42 | R9: 37 | S9: 0.880952381 | T9: =IFERROR(RANK(S9,$S$3:$S$38,0)+COUNTIF($S$3:S9,S9)-1,"36") -> 12 | V9: 30 | W9: F84031 | X9: Jubilee Street Practice | Y9: 0.7954545455 | AB9: F84122 | AC9: Bromley-By-Bow Health Centre / XX Place | AD9: 42 | AE9: 34 | AF9: 0.8095238095 | AG9: =IFERROR(RANK(AF9,$AF$3:$AF$38,0)+COUNTIF($AF$3:AF9,AF9)-1,"36") -> 24 | AI9: 30 | AJ9: F84044 | AK9: Harley Grove Medical Centre | AL9: 0.6956521739 | AN9: NW3&4 | AO9: 229 | AP9: 202 | AQ9: 0.8820960699 | AR9: =IFERROR(RANK(AQ9,$AQ$3:$AQ$11,0)+COUNTIF($AQ$3:AQ9,AQ9)-1,"36") -> 6 | AS9: 3 | AT9: NW5 | AU9: 0.9238095238
A10: F84081 | B10: Spitalfields Practice | C10: 25 | D10: 22 | E10: 0.88 | F10: =IFERROR(RANK(E10,$E$3:$E$38,0)+COUNTIF(E$3:$E10,E10)-1,"37") -> 20 | H10: 29 | I10: F84030 | J10: Ruston Street Clinic (Dr Amin) | K10: 0.8461538462 | O10: F84081 | P10: Spitalfields Practice | Q10: 27 | R10: 23 | S10: 0.8518518519 | T10: =IFERROR(RANK(S10,$S$3:$S$38,0)+COUNTIF($S$3:S10,S10)-1,"36") -> 17 | V10: 29 | W10: F84030 | X10: Ruston Street Clinic (Dr Amin) | Y10: 0.8 | AB10: F84081 | AC10: Spitalfields Practice | AD10: 29 | AE10: 26 | AF10: 0.8965517241 | AG10: =IFERROR(RANK(AF10,$AF$3:$AF$38,0)+COUNTIF($AF$3:AF10,AF10)-1,"36") -> 8 | AI10: 29 | AJ10: F84710 | AK10: Island Health | AL10: 0.7027027027 | AN10: NW5 | AO10: 105 | AP10: 97 | AQ10: 0.9238095238 | AR10: =IFERROR(RANK(AQ10,$AQ$3:$AQ$11,0)+COUNTIF($AQ$3:AQ10,AQ10)-1,"36") -> 3 | AS10: 2 | AT10: NW8 | AU10: 0.9302325581
A11: Y03023 | B11: St Andrews Health Centre | C11: 50 | D11: 43 | E11: 0.86 | F11: =IFERROR(RANK(E11,$E$3:$E$38,0)+COUNTIF(E$3:$E11,E11)-1,"37") -> 26 | H11: 28 | I11: F84083 | J11: Bethnal Green Health Centre | K11: 0.85 | O11: Y03023 | P11: St Andrews Health Centre | Q11: 65 | R11: 59 | S11: 0.9076923077 | T11: =IFERROR(RANK(S11,$S$3:$S$38,0)+COUNTIF($S$3:S11,S11)-1,"36") -> 8 | V11: 28 | W11: F84647 | X11: Island Medical Centre | Y11: 0.8 | AB11: Y03023 | AC11: St Andrews Health Centre | AD11: 46 | AE11: 41 | AF11: 0.8913043478 | AG11: =IFERROR(RANK(AF11,$AF$3:$AF$38,0)+COUNTIF($AF$3:AF11,AF11)-1,"36") -> 11 | AI11: 28 | AJ11: F84054 | AK11: Limehouse Practice (Gill Street) | AL11: 0.7142857143 | AN11: NW8 | AO11: =SUMIFS(OFFSET(REL_D,,MATCH($AO$2,IND,0)-1),REL_D,$B$1,IF(LEFT(AN11,1)="N",NwID,OrgID),AN11) -> 172 | AP11: =SUMIFS(OFFSET(REL_D,,MATCH($AP$2,IND,0)-1),REL_D,$B$1,IF(LEFT(AN11,1)="N",NwID,OrgID),AN11) -> 160 | AQ11: =IF(OR(ISTEXT($AO11),$AO11=0),"N/A",AP11/$AO11) -> 0.9302325581 | AR11: =IFERROR(RANK(AQ11,$AQ$3:$AQ$11,0)+COUNTIF($AQ$3:AQ11,AQ11)-1,"36") -> 2 | AS11: 1 | AT11: NW2 | AU11: 0.9444444444
A12: F84747 | B12: Barkantine Practice | C12: 91 | D12: 81 | E12: 0.8901098901 | F12: =IFERROR(RANK(E12,$E$3:$E$38,0)+COUNTIF(E$3:$E12,E12)-1,"37") -> 18 | H12: 27 | I12: F84062 | J12: Chrisp Street Health Centre | K12: 0.8510638298 | O12: F84747 | P12: Barkantine Practice | Q12: 99 | R12: 82 | S12: 0.8282828283 | T12: =IFERROR(RANK(S12,$S$3:$S$38,0)+COUNTIF($S$3:S12,S12)-1,"36") -> 19 | V12: 27 | W12: F84051 | X12: Strouts Place Medical Centre | Y12: 0.8 | AB12: F84747 | AC12: Barkantine Practice | AD12: 78 | AE12: 71 | AF12: 0.9102564103 | AG12: =IFERROR(RANK(AF12,$AF$3:$AF$38,0)+COUNTIF($AF$3:AF12,AF12)-1,"36") -> 4 | AI12: 27 | AJ12: F84062 | AK12: Chrisp Street Health Centre | AL12: 0.7209302326
A13: F84698 | B13: Aberfeldy Practice | C13: 33 | D13: 27 | E13: 0.8181818182 | F13: =IFERROR(RANK(E13,$E$3:$E$38,0)+COUNTIF(E$3:$E13,E13)-1,"37") -> 32 | H13: 26 | I13: Y03023 | J13: St Andrews Health Centre | K13: 0.86 | O13: F84698 | P13: Aberfeldy Practice | Q13: 35 | R13: 29 | S13: 0.8285714286 | T13: =IFERROR(RANK(S13,$S$3:$S$38,0)+COUNTIF($S$3:S13,S13)-1,"36") -> 18 | V13: 26 | W13: F84083 | X13: Bethnal Green Health Centre | Y13: 0.8095238095 | AB13: F84698 | AC13: Aberfeldy Practice | AD13: 26 | AE13: 23 | AF13: 0.8846153846 | AG13: =IFERROR(RANK(AF13,$AF$3:$AF$38,0)+COUNTIF($AF$3:AF13,AF13)-1,"36") -> 12 | AI13: 26 | AJ13: F84087 | AK13: Harford Health Centre | AL13: 0.7714285714
A14: F84031 | B14: Jubilee Street Practice | C14: 39 | D14: 36 | E14: 0.9230769231 | F14: =IFERROR(RANK(E14,$E$3:$E$38,0)+COUNTIF(E$3:$E14,E14)-1,"37") -> 12 | H14: 25 | I14: F84025 | J14: Gough Walk (Dr Selvan) | K14: 0.8620689655 | O14: F84031 | P14: Jubilee Street Practice | Q14: 44 | R14: 35 | S14: 0.7954545455 | T14: =IFERROR(RANK(S14,$S$3:$S$38,0)+COUNTIF($S$3:S14,S14)-1,"36") -> 30 | V14: 25 | W14: F84656 | X14: Docklands Medical Centre | Y14: 0.8095238095 | AB14: F84031 | AC14: Jubilee Street Practice | AD14: 44 | AE14: 35 | AF14: 0.7954545455 | AG14: =IFERROR(RANK(AF14,$AF$3:$AF$38,0)+COUNTIF($AF$3:AF14,AF14)-1,"36") -> 25 | AI14: 25 | AJ14: F84031 | AK14: Jubilee Street Practice | AL14: 0.7954545455 | AN14: NW | AO14: (02) 24 MONTH COHORT | AP14: (02.02) MMR | AQ14: MMR(%) | AR14: Rank | AS14: Order | AT14: NACS | AU14: Ranking
A15: Total | B15: Tower Hamlets | C15: 992 | D15: 890 | E15: 0.8971774194 | F15: =IFERROR(RANK(E15,$E$3:$E$38,0)+COUNTIF(E$3:$E15,E15)-1,"37") -> 17 | H15: 24 | I15: F84055 | J15: Grove Road Surgery (Dr Shah) | K15: 0.875 | O15: Total | P15: Tower Hamlets | Q15: 974 | R15: 836 | S15: 0.8583162218 | T15: =IFERROR(RANK(S15,$S$3:$S$38,0)+COUNTIF($S$3:S15,S15)-1,"36") -> 15 | V15: 24 | W15: F84054 | X15: Limehouse Practice (Gill Street) | Y15: 0.8125 | AB15: Total | AC15: Tower Hamlets | AD15: 936 | AE15: 769 | AF15: 0.8215811966 | AG15: =IFERROR(RANK(AF15,$AF$3:$AF$38,0)+COUNTIF($AF$3:AF15,AF15)-1,"36") -> 22 | AI15: 24 | AJ15: F84122 | AK15: Bromley-By-Bow Health Centre / XX Place | AL15: 0.8095238095 | AN15: NW1 | AO15: =SUMIFS(OFFSET(REL_D,,MATCH($AO$14,IND,0)-1),REL_D,$B$1,IF(LEFT(AN15,1)="N",NwID,OrgID),AN15) -> 94 | AP15: =SUMIFS(OFFSET(REL_D,,MATCH($AP$14,IND,0)-1),REL_D,$B$1,IF(LEFT(AN15,1)="N",NwID,OrgID),AN15) -> 81 | AQ15: =IF(OR(ISTEXT($AO15),$AO15=0),"N/A",AP15/$AO15) -> 0.8617021277 | AR15: =RANK(AQ15,$AQ$15:$AQ$23,0)+COUNTIF(AQ$15:$AQ15,AQ15)-1 -> 3 | AS15: 9 | AT15: =INDEX($AN$15:$AN$23,MATCH($AS15,$AR$15:$AR$23,0)) ->  | AU15: =IFERROR(INDEX($AQ$15:$AQ$23,MATCH($AS15,$AR$15:$AR$23,0)),"0%") -> 0%
A16: F84118 | B16: Merchant Street (Dr Rana) | C16: 13 | D16: 12 | E16: 0.9230769231 | F16: =IFERROR(RANK(E16,$E$3:$E$38,0)+COUNTIF(E$3:$E16,E16)-1,"37") -> 13 | H16: 23 | I16: F84054 | J16: Limehouse Practice (Gill Street) | K16: 0.875 | O16: F84118 | P16: Merchant Street (Dr Rana) | Q16: 7 | R16: 6 | S16: 0.8571428571 | T16: =IFERROR(RANK(S16,$S$3:$S$38,0)+COUNTIF($S$3:S16,S16)-1,"36") -> 16 | V16: 23 | W16: F84039 | X16: Goodman’s Field Health Centre | Y16: 0.8157894737 | AB16: F84118 | AC16: Merchant Street (Dr Rana) | AD16: 10 | AE16: 10 | AF16: 1 | AG16: =IFERROR(RANK(AF16,$AF$3:$AF$38,0)+COUNTIF($AF$3:AF16,AF16)-1,"36") -> 1 | AI16: 23 | AJ16: F84714 | AK16: St Pauls Way Medical Centre | AL16: 0.8148148148 | AN16: NW6 | AO16: 167 | AP16: 153 | AQ16: 0.9161676647 | AR16: =RANK(AQ16,$AQ$15:$AQ$23,0)+COUNTIF(AQ$15:$AQ16,AQ16)-1 -> 1 | AS16: 8 | AT16: =INDEX($AN$15:$AN$23,MATCH($AS16,$AR$15:$AR$23,0)) -> NW8 | AU16: =IFERROR(INDEX($AQ$15:$AQ$23,MATCH($AS16,$AR$15:$AR$23,0)),"0%") -> 0.816091954
A17: F84696 | B17: The Tredegar Practice | C17: 18 | D17: 18 | E17: 1 | F17: =IFERROR(RANK(E17,$E$3:$E$38,0)+COUNTIF(E$3:$E17,E17)-1,"37") -> 2 | H17: 22 | I17: F84114 | J17: City Wellbeing Practice (Tower Medical) | K17: 0.875 | O17: F84696 | P17: The Tredegar Practice | Q17: 12 | R17: 12 | S17: 1 | T17: =IFERROR(RANK(S17,$S$3:$S$38,0)+COUNTIF($S$3:S17,S17)-1,"36") -> 1 | V17: 22 | W17: F84087 | X17: Harford Health Centre | Y17: 0.8181818182 | AB17: F84696 | AC17: The Tredegar Practice | AD17: 15 | AE17: 13 | AF17: 0.8666666667 | AG17: =IFERROR(RANK(AF17,$AF$3:$AF$38,0)+COUNTIF($AF$3:AF17,AF17)-1,"36") -> 13 | AI17: 22 | AJ17: Total | AK17: Tower Hamlets | AL17: 0.8215811966 | AN17: NW2 | AO17: 90 | AP17: 81 | AQ17: 0.9 | AR17: =RANK(AQ17,$AQ$15:$AQ$23,0)+COUNTIF(AQ$15:$AQ17,AQ17)-1 -> 2 | AS17: 7 | AT17: NW3&4 | AU17: 0.8394495413
A18: F84062 | B18: Chrisp Street Health Centre | C18: 47 | D18: 40 | E18: 0.8510638298 | F18: =IFERROR(RANK(E18,$E$3:$E$38,0)+COUNTIF(E$3:$E18,E18)-1,"37") -> 27 | H18: 21 | I18: F84016 | J18: The Mission Practice | K18: 0.88 | O18: F84062 | P18: Chrisp Street Health Centre | Q18: 41 | R18: 37 | S18: 0.9024390244 | T18: =IFERROR(RANK(S18,$S$3:$S$38,0)+COUNTIF($S$3:S18,S18)-1,"36") -> 9 | V18: 21 | W18: F84025 | X18: Gough Walk (Dr Selvan) | Y18: 0.8205128205 | AB18: F84062 | AC18: Chrisp Street Health Centre | AD18: 43 | AE18: 31 | AF18: 0.7209302326 | AG18: =IFERROR(RANK(AF18,$AF$3:$AF$38,0)+COUNTIF($AF$3:AF18,AF18)-1,"36") -> 27 | AI18: 21 | AJ18: F84039 | AK18: Goodman’s Field Health Centre | AL18: 0.8219178082 | AN18: Total | AO18: 974 | AP18: 836 | AQ18: 0.8583162218 | AR18: =RANK(AQ18,$AQ$15:$AQ$23,0)+COUNTIF(AQ$15:$AQ18,AQ18)-1 -> 4 | AS18: 6 | AT18: NW7 | AU18: 0.843537415
A19: F84114 | B19: City Wellbeing Practice (Tower Medical) | C19: 32 | D19: 28 | E19: 0.875 | F19: =IFERROR(RANK(E19,$E$3:$E$38,0)+COUNTIF(E$3:$E19,E19)-1,"37") -> 22 | H19: 20 | I19: F84081 | J19: Spitalfields Practice | K19: 0.88 | O19: F84114 | P19: City Wellbeing Practice (Tower Medical) | Q19: 37 | R19: 33 | S19: 0.8918918919 | T19: =IFERROR(RANK(S19,$S$3:$S$38,0)+COUNTIF($S$3:S19,S19)-1,"36") -> 10 | V19: 20 | W19: F84034 | X19: St Stephens Health Centre | Y19: 0.825 | AB19: F84114 | AC19: City Wellbeing Practice (Tower Medical) | AD19: 25 | AE19: 16 | AF19: 0.64 | AG19: =IFERROR(RANK(AF19,$AF$3:$AF$38,0)+COUNTIF($AF$3:AF19,AF19)-1,"36") -> 31 | AI19: 20 | AJ19: F84676 | AK19: Stroudley Walk Centre | AL19: 0.8235294118 | AN19: NW4 | AO19: 0 | AP19: 0 | AQ19: N/A | AR19: =RANK(AQ19,$AQ$15:$AQ$23,0)+COUNTIF(AQ$15:$AQ19,AQ19)-1 ->  | AS19: 5 | AT19: NW5 | AU19: 0.8571428571
A20: Y00212 | B20: Pollard Row Surgery | C20: 0 | D20: 0 | E20: N/A | F20: =IFERROR(RANK(E20,$E$3:$E$38,0)+COUNTIF(E$3:$E20,E20)-1,"35") -> 35 | H20: 19 | I20: F84051 | J20: Strouts Place Medical Centre | K20: 0.8888888889 | O20: Y00212 | P20: Pollard Row Surgery | Q20: 0 | R20: 0 | S20: N/A | T20: =IFERROR(RANK(S20,$S$3:$S$38,0)+COUNTIF($S$3:S20,S20)-1,"36") -> 36 | V20: 19 | W20: F84747 | X20: Barkantine Practice | Y20: 0.8282828283 | AB20: Y00212 | AC20: Pollard Row Surgery | AD20: 0 | AE20: 0 | AF20: N/A | AG20: =IFERROR(RANK(AF20,$AF$3:$AF$38,0)+COUNTIF($AF$3:AF20,AF20)-1,"36") -> 36 | AI20: 19 | AJ20: F84016 | AK20: The Mission Practice | AL20: 0.8285714286 | AN20: NW7 | AO20: 147 | AP20: 124 | AQ20: 0.843537415 | AR20: =RANK(AQ20,$AQ$15:$AQ$23,0)+COUNTIF(AQ$15:$AQ20,AQ20)-1 -> 6 | AS20: 4 | AT20: =(INDEX($AN$15:$AN$23,MATCH($AS20,$AR$15:$AR$23,0))) -> Total | AU20: =IFERROR(INDEX($AQ$15:$AQ$23,MATCH($AS20,$AR$15:$AR$23,0)),"0%") -> 0.8583162218
A21: F84718 | B21: Blithehale Medical Centre | C21: 36 | D21: 35 | E21: 0.9722222222 | F21: =IFERROR(RANK(E21,$E$3:$E$38,0)+COUNTIF(E$3:$E21,E21)-1,"37") -> 5 | H21: 18 | I21: F84747 | J21: Barkantine Practice | K21: 0.8901098901 | O21: F84718 | P21: Blithehale Medical Centre | Q21: 32 | R21: 31 | S21: 0.96875 | T21: =IFERROR(RANK(S21,$S$3:$S$38,0)+COUNTIF($S$3:S21,S21)-1,"36") -> 4 | V21: 18 | W21: F84698 | X21: Aberfeldy Practice | Y21: 0.8285714286 | AB21: F84718 | AC21: Blithehale Medical Centre | AD21: 21 | AE21: 18 | AF21: 0.8571428571 | AG21: =IFERROR(RANK(AF21,$AF$3:$AF$38,0)+COUNTIF($AF$3:AF21,AF21)-1,"36") -> 14 | AI21: 18 | AJ21: F84030 | AK21: Ruston Street Clinic (Dr Amin) | AL21: 0.8333333333 | AN21: NW3&4 | AO21: 218 | AP21: 183 | AQ21: 0.8394495413 | AR21: =RANK(AQ21,$AQ$15:$AQ$23,0)+COUNTIF(AQ$15:$AQ21,AQ21)-1 -> 7 | AS21: 3 | AT21: NW1 | AU21: 0.8617021277
A22: F84025 | B22: Gough Walk (Dr Selvan) | C22: 29 | D22: 25 | E22: 0.8620689655 | F22: =IFERROR(RANK(E22,$E$3:$E$38,0)+COUNTIF(E$3:$E22,E22)-1,"37") -> 25 | H22: 17 | I22: Total | J22: Tower Hamlets | K22: 0.8971774194 | O22: F84025 | P22: Gough Walk (Dr Selvan) | Q22: 39 | R22: 32 | S22: 0.8205128205 | T22: =IFERROR(RANK(S22,$S$3:$S$38,0)+COUNTIF($S$3:S22,S22)-1,"36") -> 21 | V22: 17 | W22: F84081 | X22: Spitalfields Practice | Y22: 0.8518518519 | AB22: F84025 | AC22: Gough Walk (Dr Selvan) | AD22: 36 | AE22: 22 | AF22: 0.6111111111 | AG22: =IFERROR(RANK(AF22,$AF$3:$AF$38,0)+COUNTIF($AF$3:AF22,AF22)-1,"36") -> 32 | AI22: 17 | AJ22: F84012 | AK22: Albion Health Centre | AL22: 0.8387096774 | AN22: NW5 | AO22: 84 | AP22: 72 | AQ22: 0.8571428571 | AR22: =RANK(AQ22,$AQ$15:$AQ$23,0)+COUNTIF(AQ$15:$AQ22,AQ22)-1 -> 5 | AS22: 2 | AT22: NW2 | AU22: 0.9
A23: F84647 | B23: Island Medical Centre | C23: 25 | D23: 24 | E23: 0.96 | F23: =IFERROR(RANK(E23,$E$3:$E$38,0)+COUNTIF(E$3:$E23,E23)-1,"37") -> 8 | H23: 16 | I23: F84714 | J23: St Pauls Way Medical Centre | K23: 0.9074074074 | O23: F84647 | P23: Island Medical Centre | Q23: 20 | R23: 16 | S23: 0.8 | T23: =IFERROR(RANK(S23,$S$3:$S$38,0)+COUNTIF($S$3:S23,S23)-1,"36") -> 28 | V23: 16 | W23: F84118 | X23: Merchant Street (Dr Rana) | Y23: 0.8571428571 | AB23: F84647 | AC23: Island Medical Centre | AD23: 18 | AE23: 17 | AF23: 0.9444444444 | AG23: =IFERROR(RANK(AF23,$AF$3:$AF$38,0)+COUNTIF($AF$3:AF23,AF23)-1,"36") -> 3 | AI23: 16 | AJ23: F84656 | AK23: Docklands Medical Centre | AL23: 0.84 | AN23: NW8 | AO23: =SUMIFS(OFFSET(REL_D,,MATCH($AO$14,IND,0)-1),REL_D,$B$1,IF(LEFT(AN23,1)="N",NwID,OrgID),AN23) -> 174 | AP23: =SUMIFS(OFFSET(REL_D,,MATCH($AP$14,IND,0)-1),REL_D,$B$1,IF(LEFT(AN23,1)="N",NwID,OrgID),AN23) -> 142 | AQ23: =IF(OR(ISTEXT($AO23),$AO23=0),"N/A",AP23/$AO23) -> 0.816091954 | AR23: =RANK(AQ23,$AQ$15:$AQ$23,0)+COUNTIF(AQ$15:$AQ23,AQ23)-1 -> 8 | AS23: 1 | AT23: NW6 | AU23: 0.9161676647
A24: F84714 | B24: St Pauls Way Medical Centre | C24: 54 | D24: 49 | E24: 0.9074074074 | F24: =IFERROR(RANK(E24,$E$3:$E$38,0)+COUNTIF(E$3:$E24,E24)-1,"37") -> 16 | H24: 15 | I24: F84676 | J24: Stroudley Walk Centre | K24: 0.9090909091 | O24: F84714 | P24: St Pauls Way Medical Centre | Q24: 46 | R24: 44 | S24: 0.9565217391 | T24: =IFERROR(RANK(S24,$S$3:$S$38,0)+COUNTIF($S$3:S24,S24)-1,"36") -> 5 | V24: 15 | W24: Total | X24: Tower Hamlets | Y24: 0.8583162218 | AB24: F84714 | AC24: St Pauls Way Medical Centre | AD24: 54 | AE24: 44 | AF24: 0.8148148148 | AG24: =IFERROR(RANK(AF24,$AF$3:$AF$38,0)+COUNTIF($AF$3:AF24,AF24)-1,"36") -> 23 | AI24: 15 | AJ24: F84079 | AK24: Wapping Group Practice | AL24: 0.8421052632
A25: F84710 | B25: Island Health | C25: 35 | D25: 34 | E25: 0.9714285714 | F25: =IFERROR(RANK(E25,$E$3:$E$38,0)+COUNTIF(E$3:$E25,E25)-1,"37") -> 6 | H25: 14 | I25: F84044 | J25: Harley Grove Medical Centre | K25: 0.9130434783 | O25: F84710 | P25: Island Health | Q25: 34 | R25: 27 | S25: 0.7941176471 | T25: =IFERROR(RANK(S25,$S$3:$S$38,0)+COUNTIF($S$3:S25,S25)-1,"36") -> 31 | V25: 14 | W25: F84123 | X25: Globe Town Surgery | Y25: 0.8620689655 | AB25: F84710 | AC25: Island Health | AD25: 37 | AE25: 26 | AF25: 0.7027027027 | AG25: =IFERROR(RANK(AF25,$AF$3:$AF$38,0)+COUNTIF($AF$3:AF25,AF25)-1,"36") -> 29 | AI25: 14 | AJ25: F84718 | AK25: Blithehale Medical Centre | AL25: 0.8571428571
H26: 13 | I26: F84118 | J26: Merchant Street (Dr Rana) | K26: 0.9230769231 | O26: F84682 | P26: East One Health | Q26: 0 | R26: 0 | S26: N/A | T26: =IFERROR(RANK(S26,$S$3:$S$38,0)+COUNTIF($S$3:S26,S26)-1,"36") -> 36 | V26: 13 | W26: F84012 | X26: Albion Health Centre | Y26: 0.8709677419 | AB26: F84682 | AC26: East One Health | AD26: 0 | AE26: 0 | AF26: N/A | AG26: =IFERROR(RANK(AF26,$AF$3:$AF$38,0)+COUNTIF($AF$3:AF26,AF26)-1,"36") -> 36 | AI26: 13 | AJ26: F84696 | AK26: The Tredegar Practice | AL26: 0.8666666667
A27: F84012 | B27: Albion Health Centre | C27: 29 | D27: 28 | E27: 0.9655172414 | F27: =IFERROR(RANK(E27,$E$3:$E$38,0)+COUNTIF(E$3:$E27,E27)-1,"37") -> 7 | H27: 12 | I27: F84031 | J27: Jubilee Street Practice | K27: 0.9230769231 | O27: F84012 | P27: Albion Health Centre | Q27: 31 | R27: 27 | S27: 0.8709677419 | T27: =IFERROR(RANK(S27,$S$3:$S$38,0)+COUNTIF($S$3:S27,S27)-1,"36") -> 13 | V27: 12 | W27: F84122 | X27: Bromley-By-Bow Health Centre / XX Place | Y27: 0.880952381 | AB27: F84012 | AC27: Albion Health Centre | AD27: 31 | AE27: 26 | AF27: 0.8387096774 | AG27: =IFERROR(RANK(AF27,$AF$3:$AF$38,0)+COUNTIF($AF$3:AF27,AF27)-1,"36") -> 17 | AI27: 12 | AJ27: F84698 | AK27: Aberfeldy Practice | AL27: 0.8846153846 | AN27: NW | AO27: (03) 5 YEAR COHORT | AP27: (03.03) DTaP/IPV (Booster) | AQ27: % | AR27: Rank | AS27: Order | AT27: NACS | AU27: Ranking | AW27: NW | AX27: (03) 5 YEAR COHORT | AY27: (03.05) MMR (Booster) | AZ27: % | BA27: Rank | BB27: Order | BC27: NACS | BD27: Ranking
A28: F84656 | B28: Docklands Medical Centre | C28: 21 | D28: 21 | E28: 1 | F28: =IFERROR(RANK(E28,$E$3:$E$38,0)+COUNTIF(E$3:$E28,E28)-1,"37") -> 3 | H28: 11 | I28: F84034 | J28: St Stephens Health Centre | K28: 0.9302325581 | O28: F84656 | P28: Docklands Medical Centre | Q28: 21 | R28: 17 | S28: 0.8095238095 | T28: =IFERROR(RANK(S28,$S$3:$S$38,0)+COUNTIF($S$3:S28,S28)-1,"36") -> 25 | V28: 11 | W28: F84044 | X28: Harley Grove Medical Centre | Y28: 0.8888888889 | AB28: F84656 | AC28: Docklands Medical Centre | AD28: 25 | AE28: 21 | AF28: 0.84 | AG28: =IFERROR(RANK(AF28,$AF$3:$AF$38,0)+COUNTIF($AF$3:AF28,AF28)-1,"36") -> 16 | AI28: 11 | AJ28: Y03023 | AK28: St Andrews Health Centre | AL28: 0.8913043478 | AN28: NW1 | AO28: =SUMIFS(OFFSET(REL_D,,MATCH($AO$27,IND,0)-1),REL_D,$B$1,IF(LEFT(AN28,1)="N",NwID,OrgID),AN28) -> 107 | AP28: =SUMIFS(OFFSET(REL_D,,MATCH($AP$27,IND,0)-1),REL_D,$B$1,IF(LEFT(AN28,1)="N",NwID,OrgID),AN28) -> 94 | AQ28: =IF(OR(ISTEXT($AO28),$AO28=0),"N/A",AP28/$AO28) -> 0.8785046729 | AR28: =IFERROR(RANK(AQ28,$AQ$28:$AQ$36,0)+COUNTIF($AQ$28:AQ28,AQ28)-1,"36") -> 1 | AS28: 9 | AT28: =INDEX($AN$28:$AN$36,MATCH($AS28,$AR$28:$AR$36,0)) -> NW7 | AU28: =IFERROR(INDEX($AQ$28:$AQ$36,MATCH($AS28,$AR$28:$AR$36,0)),"0%") -> 0.7218045113 | AW28: NW1 | AX28: =SUMIFS(OFFSET(REL_D,,MATCH($AX$27,IND,0)-1),REL_D,$B$1,IF(LEFT(AW28,1)="N",NwID,OrgID),AW28) -> 107 | AY28: =SUMIFS(OFFSET(REL_D,,MATCH($AY$27,IND,0)-1),REL_D,$B$1,IF(LEFT(AW28,1)="N",NwID,OrgID),AW28) -> 94 | AZ28: =IF(OR(ISTEXT($AX28),$AX28=0),"N/A",AY28/$AX28) -> 0.8785046729 | BA28: =IFERROR(RANK(AZ28,$AZ$28:$AZ$36,0)+COUNTIF($AZ$28:AZ28,AZ28)-1,"36") -> 1 | BB28: 9 | BC28: =INDEX($AW$28:$AW$36,MATCH($BB28,$BA$28:$BA$36,0)) ->  | BD28: =IFERROR(INDEX($AZ$28:$AZ$36,MATCH($BB28,$BA$28:$BA$36,0)),"0%") -> 0%
A29: F84016 | B29: The Mission Practice | C29: 25 | D29: 22 | E29: 0.88 | F29: =IFERROR(RANK(E29,$E$3:$E$38,0)+COUNTIF(E$3:$E29,E29)-1,"37") -> 21 | H29: 10 | I29: F84087 | J29: Harford Health Centre | K29: 0.9393939394 | O29: F84016 | P29: The Mission Practice | Q29: 29 | R29: 27 | S29: 0.9310344828 | T29: =IFERROR(RANK(S29,$S$3:$S$38,0)+COUNTIF($S$3:S29,S29)-1,"36") -> 6 | V29: 10 | W29: F84114 | X29: City Wellbeing Practice (Tower Medical) | Y29: 0.8918918919 | AB29: F84016 | AC29: The Mission Practice | AD29: 35 | AE29: 29 | AF29: 0.8285714286 | AG29: =IFERROR(RANK(AF29,$AF$3:$AF$38,0)+COUNTIF($AF$3:AF29,AF29)-1,"36") -> 19 | AI29: 10 | AJ29: F84034 | AK29: St Stephens Health Centre | AL29: 0.8918918919 | AN29: NW6 | AO29: 169 | AP29: 144 | AQ29: 0.8520710059 | AR29: =IFERROR(RANK(AQ29,$AQ$28:$AQ$36,0)+COUNTIF($AQ$28:AQ29,AQ29)-1,"36") -> 3 | AS29: 8 | AT29: =INDEX($AN$28:$AN$36,MATCH($AS29,$AR$28:$AR$36,0)) -> NW3&4 | AU29: =IFERROR(INDEX($AQ$28:$AQ$36,MATCH($AS29,$AR$28:$AR$36,0)),"0%") -> 0.7614213198 | AW29: NW6 | AX29: 169 | AY29: 143 | AZ29: 0.8461538462 | BA29: =IFERROR(RANK(AZ29,$AZ$28:$AZ$36,0)+COUNTIF($AZ$28:AZ29,AZ29)-1,"36") -> 4 | BB29: 8 | BC29: =INDEX($AW$28:$AW$36,MATCH($BB29,$BA$28:$BA$36,0)) -> NW7 | BD29: =IFERROR(INDEX($AZ$28:$AZ$36,MATCH($BB29,$BA$28:$BA$36,0)),"0%") -> 0.7218045113
A30: F84083 | B30: Bethnal Green Health Centre | C30: 20 | D30: 17 | E30: 0.85 | F30: =IFERROR(RANK(E30,$E$3:$E$38,0)+COUNTIF(E$3:$E30,E30)-1,"37") -> 28 | H30: 9 | I30: F84122 | J30: Bromley-By-Bow Health Centre / XX Place | K30: 0.9487179487 | O30: F84083 | P30: Bethnal Green Health Centre | Q30: 21 | R30: 17 | S30: 0.8095238095 | T30: =IFERROR(RANK(S30,$S$3:$S$38,0)+COUNTIF($S$3:S30,S30)-1,"36") -> 26 | V30: 9 | W30: F84062 | X30: Chrisp Street Health Centre | Y30: 0.9024390244 | AB30: F84083 | AC30: Bethnal Green Health Centre | AD30: 28 | AE30: 25 | AF30: 0.8928571429 | AG30: =IFERROR(RANK(AF30,$AF$3:$AF$38,0)+COUNTIF($AF$3:AF30,AF30)-1,"36") -> 9 | AI30: 9 | AJ30: F84083 | AK30: Bethnal Green Health Centre | AL30: 0.8928571429 | AN30: NW2 | AO30: 81 | AP30: 70 | AQ30: 0.8641975309 | AR30: =IFERROR(RANK(AQ30,$AQ$28:$AQ$36,0)+COUNTIF($AQ$28:AQ30,AQ30)-1,"36") -> 2 | AS30: 7 | AT30: NW3&4 | AU30: 0.7614213198 | AW30: NW2 | AX30: 81 | AY30: 70 | AZ30: 0.8641975309 | BA30: =IFERROR(RANK(AZ30,$AZ$28:$AZ$36,0)+COUNTIF($AZ$28:AZ30,AZ30)-1,"36") -> 2 | BB30: 7 | BC30: NW3&4 | BD30: 0.7868020305
A31: F84034 | B31: St Stephens Health Centre | C31: 43 | D31: 40 | E31: 0.9302325581 | F31: =IFERROR(RANK(E31,$E$3:$E$38,0)+COUNTIF(E$3:$E31,E31)-1,"37") -> 11 | H31: 8 | I31: F84647 | J31: Island Medical Centre | K31: 0.96 | O31: F84034 | P31: St Stephens Health Centre | Q31: 40 | R31: 33 | S31: 0.825 | T31: =IFERROR(RANK(S31,$S$3:$S$38,0)+COUNTIF($S$3:S31,S31)-1,"36") -> 20 | V31: 8 | W31: Y03023 | X31: St Andrews Health Centre | Y31: 0.9076923077 | AB31: F84034 | AC31: St Stephens Health Centre | AD31: 37 | AE31: 33 | AF31: 0.8918918919 | AG31: =IFERROR(RANK(AF31,$AF$3:$AF$38,0)+COUNTIF($AF$3:AF31,AF31)-1,"36") -> 10 | AI31: 8 | AJ31: F84081 | AK31: Spitalfields Practice | AL31: 0.8965517241 | AN31: Total | AO31: 936 | AP31: 764 | AQ31: 0.8162393162 | AR31: =IFERROR(RANK(AQ31,$AQ$28:$AQ$36,0)+COUNTIF($AQ$28:AQ31,AQ31)-1,"36") -> 6 | AS31: 6 | AT31: Total | AU31: 0.8162393162 | AW31: Total | AX31: 936 | AY31: 769 | AZ31: 0.8215811966 | BA31: =IFERROR(RANK(AZ31,$AZ$28:$AZ$36,0)+COUNTIF($AZ$28:AZ31,AZ31)-1,"36") -> 6 | BB31: 6 | BC31: Total | BD31: 0.8215811966
A32: F84039 | B32: Goodman’s Field Health Centre | C32: 103 | D32: 85 | E32: 0.8252427184 | F32: =IFERROR(RANK(E32,$E$3:$E$38,0)+COUNTIF(E$3:$E32,E32)-1,"37") -> 30 | H32: 7 | I32: F84012 | J32: Albion Health Centre | K32: 0.9655172414 | O32: F84039 | P32: Goodman’s Field Health Centre | Q32: 76 | R32: 62 | S32: 0.8157894737 | T32: =IFERROR(RANK(S32,$S$3:$S$38,0)+COUNTIF($S$3:S32,S32)-1,"36") -> 23 | V32: 7 | W32: F84079 | X32: Wapping Group Practice | Y32: 0.92 | AB32: F84039 | AC32: Goodman’s Field Health Centre | AD32: 73 | AE32: 60 | AF32: 0.8219178082 | AG32: =IFERROR(RANK(AF32,$AF$3:$AF$38,0)+COUNTIF($AF$3:AF32,AF32)-1,"36") -> 21 | AI32: 7 | AJ32: F84055 | AK32: Grove Road Surgery (Dr Shah) | AL32: 0.9 | AN32: NW3&4 | AO32: 197 | AP32: 150 | AQ32: 0.7614213198 | AR32: =IFERROR(RANK(AQ32,$AQ$28:$AQ$36,0)+COUNTIF($AQ$28:AQ32,AQ32)-1,"36") -> 7 | AS32: 5 | AT32: NW5 | AU32: 0.8351648352 | AW32: NW4 | AX32: 0 | AY32: 0 | AZ32: N/A | BA32: =IFERROR(RANK(AZ32,$AZ$28:$AZ$36,0)+COUNTIF($AZ$28:AZ32,AZ32)-1,"36") -> 36 | BB32: 5 | BC32: NW5 | BD32: 0.8351648352
A33: F84054 | B33: Limehouse Practice (Gill Street) | C33: 24 | D33: 21 | E33: 0.875 | F33: =IFERROR(RANK(E33,$E$3:$E$38,0)+COUNTIF(E$3:$E33,E33)-1,"37") -> 23 | H33: 6 | I33: F84710 | J33: Island Health | K33: 0.9714285714 | O33: F84054 | P33: Limehouse Practice (Gill Street) | Q33: 32 | R33: 26 | S33: 0.8125 | T33: =IFERROR(RANK(S33,$S$3:$S$38,0)+COUNTIF($S$3:S33,S33)-1,"36") -> 24 | V33: 6 | W33: F84016 | X33: The Mission Practice | Y33: 0.9310344828 | AB33: F84054 | AC33: Limehouse Practice (Gill Street) | AD33: 28 | AE33: 20 | AF33: 0.7142857143 | AG33: =IFERROR(RANK(AF33,$AF$3:$AF$38,0)+COUNTIF($AF$3:AF33,AF33)-1,"36") -> 28 | AI33: 6 | AJ33: F84051 | AK33: Strouts Place Medical Centre | AL33: 0.9090909091 | AN33: NW7 | AO33: 133 | AP33: 96 | AQ33: 0.7218045113 | AR33: =IFERROR(RANK(AQ33,$AQ$28:$AQ$36,0)+COUNTIF($AQ$28:AQ33,AQ33)-1,"36") -> 9 | AS33: 4 | AT33: NW8 | AU33: 0.8481012658 | AW33: NW7 | AX33: 133 | AY33: 96 | AZ33: 0.7218045113 | BA33: =IFERROR(RANK(AZ33,$AZ$28:$AZ$36,0)+COUNTIF($AZ$28:AZ33,AZ33)-1,"36") -> 8 | BB33: 4 | BC33: NW6 | BD33: 0.8461538462
A34: F84087 | B34: Harford Health Centre | C34: 33 | D34: 31 | E34: 0.9393939394 | F34: =IFERROR(RANK(E34,$E$3:$E$38,0)+COUNTIF(E$3:$E34,E34)-1,"37") -> 10 | H34: 5 | I34: F84718 | J34: Blithehale Medical Centre | K34: 0.9722222222 | O34: F84087 | P34: Harford Health Centre | Q34: 33 | R34: 27 | S34: 0.8181818182 | T34: =IFERROR(RANK(S34,$S$3:$S$38,0)+COUNTIF($S$3:S34,S34)-1,"36") -> 22 | V34: 5 | W34: F84714 | X34: St Pauls Way Medical Centre | Y34: 0.9565217391 | AB34: F84087 | AC34: Harford Health Centre | AD34: 35 | AE34: 27 | AF34: 0.7714285714 | AG34: =IFERROR(RANK(AF34,$AF$3:$AF$38,0)+COUNTIF($AF$3:AF34,AF34)-1,"36") -> 26 | AI34: 5 | AJ34: F84123 | AK34: Globe Town Surgery | AL34: 0.9090909091 | AN34: NW3&4 | AO34: 197 | AP34: 150 | AQ34: 0.7614213198 | AR34: =IFERROR(RANK(AQ34,$AQ$28:$AQ$36,0)+COUNTIF($AQ$28:AQ34,AQ34)-1,"36") -> 8 | AS34: 3 | AT34: NW6 | AU34: 0.8520710059 | AW34: NW3&4 | AX34: 197 | AY34: 155 | AZ34: 0.7868020305 | BA34: =IFERROR(RANK(AZ34,$AZ$28:$AZ$36,0)+COUNTIF($AZ$28:AZ34,AZ34)-1,"36") -> 7 | BB34: 3 | BC34: NW8 | BD34: 0.8544303797
A35: F84731 | B35: St Katharine Docks Practice | C35: 3 | D35: 3 | E35: 1 | F35: =IFERROR(RANK(E35,$E$3:$E$38,0)+COUNTIF(E$3:$E35,E35)-1,"37") -> 4 | H35: 4 | I35: F84731 | J35: St Katharine Docks Practice | K35: 1 | O35: F84731 | P35: St Katharine Docks Practice | Q35: 3 | R35: 3 | S35: 1 | T35: =IFERROR(RANK(S35,$S$3:$S$38,0)+COUNTIF($S$3:S35,S35)-1,"36") -> 2 | V35: 4 | W35: F84718 | X35: Blithehale Medical Centre | Y35: 0.96875 | AB35: F84731 | AC35: St Katharine Docks Practice | AD35: 1 | AE35: 1 | AF35: 1 | AG35: =IFERROR(RANK(AF35,$AF$3:$AF$38,0)+COUNTIF($AF$3:AF35,AF35)-1,"36") -> 2 | AI35: 4 | AJ35: F84747 | AK35: Barkantine Practice | AL35: 0.9102564103 | AN35: NW5 | AO35: 91 | AP35: 76 | AQ35: 0.8351648352 | AR35: =IFERROR(RANK(AQ35,$AQ$28:$AQ$36,0)+COUNTIF($AQ$28:AQ35,AQ35)-1,"36") -> 5 | AS35: 2 | AT35: NW2 | AU35: 0.8641975309 | AW35: NW5 | AX35: 91 | AY35: 76 | AZ35: 0.8351648352 | BA35: =IFERROR(RANK(AZ35,$AZ$28:$AZ$36,0)+COUNTIF($AZ$28:AZ35,AZ35)-1,"36") -> 5 | BB35: 2 | BC35: NW2 | BD35: 0.8641975309
A36: F84030 | B36: Ruston Street Clinic (Dr Amin) | C36: 13 | D36: 11 | E36: 0.8461538462 | F36: =IFERROR(RANK(E36,$E$3:$E$38,0)+COUNTIF(E$3:$E36,E36)-1,"37") -> 29 | H36: 3 | I36: F84656 | J36: Docklands Medical Centre | K36: 1 | O36: F84030 | P36: Ruston Street Clinic (Dr Amin) | Q36: 10 | R36: 8 | S36: 0.8 | T36: =IFERROR(RANK(S36,$S$3:$S$38,0)+COUNTIF($S$3:S36,S36)-1,"36") -> 29 | V36: 3 | W36: F84676 | X36: Stroudley Walk Centre | Y36: 1 | AB36: F84030 | AC36: Ruston Street Clinic (Dr Amin) | AD36: 6 | AE36: 5 | AF36: 0.8333333333 | AG36: =IFERROR(RANK(AF36,$AF$3:$AF$38,0)+COUNTIF($AF$3:AF36,AF36)-1,"36") -> 18 | AI36: 3 | AJ36: F84647 | AK36: Island Medical Centre | AL36: 0.9444444444 | AN36: NW8 | AO36: =SUMIFS(OFFSET(REL_D,,MATCH($AO$27,IND,0)-1),REL_D,$B$1,IF(LEFT(AN36,1)="N",NwID,OrgID),AN36) -> 158 | AP36: =SUMIFS(OFFSET(REL_D,,MATCH($AP$27,IND,0)-1),REL_D,$B$1,IF(LEFT(AN36,1)="N",NwID,OrgID),AN36) -> 134 | AQ36: =IF(OR(ISTEXT($AO36),$AO36=0),"N/A",AP36/$AO36) -> 0.8481012658 | AR36: =IFERROR(RANK(AQ36,$AQ$28:$AQ$36,0)+COUNTIF($AQ$28:AQ36,AQ36)-1,"36") -> 4 | AS36: 1 | AT36: NW1 | AU36: 0.8785046729 | AW36: NW8 | AX36: =SUMIFS(OFFSET(REL_D,,MATCH($AX$27,IND,0)-1),REL_D,$B$1,IF(LEFT(AW36,1)="N",NwID,OrgID),AW36) -> 158 | AY36: =SUMIFS(OFFSET(REL_D,,MATCH($AY$27,IND,0)-1),REL_D,$B$1,IF(LEFT(AW36,1)="N",NwID,OrgID),AW36) -> 135 | AZ36: =IF(OR(ISTEXT($AX36),$AX36=0),"N/A",AY36/$AX36) -> 0.8544303797 | BA36: =IFERROR(RANK(AZ36,$AZ$28:$AZ$36,0)+COUNTIF($AZ$28:AZ36,AZ36)-1,"36") -> 3 | BB36: 1 | BC36: NW1 | BD36: 0.8785046729
A37: F84055 | B37: Grove Road Surgery (Dr Shah) | C37: 8 | D37: 7 | E37: 0.875 | F37: =IFERROR(RANK(E37,$E$3:$E$38,0)+COUNTIF(E$3:$E37,E37)-1,"37") -> 24 | H37: 2 | I37: F84696 | J37: The Tredegar Practice | K37: 1 | O37: F84055 | P37: Grove Road Surgery (Dr Shah) | Q37: 4 | R37: 3 | S37: 0.75 | T37: =IFERROR(RANK(S37,$S$3:$S$38,0)+COUNTIF($S$3:S37,S37)-1,"36") -> 32 | V37: 2 | W37: F84731 | X37: St Katharine Docks Practice | Y37: 1 | AB37: F84055 | AC37: Grove Road Surgery (Dr Shah) | AD37: 10 | AE37: 9 | AF37: 0.9 | AG37: =IFERROR(RANK(AF37,$AF$3:$AF$38,0)+COUNTIF($AF$3:AF37,AF37)-1,"36") -> 7 | AI37: 2 | AJ37: F84731 | AK37: St Katharine Docks Practice | AL37: 1
A38: F84676 | B38: Stroudley Walk Centre | C38: 11 | D38: 10 | E38: 0.9090909091 | F38: =IFERROR(RANK(E38,$E$3:$E$38,0)+COUNTIF(E$3:$E38,E38)-1,"37") -> 15 | H38: 1 | I38: F84079 | J38: Wapping Group Practice | K38: 1 | O38: F84676 | P38: Stroudley Walk Centre | Q38: 7 | R38: 7 | S38: =IF(OR(ISTEXT($Q38),$Q38=0),"N/A",R38/$Q38) -> 1 | T38: =IFERROR(RANK(S38,$S$3:$S$38,0)+COUNTIF($S$3:S38,S38)-1,"36") -> 3 | V38: 1 | W38: F84696 | X38: The Tredegar Practice | Y38: 1 | AB38: F84676 | AC38: Stroudley Walk Centre | AD38: 17 | AE38: 14 | AF38: =IF(OR(ISTEXT($AD38),$AD38=0),"N/A",AE38/$AD38) -> 0.8235294118 | AG38: =IFERROR(RANK(AF38,$AF$3:$AF$38,0)+COUNTIF($AF$3:AF38,AF38)-1,"36") -> 20 | AI38: 1 | AJ38: F84118 | AK38: Merchant Street (Dr Rana) | AL38: 1 | AN38: MMR 1 at 2years
AN39: 3rd DTAP/IPV/Hib

Sheet Control Panel (hidden)
A1: 2018-11-30 | B1: Q3 | E1: Search Title | F1: Report Title
B2: Tower Hamlets | C2: Total | E2: All Patients | F2: Listsize | I2: April 2021 | J2: Q1 | K2: Q1: April 2017 - June 2017 | M2: Select Dates
A3: NW1 | B3: The One Network | C3: NW1 | E3: (01) 12 MONTH COHORT | F3: Patients becoming 12m | I3: May 2021 | J3: Q1 | K3: Q1: April 2017 - June 2017 | M3: 2017-04-01 | O3: - | P3: Select Practice | Q3: DN Team | R3: Patch | S3: Network | U3: OrgID | V3: 10 | W3: =$V$7&ADDRESS(1,V3)&":"&ADDRESS($V$8,V3) -> 'Data'!$J$1:$J$3000
A4: NW2 | B4: East End Health Network | C4: NW2 | E4: (01.01) DTaP/IPV/Hib | F4: DTaP/IPV/Hib/HepB | I4: June 2021 | J4: Q1 | K4: Q1: April 2017 - June 2017 | M4: 2017-05-01 | N4: Bethnal Green Health Centre | O4: F84083 | P4: Bethnal Green Health Centre | S4: NW1 | U4: REL_D | V4: 1 | W4: =$V$7&ADDRESS(1,V4)&":"&ADDRESS($V$8,V4) -> 'Data'!$A$1:$A$3000
A5: NW3&4 | B5: Tower Network | C5: NW3&4 | E5: DTaP/IPV/Hib(%) | F5: DTaP/IPV/Hib/HepB(%) | I5: July 2021 | J5: Q2 | K5: Q2: July 2017 - September 2017 | M5: 2017-06-01 | N5: The Mission Practice | O5: F84016 | P5: The Mission Practice | S5: NW1 | U5: IND | V5: - | W5: =$V$7&ADDRESS(V12,1)&":"&ADDRESS(V12,V9) -> 'Data'!$A$1:$AD$1
A6: NW5 | B6: Bow Health Network | C6: NW5 | E6: Patients required to achieve NHSE Target (90%) | F6: Patients required to achieve NHSE Target (90%) | I6: August 2021 | J6: Q2 | K6: Q2: July 2017 - September 2017 | M6: 2017-07-01 | N6: Globe Town Surgery | O6: F84123 | P6: Globe Town Surgery | S6: NW1 | U6: NwID | V6: 2 | W6: =$V$7&ADDRESS(1,V6)&":"&ADDRESS($V$8,V6) -> 'Data'!$B$1:$B$3000
A7: NW6 | B7: Mile End East and Bromley by Bow Network | C7: NW6 | E7: Patients required to achieve CCG Target (95%) | F7: Patients required to achieve CCG Target (95%) | I7: September 2021 | J7: Q2 | K7: Q2: July 2017 - September 2017 | M7: 2017-08-01 | N7: Pollard Row Surgery | O7: Y00212 | P7: Pollard Row Surgery | S7: NW1 | U7: Data | V7: =IF(V10="N","BLANK!","'"&V11&"'!") -> 'Data'!
A8: NW7 | B8: Poplar and Limehouse Network | C8: NW7 | E8: (01.02) Men B (1st and 2nd) | F8: Men B | I8: October 2021 | J8: Q3 | K8: Q3: October 2017 - December 2017 | M8: 2017-09-01 | N8: Strouts Place Medical Centre | O8: F84051 | P8: Strouts Place Medical Centre | S8: NW1 | U8: Rows | V8: 3000
A9: NW8 | B9: Healthy Island Network | C9: NW8 | E9: Men B(%) | F9: Men B(%) | I9: November 2021 | J9: Q3 | K9: Q3: October 2017 - December 2017 | M9: 2017-10-01 | N9: Spitalfields Practice | O9: F84081 | P9: Spitalfields Practice | S9: NW2 | U9: Columns | V9: 30
E10: Patients required to achieve NHSE Target (90%) | F10: Patients required to achieve NHSE Target (90%) | I10: December 2021 | J10: Q3 | K10: Q3: October 2017 - December 2017 | M10: 2017-11-01 | N10: Blithehale Medical Centre | O10: F84718 | P10: Blithehale Medical Centre | S10: NW2 | U10: Data (Y/N) | V10: Y
E11: Patients required to achieve CCG Target (95%) | F11: Patients required to achieve CCG Target (95%) | I11: January 2022 | J11: Q4 | K11: Q4: January 2018 - March 2018 | M11: 2017-12-01 | N11: Health E1 | O11: F84733 | P11: Health E1 | S11: NW2 | U11: Q Work Sheet | V11: Data | W11: =$V$7&ADDRESS(1,1)&":"&ADDRESS(V8,V9) -> 'Data'!$A$1:$AD$3000
A12: NW1 | B12: Bethnal Green Health Centre | C12: F84083 | E12: (01.03) PCV | F12: PCV | I12: February 2022 | J12: Q4 | K12: Q4: January 2018 - March 2018 | M12: 2018-01-01 | N12: Albion Health Centre | O12: F84012 | P12: Albion Health Centre | S12: NW2 | U12: Header Row | V12: 1
A13: NW1 | B13: The Mission Practice | C13: F84016 | E13: PCV(%) | F13: PCV(%) | I13: March 2022 | J13: Q4 | K13: Q4: January 2018 - March 2018 | M13: 2018-02-01 | N13: Harford Health Centre | O13: F84087 | P13: Harford Health Centre | S13: NW3&4 | U13: Header Row 2 | V13: 3
A14: NW1 | B14: Globe Town Surgery | C14: F84123 | E14: Patients required to achieve NHSE Target (90%) | F14: Patients required to achieve NHSE Target (90%) | M14: 2018-03-01 | N14: Brayford Square (Dr Varma) | O14: F84046 | P14: Brayford Square (Dr Varma) | S14: NW3&4
A15: NW1 | B15: Pollard Row Surgery | C15: Y00212 | E15: Patients required to achieve CCG Target (95%) | F15: Patients required to achieve CCG Target (95%) | N15: Whitechapel Health (Shah Jalal) | O15: F84039 | P15: Whitechapel Health (Shah Jalal) | S15: NW3&4
A16: NW1 | B16: Strouts Place Medical Centre | C16: F84051 | E16: (01.04) Rotavirus | F16: Rotavirus | N16: City Wellbeing Practice (Tower Medical) | O16: F84114 | P16: City Wellbeing Practice (Tower Medical) | S16: NW3&4
A17: NW2 | B17: Spitalfields Practice | C17: F84081 | E17: Rotavirus(%) | F17: Rotavirus(%) | N17: Wapping Group Practice | O17: F84079 | P17: Wapping Group Practice | S17: NW3&4
A18: NW2 | B18: Blithehale Medical Centre | C18: F84718 | N18: Jubilee Street Practice | O18: F84031 | P18: Jubilee Street Practice | S18: NW3&4 | V18: Patients becoming 12m | Z18: Patients becoming 12m
A19: NW2 | B19: Health E1 | C19: F84733 | K19: 2015/16 Q1 | N19: St Katharine Docks Practice | O19: F84731 | P19: St Katharine Docks Practice | S19: NW3&4 | V19: DTaP/IPV/Hib | Z19: DTaP/IPV/Hib %
A20: NW2 | B20: Albion Health Centre | C20: F84012 | K20: 2015/16 Q2 | N20: East One Health | O20: F84682 | P20: East One Health | S20: NW3&4 | V20: Men B | Z20: Men C / Men B %
A21: NW3&4 | B21: Harford Health Centre | C21: F84087 | K21: 2015/16 Q3 | N21: Harley Grove Medical Centre | O21: F84044 | P21: Harley Grove Medical Centre | S21: NW5 | V21: PCV | Z21: PCV %
A22: NW3&4 | B22: Brayford Square (Dr Varma) | C22: F84046 | K22: 2015/16 Q4 | N22: St Stephens Health Centre | O22: F84034 | P22: St Stephens Health Centre | S22: NW5
A23: NW3&4 | B23: Goodman’s Field Health Centre | C23: F84039 | K23: 2016/17 Q1 | N23: Ruston Street Clinic (Dr Amin) | O23: F84030 | P23: Ruston Street Clinic (Dr Amin) | S23: NW5 | V23: Patients becoming 24m | Z23: Patients becoming 24m
A24: NW3&4 | B24: City Wellbeing Practice (Tower Medical) | C24: F84114 | K24: 2016/17 Q2 | N24: Grove Road Surgery (Dr Shah) | O24: F84055 | P24: Grove Road Surgery (Dr Shah) | S24: NW5 | V24: MMR | Z24: MMR %
A25: NW3&4 | B25: Wapping Group Practice | C25: F84079 | E25: All Patients | F25: Listsize | K25: 2016/17 Q3 | N25: The Tredegar Practice | O25: F84696 | P25: The Tredegar Practice | S25: NW5 | V25: HiB/Men C | Z25: HiB/Men C %
A26: NW3&4 | B26: Jubilee Street Practice | C26: F84031 | E26: (02) 24 MONTH COHORT | F26: Patients becoming 24m | K26: 2016/17 Q4 | N26: Stroudley Walk Centre | O26: F84676 | P26: Stroudley Walk Centre | S26: NW6 | V26: PCV (Booster) | Z26: PCV (Booster) %
A27: NW3&4 | B27: St Katharine Docks Practice | C27: F84731 | E27: (02.01) DTaP/IPV/Hib | F27: DTaP/IPV/Hib | K27: 2017/18 Q1 | N27: St Andrews Health Centre | O27: Y03023 | P27: St Andrews Health Centre | S27: NW6
A28: NW3&4 | B28: East One Health | C28: F84682 | E28: DTaP/IPV/Hib(%) | F28: DTaP/IPV/Hib(%) | K28: 2017/18 Q2 | N28: Merchant Street (Dr Rana) | O28: F84118 | P28: Merchant Street (Dr Rana) | S28: NW6 | V28: Patients becoming 5y | Z28: Patients becoming 5y
A29: NW5 | B29: Harley Grove Medical Centre | C29: F84044 | E29: Patients required to achieve NHSE Target (90%) | F29: Patients required to achieve NHSE Target (90%) | K29: 2017/18 Q3 | N29: St Pauls Way Medical Centre | O29: F84714 | P29: St Pauls Way Medical Centre | S29: NW6 | V29: DTaP/IPV (Booster)(%) | Z29: DTaP/IPV (Booster)(%)
A30: NW5 | B30: St Stephens Health Centre | C30: F84034 | E30: Patients required to achieve CCG Target (95%) | F30: Patients required to achieve CCG Target (95%) | K30: 2017/18 Q4 | N30: Bromley-By-Bow Health Centre / XX Place | O30: F84122 | P30: Bromley-By-Bow Health Centre / XX Place | S30: NW6 | V30: MMR (Booster)(%) | Z30: MMR (Booster)(%)
A31: NW5 | B31: Ruston Street Clinic (Dr Amin) | C31: F84030 | E31: (02.02) MMR | F31: MMR | K31: 2018/19 Q1 | N31: Limehouse Practice (Gill Street) | O31: F84054 | P31: Limehouse Practice (Gill Street) | S31: NW7
A32: NW5 | B32: Grove Road Surgery (Dr Shah) | C32: F84055 | E32: MMR(%) | F32: MMR(%) | K32: 2018/19 Q2 | N32: Chrisp Street Health Centre | O32: F84062 | P32: Chrisp Street Health Centre | S32: NW7 | V32: (01) 12 MONTH COHORT
A33: NW5 | B33: The Tredegar Practice | C33: F84696 | E33: Patients required to achieve NHSE Target (90%) | F33: Patients required to achieve NHSE Target (90%) | K33: 2018/19 Q3 | N33: Aberfeldy Practice | O33: F84698 | P33: Aberfeldy Practice | S33: NW7 | V33: (01.01) DTaP/IPV/Hib
A34: NW6 | B34: Stroudley Walk Centre | C34: F84676 | E34: Patients required to achieve CCG Target (95%) | F34: Patients required to achieve CCG Target (95%) | K34: 2018/19 Q4 | N34: Gough Walk (Dr Selvan) | O34: F84025 | P34: Gough Walk (Dr Selvan) | S34: NW7 | V34: (01.02) Men B (1st and 2nd)
A35: NW6 | B35: St Andrews Health Centre | C35: Y03023 | E35: (02.03) HiB/Men C | F35: HiB/Men C | N35: Island Health | O35: F84710 | P35: Island Health | S35: NW8 | V35: (01.03) PCV
A36: NW6 | B36: Merchant Street (Dr Rana) | C36: F84118 | E36: HiB/Men C (%) | F36: HiB/Men C (%) | J36: Patient becoming 12m | K36: 'Control Panel'!$V$18:$V$21 | L36: 'Control Panel'!$Z$18:$Z$21 | N36: Docklands Medical Centre | O36: F84656 | P36: Docklands Medical Centre | S36: NW8
A37: NW6 | B37: St Pauls Way Medical Centre | C37: F84714 | E37: Patients required to achieve NHSE Target (90%) | F37: Patients required to achieve NHSE Target (90%) | J37: Patient becoming 24m | K37: 'Control Panel'!$V23:$V$26 | L37: 'Control Panel'!$Z23:$Z$26 | N37: Island Medical Centre | O37: F84647 | P37: Island Medical Centre | S37: NW8 | V37: (02) 24 MONTH COHORT
A38: NW6 | B38: Bromley-By-Bow Health Centre / XX Place | C38: F84122 | E38: Patients required to achieve CCG Target (95%) | F38: Patients required to achieve CCG Target (95%) | J38: Patient becoming 5y | K38: 'Control Panel'!$V28:$V$30 | L38: 'Control Panel'!$Z28:$Z$30 | N38: Barkantine Practice | O38: F84747 | P38: Barkantine Practice | S38: NW8 | V38: (02.02) MMR
A39: NW7 | B39: Limehouse Practice (Gill Street) | C39: F84054 | E39: (02.04) PCV (Booster) | F39: PCV (Booster) | N39: Tower Hamlets | O39: Total | P39: Tower Hamlets | V39: (02.03) HiB/Men C
A40: NW7 | B40: Chrisp Street Health Centre | C40: F84062 | E40: PCV (Booster)(%) | F40: PCV (Booster)(%) | N40: The One Network | O40: NW1 | P40: The One Network | S40: NW1 | V40: (02.04) PCV (Booster)
A41: NW7 | B41: Aberfeldy Practice | C41: F84698 | E41: Patients required to achieve NHSE Target (90%) | F41: Patients required to achieve NHSE Target (90%) | J41: Patient becoming 12m | K41: 'Control Panel'!$V$32:$V$35 | N41: East End Health Network | O41: NW2 | P41: East End Health Network | S41: NW2
A42: NW7 | B42: Gough Walk (Dr Selvan) | C42: F84025 | E42: Patients required to achieve CCG Target (95%) | F42: Patients required to achieve CCG Target (95%) | J42: Patient becoming 24m | K42: 'Control Panel'!$V37:$V$40 | N42: Stepney and Whitechapel Network | O42: NW3 | P42: Stepney and Whitechapel Network | S42: NW3 | V42: (03) 5 YEAR COHORT
A43: NW8 | B43: Island Health | C43: F84710 | E43: (02.05) Men B (Booster) | F43: Men B (Booster) | J43: Patient becoming 5y | K43: 'Control Panel'!$V42:$V$44 | N43: The Highway Network | O43: NW4 | P43: The Highway Network | S43: NW4 | V43: (03.03) DTaP/IPV (Booster)
A44: NW8 | B44: Docklands Medical Centre | C44: F84656 | E44: Men B (Booster)(%) | F44: Men B (Booster)(%) | N44: Bow Health Network | O44: NW5 | P44: Bow Health Network | S44: NW5 | V44: (03.05) MMR (Booster)
A45: NW8 | B45: Island Medical Centre | C45: F84647 | N45: Mile End East and Bromley by Bow Network | O45: NW6 | P45: Mile End East and Bromley by Bow Network | S45: NW6
A46: NW8 | B46: Barkantine Practice | C46: F84747 | N46: Poplar and Limehouse Network | O46: NW7 | P46: Poplar and Limehouse Network | S46: NW7
N47: Healthy Island Network | O47: NW8 | P47: Healthy Island Network | S47: NW8
E48: All Patients | F48: Listsize
E49: (03) 5 YEAR COHORT | F49: Patients becoming 5y
E50: (03.01) DTaP/IPV/Hib | F50: DTaP/IPV/Hib
E51: DTaP/IPV/Hib(%) | F51: DTaP/IPV/Hib(%) | N51: xx | R51: bbb
E52: (03.02) MMR (Primary) | F52: MMR (Primary)
E53: MMR (Primary)(%) | F53: MMR (Primary)(%) | J53: Data | N53: Array Start | O53: Array End | P53: Array as Text | R53: Array Start | S53: Array End
E54: (03.03) DTaP/IPV (Booster) | F54: DTaP/IPV (Booster) | N54: ="'XX place'!"&ADDRESS(MATCH(I56,#REF!,0)+7,2) ->  | O54: =ADDRESS(MATCH(I56,#REF!,0)+43,3) ->  | P54: =TEXT(N54&":"&O54,"") ->  | R54: ="'BBB'!"&ADDRESS(MATCH(I56,#REF!,0)+7,2) ->  | S54: =ADDRESS(MATCH(I56,#REF!,0)+43,3) -> 
E55: DTaP/IPV (Booster)(%) | F55: DTaP/IPV (Booster)(%) | I55: Search Title | J55: Array Start | K55: Array End | L55: Array as Text | N55: ="'XX place'!"&ADDRESS(MATCH(I57,#REF!,0)+7,2) ->  | O55: =ADDRESS(MATCH(I57,#REF!,0)+43,3) ->  | R55: ="'BBB'!"&ADDRESS(MATCH(I57,#REF!,0)+7,2) ->  | S55: =ADDRESS(MATCH(I57,#REF!,0)+43,3) ->  | T55: Array as Text
E56: Patients required to achieve NHSE Target (90%) | F56: Patients required to achieve NHSE Target (90%) | I56: All Patients | J56: ="Data!"&ADDRESS(MATCH(I56,#REF!,0)+7,2) ->  | K56: =ADDRESS(MATCH(I56,#REF!,0)+46,3) ->  | L56: =TEXT(J56&":"&K56,"") ->  | N56: ="'XX place'!"&ADDRESS(MATCH(I58,#REF!,0)+7,2) ->  | O56: =ADDRESS(MATCH(I58,#REF!,0)+43,3) ->  | R56: ="'BBB'!"&ADDRESS(MATCH(I58,#REF!,0)+7,2) ->  | S56: =ADDRESS(MATCH(I58,#REF!,0)+43,3) ->  | T56: =TEXT(R54&":"&S54,"") -> 
E57: Patients required to achieve CCG Target (95%) | F57: Patients required to achieve CCG Target (95%) | I57: (01) 12 MONTH COHORT | J57: ="Data!"&ADDRESS(MATCH(I57,#REF!,0)+7,2) ->  | K57: =ADDRESS(MATCH(I57,#REF!,0)+46,3) ->  | N57: ="'XX place'!"&ADDRESS(MATCH(I59,#REF!,0)+7,2) ->  | O57: =ADDRESS(MATCH(I59,#REF!,0)+43,3) ->  | R57: ="'BBB'!"&ADDRESS(MATCH(I59,#REF!,0)+7,2) ->  | S57: =ADDRESS(MATCH(I59,#REF!,0)+43,3) -> 
E58: (03.05) MMR (Booster) | F58: MMR (Booster) | I58: (01.01) DTaP/IPV/Hib | J58: ="Data!"&ADDRESS(MATCH(I58,#REF!,0)+7,2) ->  | K58: =ADDRESS(MATCH(I58,#REF!,0)+46,3) ->  | N58: ="'XX place'!"&ADDRESS(MATCH(I60,#REF!,0)+7,2) ->  | O58: =ADDRESS(MATCH(I60,#REF!,0)+43,3) ->  | R58: ="'BBB'!"&ADDRESS(MATCH(I60,#REF!,0)+7,2) ->  | S58: =ADDRESS(MATCH(I60,#REF!,0)+43,3) -> 
E59: MMR (Booster)(%) | F59: MMR (Booster)(%) | I59: (01.02) Men C | J59: ="Data!"&ADDRESS(MATCH(I59,#REF!,0)+7,2) ->  | K59: =ADDRESS(MATCH(I59,#REF!,0)+46,3) ->  | N59: ="'XX place'!"&ADDRESS(MATCH(I61,#REF!,0)+7,2) ->  | O59: =ADDRESS(MATCH(I61,#REF!,0)+43,3) ->  | R59: ="'BBB'!"&ADDRESS(MATCH(I61,#REF!,0)+7,2) ->  | S59: =ADDRESS(MATCH(I61,#REF!,0)+43,3) -> 
E60: Patients required to achieve NHSE Target (90%) | F60: Patients required to achieve NHSE Target (90%) | I60: (01.03) PCV | J60: ="Data!"&ADDRESS(MATCH(I60,#REF!,0)+7,2) ->  | K60: =ADDRESS(MATCH(I60,#REF!,0)+46,3) ->  | N60: ="'XX place'!"&ADDRESS(MATCH(I62,#REF!,0)+7,2) ->  | O60: =ADDRESS(MATCH(I62,#REF!,0)+43,3) ->  | R60: ="'BBB'!"&ADDRESS(MATCH(I62,#REF!,0)+7,2) ->  | S60: =ADDRESS(MATCH(I62,#REF!,0)+43,3) -> 
E61: Patients required to achieve CCG Target (95%) | F61: Patients required to achieve CCG Target (95%) | I61: (01.04) Rotavirus | J61: ="Data!"&ADDRESS(MATCH(I61,#REF!,0)+7,2) ->  | K61: =ADDRESS(MATCH(I61,#REF!,0)+46,3) ->  | N61: ="'XX place'!"&ADDRESS(MATCH(I63,#REF!,0)+7,2) ->  | O61: =ADDRESS(MATCH(I63,#REF!,0)+43,3) ->  | R61: ="'BBB'!"&ADDRESS(MATCH(I63,#REF!,0)+7,2) ->  | S61: =ADDRESS(MATCH(I63,#REF!,0)+43,3) -> 
E62: (03.04) HiB/Men C | F62: HiB/Men C | I62: (01.05) BCG | J62: ="Data!"&ADDRESS(MATCH(I62,#REF!,0)+7,2) ->  | K62: =ADDRESS(MATCH(I62,#REF!,0)+46,3) ->  | N62: ="'XX place'!"&ADDRESS(MATCH(I64,#REF!,0)+7,2) ->  | O62: =ADDRESS(MATCH(I64,#REF!,0)+43,3) ->  | R62: ="'BBB'!"&ADDRESS(MATCH(I64,#REF!,0)+7,2) ->  | S62: =ADDRESS(MATCH(I64,#REF!,0)+43,3) -> 
E63: HiB/Men C(%) | F63: HiB/Men C(%) | I63: (02) 24 MONTH COHORT | J63: ="Data!"&ADDRESS(MATCH(I63,#REF!,0)+7,2) ->  | K63: =ADDRESS(MATCH(I63,#REF!,0)+46,3) ->  | N63: ="'XX place'!"&ADDRESS(MATCH(I65,#REF!,0)+7,2) ->  | O63: =ADDRESS(MATCH(I65,#REF!,0)+43,3) ->  | R63: ="'BBB'!"&ADDRESS(MATCH(I65,#REF!,0)+7,2) ->  | S63: =ADDRESS(MATCH(I65,#REF!,0)+43,3) -> 
I64: (02.01) DTaP/IPV/Hib | J64: ="Data!"&ADDRESS(MATCH(I64,#REF!,0)+7,2) ->  | K64: =ADDRESS(MATCH(I64,#REF!,0)+46,3) ->  | N64: ="'XX place'!"&ADDRESS(MATCH(I66,#REF!,0)+7,2) ->  | O64: =ADDRESS(MATCH(I66,#REF!,0)+43,3) ->  | R64: ="'BBB'!"&ADDRESS(MATCH(I66,#REF!,0)+7,2) ->  | S64: =ADDRESS(MATCH(I66,#REF!,0)+43,3) -> 
I65: (02.02) MMR | J65: ="Data!"&ADDRESS(MATCH(I65,#REF!,0)+7,2) ->  | K65: =ADDRESS(MATCH(I65,#REF!,0)+46,3) ->  | N65: ="'XX place'!"&ADDRESS(MATCH(I67,#REF!,0)+7,2) ->  | O65: =ADDRESS(MATCH(I67,#REF!,0)+43,3) ->  | R65: ="'BBB'!"&ADDRESS(MATCH(I67,#REF!,0)+7,2) ->  | S65: =ADDRESS(MATCH(I67,#REF!,0)+43,3) -> 
I66: (02.03) HiB/Men C | J66: ="Data!"&ADDRESS(MATCH(I66,#REF!,0)+7,2) ->  | K66: =ADDRESS(MATCH(I66,#REF!,0)+46,3) ->  | N66: ="'XX place'!"&ADDRESS(MATCH(I68,#REF!,0)+7,2) ->  | O66: =ADDRESS(MATCH(I68,#REF!,0)+43,3) ->  | R66: ="'BBB'!"&ADDRESS(MATCH(I68,#REF!,0)+7,2) ->  | S66: =ADDRESS(MATCH(I68,#REF!,0)+43,3) -> 
E67: 3rd DTAP/IPV/Hib | F67: 'Control Panel'!$G$67:$G$69 | G67: (01) 12 MONTH COHORT | I67: (02.04) PCV (Booster) | J67: ="Data!"&ADDRESS(MATCH(I67,#REF!,0)+7,2) ->  | K67: =ADDRESS(MATCH(I67,#REF!,0)+46,3) ->  | N67: ="'XX place'!"&ADDRESS(MATCH(I69,#REF!,0)+7,2) ->  | O67: =ADDRESS(MATCH(I69,#REF!,0)+43,3) ->  | R67: ="'BBB'!"&ADDRESS(MATCH(I69,#REF!,0)+7,2) ->  | S67: =ADDRESS(MATCH(I69,#REF!,0)+43,3) -> 
E68: MMR 1 at 2years | F68: 'Control Panel'!$G$70:$G$72 | G68: (01.01) DTaP/IPV/Hib | I68: (03) 5 YEAR COHORT | J68: ="Data!"&ADDRESS(MATCH(I68,#REF!,0)+7,2) ->  | K68: =ADDRESS(MATCH(I68,#REF!,0)+46,3) ->  | N68: ="'XX place'!"&ADDRESS(MATCH(I70,#REF!,0)+7,2) ->  | O68: =ADDRESS(MATCH(I70,#REF!,0)+43,3) ->  | R68: ="'BBB'!"&ADDRESS(MATCH(I70,#REF!,0)+7,2) ->  | S68: =ADDRESS(MATCH(I70,#REF!,0)+43,3) -> 
E69: MMR 2 at 5yrs | F69: 'Control Panel'!$G$73:$G$75 | G69: DTaP/IPV/Hib(%) | I69: (03.01) DTaP/IPV/Hib | J69: ="Data!"&ADDRESS(MATCH(I69,#REF!,0)+7,2) ->  | K69: =ADDRESS(MATCH(I69,#REF!,0)+46,3) ->  | N69: ="'XX place'!"&ADDRESS(MATCH(I71,#REF!,0)+7,2) ->  | O69: =ADDRESS(MATCH(I71,#REF!,0)+43,3) ->  | R69: ="'BBB'!"&ADDRESS(MATCH(I71,#REF!,0)+7,2) ->  | S69: =ADDRESS(MATCH(I71,#REF!,0)+43,3) -> 
E70: 3rd DTAP/IPV/Hib at 1 year | F70: 'Control Panel'!$G$67:$G$69 | G70: (02) 24 MONTH COHORT | I70: (03.02) MMR (Primary) | J70: ="Data!"&ADDRESS(MATCH(I70,#REF!,0)+7,2) ->  | K70: =ADDRESS(MATCH(I70,#REF!,0)+46,3) ->  | N70: ="'XX place'!"&ADDRESS(MATCH(I72,#REF!,0)+7,2) ->  | O70: =ADDRESS(MATCH(I72,#REF!,0)+43,3) ->  | R70: ="'BBB'!"&ADDRESS(MATCH(I72,#REF!,0)+7,2) ->  | S70: =ADDRESS(MATCH(I72,#REF!,0)+43,3) -> 
E71: MMR 1 at 2 years | F71: 'Control Panel'!$G$70:$G$72 | G71: (02.02) MMR | I71: (03.03) DTaP/IPV (Booster) | J71: ="Data!"&ADDRESS(MATCH(I71,#REF!,0)+7,2) ->  | K71: =ADDRESS(MATCH(I71,#REF!,0)+46,3) ->  | N71: ="'XX place'!"&ADDRESS(MATCH(I73,#REF!,0)+7,2) ->  | O71: =ADDRESS(MATCH(I73,#REF!,0)+43,3) ->  | P71: =TEXT(N71&":"&O71,"") ->  | R71: ="'BBB'!"&ADDRESS(MATCH(I73,#REF!,0)+7,2) ->  | S71: =ADDRESS(MATCH(I73,#REF!,0)+43,3) -> 
E72: Pre-school booster at 5years | F72: 'Control Panel'!$G$76:$G$78 | G72: MMR(%) | I72: (03.04) HiB/Men C | J72: ="Data!"&ADDRESS(MATCH(I72,#REF!,0)+7,2) ->  | K72: =ADDRESS(MATCH(I72,#REF!,0)+46,3) -> 
G73: (03) 5 YEAR COHORT | I73: (03.05) MMR (Booster) | J73: ="Data!"&ADDRESS(MATCH(I73,#REF!,0)+7,2) ->  | K73: =ADDRESS(MATCH(I73,#REF!,0)+46,3) ->  | L73: =TEXT(J73&":"&K73,"") ->  | T73: =TEXT(R71&":"&S71,"") -> 
G74: (03.02) MMR (Primary)
G75: MMR (Primary)(%)
G76: (03) 5 YEAR COHORT
G77: (03.05) MMR (Booster)
G78: MMR (Booster)(%)

Sheet Rows (hidden)

Sheet Data (hidden)
A1: 2015/16 Q1 | B1: =VLOOKUP(J1,'Control Panel'!$O$3:$S$47,5,FALSE) ->  | E1: Parent Population | F1: Author | G1: Last Run | K1: Search | L1: All Patients | M1: (01) 12 MONTH COHORT | N1: (01.01) DTaP/IPV/Hib | O1: (01.02) Men B (1st and 2nd) | P1: (01.03) PCV | Q1: (01.04) Rotavirus | R1: (01.05) BCG | S1: (02) 24 MONTH COHORT | T1: (02.01) DTaP/IPV/Hib | U1: (02.02) MMR | V1: (02.03) HiB/Men C | W1: (02.04) PCV (Booster) | X1: (03) 5 YEAR COHORT | Y1: (03.01) DTaP/IPV/Hib | Z1: (03.02) MMR (Primary) | AA1: (03.03) DTaP/IPV (Booster) | AB1: (03.04) HiB/Men C | AC1: (03.05) MMR (Booster) | AD1: (02.05) Men B (Booster)
A2: 2015/16 Q1 | B2: =VLOOKUP(J2,'Control Panel'!$O$3:$S$47,5,FALSE) -> NW2 | E2: Currently registered patients | F2: DUNNE, Jack (Mr) | G2: 2015-07-02T16:25:00 | J2: F84081 | L2: 12439 | M2: 36 | N2: 34 | O2: 35 | P2: 34 | Q2: 34 | R2: 33 | S2: 33 | T2: 31 | U2: 30 | V2: 28 | W2: 28 | X2: 30 | Y2: 29 | Z2: 29 | AA2: 27 | AB2: 27 | AC2: 27
A3: 2015/16 Q1 | B3: =VLOOKUP(J3,'Control Panel'!$O$3:$S$47,5,FALSE) -> NW3&4 | J3: F84079 | L3: 9435 | M3: 35 | N3: 31 | O3: 32 | P3: 31 | Q3: 27 | R3: 31 | S3: 35 | T3: 34 | U3: 32 | V3: 31 | W3: 33 | X3: 17 | Y3: 17 | Z3: 16 | AA3: 13 | AB3: 16 | AC3: 16
A4: 2015/16 Q1 | B4: =VLOOKUP(J4,'Control Panel'!$O$3:$S$47,5,FALSE) -> NW3&4 | F4: Date Modified | G4: Relative Date | J4: F84087 | L4: 10780 | M4: 41 | N4: 40 | O4: 41 | P4: 40 | Q4: 37 | R4: 39 | S4: 47 | T4: 47 | U4: 46 | V4: 46 | W4: 46 | X4: 44 | Y4: 43 | Z4: 43 | AA4: 38 | AB4: 43 | AC4: 42
A5: 2015/16 Q1 | B5: =VLOOKUP(J5,'Control Panel'!$O$3:$S$47,5,FALSE) -> NW8 | F5: 2015-05-07 | G5: 2015-07-01 | J5: F84710 | L5: 11639 | M5: 35 | N5: 31 | O5: 31 | P5: 31 | Q5: 27 | R5: 34 | S5: 43 | T5: 41 | U5: 42 | V5: 41 | W5: 42 | X5: 45 | Y5: 44 | Z5: 43 | AA5: 34 | AB5: 43 | AC5: 43
A6: 2015/16 Q1 | B6: =VLOOKUP(J6,'Control Panel'!$O$3:$S$47,5,FALSE) -> NW1 | J6: F84083 | L6: 8218 | M6: 29 | N6: 27 | O6: 27 | P6: 27 | Q6: 24 | R6: 28 | S6: 22 | T6: 22 | U6: 21 | V6: 20 | W6: 21 | X6: 34 | Y6: 31 | Z6: 31 | AA6: 26 | AB6: 30 | AC6: 29
A7: 2015/16 Q1 | B7: =VLOOKUP(J7,'Control Panel'!$O$3:$S$47,5,FALSE) -> NW3&4 | J7: F84031 | L7: 10936 | M7: 39 | N7: 38 | O7: 38 | P7: 37 | Q7: 33 | R7: 37 | S7: 41 | T7: 40 | U7: 37 | V7: 38 | W7: 37 | X7: 30 | Y7: 28 | Z7: 28 | AA7: 30 | AB7: 26 | AC7: 29
A8: 2015/16 Q1 | B8: =VLOOKUP(J8,'Control Panel'!$O$3:$S$47,5,FALSE) -> NW5 | J8: F84044 | L8: 5762 | M8: 20 | N8: 20 | O8: 20 | P8: 20 | Q8: 19 | R8: 19 | S8: 21 | T8: 21 | U8: 21 | V8: 21 | W8: 21 | X8: 25 | Y8: 25 | Z8: 25 | AA8: 25 | AB8: 24 | AC8: 25
A9: 2015/16 Q1 | B9: =VLOOKUP(J9,'Control Panel'!$O$3:$S$47,5,FALSE) -> NW7 | J9: F84054 | L9: 10599 | M9: 54 | N9: 53 | O9: 53 | P9: 53 | Q9: 49 | R9: 50 | S9: 47 | T9: 47 | U9: 45 | V9: 44 | W9: 43 | X9: 42 | Y9: 42 | Z9: 41 | AA9: 40 | AB9: 41 | AC9: 39
A10: 2015/16 Q1 | B10: =VLOOKUP(J10,'Control Panel'!$O$3:$S$47,5,FALSE) -> NW7 | J10: F84062 | L10: 13580 | M10: 51 | N10: 43 | O10: 44 | P10: 43 | Q10: 42 | R10: 44 | S10: 65 | T10: 65 | U10: 55 | V10: 57 | W10: 57 | X10: 65 | Y10: 64 | Z10: 62 | AA10: 50 | AB10: 61 | AC10: 53
A11: 2015/16 Q1 | B11: =VLOOKUP(J11,'Control Panel'!$O$3:$S$47,5,FALSE) -> NW5 | J11: F84034 | L11: 12800 | M11: 55 | N11: 54 | O11: 54 | P11: 55 | Q11: 50 | R11: 53 | S11: 44 | T11: 43 | U11: 39 | V11: 40 | W11: 40 | X11: 58 | Y11: 55 | Z11: 54 | AA11: 52 | AB11: 53 | AC11: 52
A12: 2015/16 Q1 | B12: =VLOOKUP(J12,'Control Panel'!$O$3:$S$47,5,FALSE) -> NW1 | J12: F84016 | L12: 11587 | M12: 28 | N12: 24 | O12: 25 | P12: 24 | Q12: 20 | R12: 23 | S12: 35 | T12: 30 | U12: 28 | V12: 29 | W12: 28 | X12: 33 | Y12: 30 | Z12: 30 | AA12: 28 | AB12: 30 | AC12: 29
A13: 2015/16 Q1 | B13: =VLOOKUP(J13,'Control Panel'!$O$3:$S$47,5,FALSE) -> NW3&4 | J13: F84731 | L13: 1805 | M13: 2 | N13: 2 | O13: 2 | P13: 2 | Q13: 2 | R13: 2 | S13: 7 | T13: 7 | U13: 7 | V13: 7 | W13: 7 | X13: 2 | Y13: 2 | Z13: 2 | AA13: 2 | AB13: 2 | AC13: 2
A14: 2015/16 Q1 | B14: =VLOOKUP(J14,'Control Panel'!$O$3:$S$47,5,FALSE) -> NW6 | J14: F84676 | L14: 4417 | M14: 13 | N14: 13 | O14: 13 | P14: 13 | Q14: 12 | R14: 13 | S14: 10 | T14: 10 | U14: 10 | V14: 10 | W14: 9 | X14: 9 | Y14: 9 | Z14: 9 | AA14: 8 | AB14: 9 | AC14: 9
A15: 2015/16 Q1 | B15: =VLOOKUP(J15,'Control Panel'!$O$3:$S$47,5,FALSE) -> NW8 | J15: F84656 | L15: 7525 | M15: 29 | N15: 26 | O15: 27 | P15: 26 | Q15: 26 | R15: 26 | S15: 21 | T15: 21 | U15: 21 | V15: 21 | W15: 21 | X15: 22 | Y15: 21 | Z15: 20 | AA15: 21 | AB15: 19 | AC15: 20
A16: 2015/16 Q1 | B16: =VLOOKUP(J16,'Control Panel'!$O$3:$S$47,5,FALSE) -> NW8 | J16: F84647 | L16: 6175 | M16: 19 | N16: 17 | O16: 18 | P16: 17 | Q16: 17 | R16: 17 | S16: 20 | T16: 18 | U16: 17 | V16: 18 | W16: 17 | X16: 16 | Y16: 16 | Z16: 16 | AA16: 15 | AB16: 14 | AC16: 16
A17: 2015/16 Q1 | B17: =VLOOKUP(J17,'Control Panel'!$O$3:$S$47,5,FALSE) -> NW3&4 | J17: F84682 | L17: 10312 | M17: 54 | N17: 49 | O17: 50 | P17: 49 | Q17: 43 | R17: 49 | S17: 38 | T17: 38 | U17: 35 | V17: 34 | W17: 35 | X17: 34 | Y17: 31 | Z17: 30 | AA17: 21 | AB17: 26 | AC17: 24
A18: 2015/16 Q1 | B18: =VLOOKUP(J18,'Control Panel'!$O$3:$S$47,5,FALSE) -> NW5 | J18: F84030 | L18: 2795 | M18: 3 | N18: 3 | O18: 3 | P18: 3 | Q18: 3 | R18: 3 | S18: 10 | T18: 9 | U18: 8 | V18: 9 | W18: 9 | X18: 12 | Y18: 11 | Z18: 11 | AA18: 9 | AB18: 8 | AC18: 10
A19: 2015/16 Q1 | B19: =VLOOKUP(J19,'Control Panel'!$O$3:$S$47,5,FALSE) -> NW6 | J19: Y03023 | L19: 9390 | M19: 36 | N19: 35 | O19: 34 | P19: 35 | Q19: 35 | R19: 35 | S19: 47 | T19: 46 | U19: 44 | V19: 43 | W19: 44 | X19: 44 | Y19: 42 | Z19: 42 | AA19: 37 | AB19: 41 | AC19: 39
A20: 2015/16 Q1 | B20: =VLOOKUP(J20,'Control Panel'!$O$3:$S$47,5,FALSE) -> NW6 | J20: F84118 | L20: 5233 | M20: 10 | N20: 9 | O20: 9 | P20: 10 | Q20: 9 | R20: 9 | S20: 19 | T20: 18 | U20: 18 | V20: 17 | W20: 18 | X20: 10 | Y20: 10 | Z20: 10 | AA20: 10 | AB20: 10 | AC20: 10
A21: 2015/16 Q1 | B21: =VLOOKUP(J21,'Control Panel'!$O$3:$S$47,5,FALSE) -> NW1 | J21: F84123 | L21: 11125 | M21: 27 | N21: 25 | O21: 27 | P21: 25 | Q21: 23 | R21: 27 | S21: 27 | T21: 26 | U21: 24 | V21: 24 | W21: 24 | X21: 22 | Y21: 22 | Z21: 21 | AA21: 21 | AB21: 22 | AC21: 21
A22: 2015/16 Q1 | B22: =VLOOKUP(J22,'Control Panel'!$O$3:$S$47,5,FALSE) -> NW5 | J22: F84055 | L22: 3608 | M22: 10 | N22: 8 | O22: 8 | P22: 9 | Q22: 6 | R22: 9 | S22: 4 | T22: 4 | U22: 4 | V22: 4 | W22: 4 | X22: 11 | Y22: 10 | Z22: 10 | AA22: 8 | AB22: 9 | AC22: 8
A23: 2015/16 Q1 | B23: =VLOOKUP(J23,'Control Panel'!$O$3:$S$47,5,FALSE) -> NW2 | J23: F84718 | L23: 10561 | M23: 33 | N23: 28 | O23: 31 | P23: 28 | Q23: 28 | R23: 31 | S23: 38 | T23: 37 | U23: 34 | V23: 34 | W23: 35 | X23: 24 | Y23: 24 | Z23: 23 | AA23: 19 | AB23: 20 | AC23: 23
A24: 2015/16 Q1 | B24: =VLOOKUP(J24,'Control Panel'!$O$3:$S$47,5,FALSE) -> NW3&4 | J24: F84046 | L24: 3287 | M24: 7 | N24: 7 | O24: 7 | P24: 7 | Q24: 7 | R24: 7 | S24: 11 | T24: 11 | U24: 11 | V24: 11 | W24: 11 | X24: 12 | Y24: 12 | Z24: 12 | AA24: 12 | AB24: 12 | AC24: 12
A25: 2015/16 Q1 | B25: =VLOOKUP(J25,'Control Panel'!$O$3:$S$47,5,FALSE) -> NW1 | J25: Y00212 | L25: 4791 | M25: 13 | N25: 11 | O25: 12 | P25: 12 | Q25: 12 | R25: 11 | S25: 17 | T25: 17 | U25: 17 | V25: 17 | W25: 17 | X25: 7 | Y25: 7 | Z25: 6 | AA25: 4 | AB25: 6 | AC25: 7
A26: 2015/16 Q1 | B26: =VLOOKUP(J26,'Control Panel'!$O$3:$S$47,5,FALSE) ->  | J26: F841229B1F | L26: 8305 | M26: 58 | N26: 55 | O26: 57 | P26: 55 | Q26: 52 | R26: 55 | S26: 52 | T26: 47 | U26: 43 | V26: 43 | W26: 43 | X26: 43 | Y26: 42 | Z26: 42 | AA26: 28 | AB26: 39 | AC26: 36
A27: 2015/16 Q1 | B27: =VLOOKUP(J27,'Control Panel'!$O$3:$S$47,5,FALSE) -> NW1 | J27: F84051 | L27: 3758 | M27: 10 | N27: 10 | O27: 10 | P27: 10 | Q27: 9 | R27: 9 | S27: 4 | T27: 4 | U27: 4 | V27: 4 | W27: 4 | X27: 5 | Y27: 5 | Z27: 5 | AA27: 4 | AB27: 5 | AC27: 5
A28: 2015/16 Q1 | B28: =VLOOKUP(J28,'Control Panel'!$O$3:$S$47,5,FALSE) -> NW7 | J28: F84698 | L28: 6279 | M28: 20 | N28: 19 | O28: 19 | P28: 19 | Q28: 19 | R28: 19 | S28: 26 | T28: 26 | U28: 25 | V28: 26 | W28: 26 | X28: 24 | Y28: 24 | Z28: 23 | AA28: 18 | AB28: 22 | AC28: 24
A29: 2015/16 Q1 | B29: =VLOOKUP(J29,'Control Panel'!$O$3:$S$47,5,FALSE) -> NW3&4 | J29: F84039 | L29: 8385 | M29: 34 | N29: 32 | O29: 33 | P29: 32 | Q29: 30 | R29: 33 | S29: 37 | T29: 37 | U29: 37 | V29: 37 | W29: 36 | X29: 22 | Y29: 22 | Z29: 22 | AA29: 16 | AB29: 21 | AC29: 20
A30: 2015/16 Q1 | B30: =VLOOKUP(J30,'Control Panel'!$O$3:$S$47,5,FALSE) ->  | J30: F84702 | L30: 6024 | M30: 34 | N30: 32 | O30: 33 | P30: 32 | Q30: 26 | R30: 31 | S30: 21 | T30: 20 | U30: 16 | V30: 16 | W30: 15 | X30: 23 | Y30: 22 | Z30: 21 | AA30: 18 | AB30: 19 | AC30: 19
A31: 2015/16 Q1 | B31: =VLOOKUP(J31,'Control Panel'!$O$3:$S$47,5,FALSE) -> NW6 | J31: F84714 | L31: 10631 | M31: 44 | N31: 44 | O31: 44 | P31: 44 | Q31: 42 | R31: 44 | S31: 45 | T31: 43 | U31: 35 | V31: 37 | W31: 37 | X31: 49 | Y31: 47 | Z31: 45 | AA31: 42 | AB31: 44 | AC31: 42
A32: 2015/16 Q1 | B32: =VLOOKUP(J32,'Control Panel'!$O$3:$S$47,5,FALSE) -> NW7 | J32: F84025 | L32: 4740 | M32: 27 | N32: 26 | O32: 27 | P32: 26 | Q32: 23 | R32: 26 | S32: 18 | T32: 18 | U32: 18 | V32: 17 | W32: 17 | X32: 15 | Y32: 15 | Z32: 15 | AA32: 12 | AB32: 14 | AC32: 15
A33: 2015/16 Q1 | B33: =VLOOKUP(J33,'Control Panel'!$O$3:$S$47,5,FALSE) -> NW3&4 | J33: F84114 | L33: 7431 | M33: 16 | N33: 15 | O33: 15 | P33: 15 | Q33: 7 | R33: 13 | S33: 26 | T33: 25 | U33: 24 | V33: 24 | W33: 24 | X33: 15 | Y33: 11 | Z33: 11 | AA33: 11 | AB33: 9 | AC33: 12
A34: 2015/16 Q1 | B34: =VLOOKUP(J34,'Control Panel'!$O$3:$S$47,5,FALSE) -> NW2 | J34: F84733 | L34: 1279 | M34: 0 | N34: 0 | O34: 0 | P34: 0 | Q34: 0 | R34: 0 | S34: 0 | T34: 0 | U34: 0 | V34: 0 | W34: 0 | X34: 0 | Y34: 0 | Z34: 0 | AA34: 0 | AB34: 0 | AC34: 0
A35: 2015/16 Q1 | B35: =VLOOKUP(J35,'Control Panel'!$O$3:$S$47,5,FALSE) -> NW8 | J35: F84747 | L35: 18600 | M35: 90 | N35: 87 | O35: 84 | P35: 88 | Q35: 77 | R35: 84 | S35: 69 | T35: 66 | U35: 64 | V35: 60 | W35: 64 | X35: 65 | Y35: 64 | Z35: 62 | AA35: 46 | AB35: 61 | AC35: 56
A36: 2015/16 Q1 | B36: =VLOOKUP(J36,'Control Panel'!$O$3:$S$47,5,FALSE) -> NW5 | J36: F84696 | L36: 4251 | M36: 14 | N36: 14 | O36: 14 | P36: 14 | Q36: 13 | R36: 14 | S36: 9 | T36: 8 | U36: 8 | V36: 8 | W36: 8 | X36: 11 | Y36: 11 | Z36: 11 | AA36: 7 | AB36: 11 | AC36: 10
A37: 2015/16 Q1 | B37: =VLOOKUP(J37,'Control Panel'!$O$3:$S$47,5,FALSE) -> NW2 | J37: F84012 | L37: 8940 | M37: 34 | N37: 32 | O37: 33 | P37: 32 | Q37: 30 | R37: 32 | S37: 33 | T37: 33 | U37: 31 | V37: 30 | W37: 31 | X37: 20 | Y37: 19 | Z37: 18 | AA37: 18 | AB37: 17 | AC37: 18
A38: 2015/16 Q1 | B38: =VLOOKUP(J38,'Control Panel'!$O$3:$S$47,5,FALSE) ->  | J38: F841229B1G | L38: 6501 | M38: 31 | N38: 29 | O38: 31 | P38: 29 | Q38: 28 | R38: 31 | S38: 20 | T38: 20 | U38: 19 | V38: 19 | W38: 19 | X38: 24 | Y38: 23 | Z38: 23 | AA38: 13 | AB38: 39 | AC38: 36
A39: 2015/16 Q1 | B39: =VLOOKUP(J39,'Control Panel'!$O$3:$S$47,5,FALSE) -> 0 | J39: Total | L39: 293923 | M39: 1091 | N39: 1023 | O39: 1041 | P39: 1027 | Q39: 941 | R39: 1021 | S39: 1062 | T39: 1030 | U39: 970 | V39: 965 | W39: 971 | X39: 964 | Y39: 930 | Z39: 912 | AA39: 783 | AB39: 893 | AC39: 878
A40: 2015/16 Q2 | B40: =VLOOKUP(J40,'Control Panel'!$O$3:$S$47,5,FALSE) ->  | E40: Parent Population | F40: Author | G40: Last Run | K40: Search | L40: All Patients | M40: (01) 12 MONTH COHORT | N40: (01.01) DTaP/IPV/Hib | O40: (01.02) Men B (1st and 2nd) | P40: (01.03) PCV | Q40: (01.04) Rotavirus | R40: (01.05) BCG | S40: (02) 24 MONTH COHORT | T40: (02.01) DTaP/IPV/Hib | U40: (02.02) MMR | V40: (02.03) HiB/Men C | W40: (02.04) PCV (Booster) | X40: (03) 5 YEAR COHORT | Y40: (03.01) DTaP/IPV/Hib | Z40: (03.02) MMR (Primary) | AA40: (03.03) DTaP/IPV (Booster) | AB40: (03.04) HiB/Men C | AC40: (03.05) MMR (Booster)
A41: 2015/16 Q2 | B41: =VLOOKUP(J41,'Control Panel'!$O$3:$S$47,5,FALSE) -> NW2 | E41: Currently registered patients | F41: DUNNE, Jack (Mr) | G41: 2015-10-02T09:28:00 | J41: F84081 | L41: 12513 | M41: 40 | N41: 39 | O41: 39 | P41: 39 | Q41: 38 | R41: 38 | S41: 21 | T41: 18 | U41: 19 | V41: 17 | W41: 18 | X41: 36 | Y41: 33 | Z41: 33 | AA41: 33 | AB41: 32 | AC41: 31
A42: 2015/16 Q2 | B42: =VLOOKUP(J42,'Control Panel'!$O$3:$S$47,5,FALSE) -> NW3&4 | J42: F84079 | L42: 9511 | M42: 41 | N42: 40 | O42: 39 | P42: 39 | Q42: 33 | R42: 39 | S42: 29 | T42: 28 | U42: 27 | V42: 28 | W42: 26 | X42: 31 | Y42: 30 | Z42: 28 | AA42: 23 | AB42: 27 | AC42: 27
A43: 2015/16 Q2 | B43: =VLOOKUP(J43,'Control Panel'!$O$3:$S$47,5,FALSE) -> NW3&4 | F43: Date Modified | G43: Relative Date | J43: F84087 | L43: 11066 | M43: 44 | N43: 42 | O43: 42 | P43: 42 | Q43: 37 | R43: 42 | S43: 51 | T43: 50 | U43: 49 | V43: 49 | W43: 49 | X43: 49 | Y43: 49 | Z43: 48 | AA43: 45 | AB43: 48 | AC43: 47
A44: 2015/16 Q2 | B44: =VLOOKUP(J44,'Control Panel'!$O$3:$S$47,5,FALSE) -> NW8 | F44: 2015-09-30 | G44: 2015-10-01 | J44: F84710 | L44: 11823 | M44: 47 | N44: 46 | O44: 44 | P44: 44 | Q44: 42 | R44: 46 | S44: 48 | T44: 47 | U44: 45 | V44: 45 | W44: 45 | X44: 31 | Y44: 27 | Z44: 29 | AA44: 28 | AB44: 27 | AC44: 29
A45: 2015/16 Q2 | B45: =VLOOKUP(J45,'Control Panel'!$O$3:$S$47,5,FALSE) -> NW1 | J45: F84083 | L45: 8322 | M45: 32 | N45: 31 | O45: 30 | P45: 31 | Q45: 31 | R45: 30 | S45: 24 | T45: 24 | U45: 24 | V45: 24 | W45: 24 | X45: 20 | Y45: 20 | Z45: 16 | AA45: 16 | AB45: 17 | AC45: 17
A46: 2015/16 Q2 | B46: =VLOOKUP(J46,'Control Panel'!$O$3:$S$47,5,FALSE) -> NW3&4 | J46: F84031 | L46: 11036 | M46: 36 | N46: 35 | O46: 35 | P46: 35 | Q46: 35 | R46: 34 | S46: 50 | T46: 49 | U46: 47 | V46: 47 | W46: 47 | X46: 35 | Y46: 34 | Z46: 33 | AA46: 32 | AB46: 34 | AC46: 33
A47: 2015/16 Q2 | B47: =VLOOKUP(J47,'Control Panel'!$O$3:$S$47,5,FALSE) -> NW5 | J47: F84044 | L47: 5774 | M47: 32 | N47: 30 | O47: 31 | P47: 30 | Q47: 29 | R47: 31 | S47: 20 | T47: 20 | U47: 19 | V47: 18 | W47: 19 | X47: 19 | Y47: 19 | Z47: 19 | AA47: 18 | AB47: 18 | AC47: 18
A48: 2015/16 Q2 | B48: =VLOOKUP(J48,'Control Panel'!$O$3:$S$47,5,FALSE) -> NW7 | J48: F84054 | L48: 10681 | M48: 47 | N48: 46 | O48: 46 | P48: 46 | Q48: 42 | R48: 43 | S48: 26 | T48: 26 | U48: 25 | V48: 24 | W48: 25 | X48: 29 | Y48: 29 | Z48: 29 | AA48: 28 | AB48: 29 | AC48: 28
A49: 2015/16 Q2 | B49: =VLOOKUP(J49,'Control Panel'!$O$3:$S$47,5,FALSE) -> NW7 | J49: F84062 | L49: 13867 | M49: 55 | N49: 54 | O49: 54 | P49: 54 | Q49: 48 | R49: 54 | S49: 51 | T49: 51 | U49: 48 | V49: 47 | W49: 47 | X49: 51 | Y49: 49 | Z49: 49 | AA49: 43 | AB49: 46 | AC49: 43
A50: 2015/16 Q2 | B50: =VLOOKUP(J50,'Control Panel'!$O$3:$S$47,5,FALSE) -> NW5 | J50: F84034 | L50: 12796 | M50: 39 | N50: 38 | O50: 38 | P50: 38 | Q50: 36 | R50: 36 | S50: 43 | T50: 42 | U50: 40 | V50: 41 | W50: 41 | X50: 39 | Y50: 37 | Z50: 36 | AA50: 36 | AB50: 37 | AC50: 35
A51: 2015/16 Q2 | B51: =VLOOKUP(J51,'Control Panel'!$O$3:$S$47,5,FALSE) -> NW1 | J51: F84016 | L51: 11592 | M51: 20 | N51: 19 | O51: 19 | P51: 19 | Q51: 17 | R51: 17 | S51: 54 | T51: 52 | U51: 51 | V51: 51 | W51: 51 | X51: 35 | Y51: 33 | Z51: 28 | AA51: 30 | AB51: 31 | AC51: 31
A52: 2015/16 Q2 | B52: =VLOOKUP(J52,'Control Panel'!$O$3:$S$47,5,FALSE) -> NW3&4 | J52: F84731 | L52: 1837 | M52: 4 | N52: 4 | O52: 4 | P52: 4 | Q52: 4 | R52: 4 | S52: 3 | T52: 3 | U52: 3 | V52: 3 | W52: 3 | X52: 4 | Y52: 4 | Z52: 4 | AA52: 3 | AB52: 3 | AC52: 3
A53: 2015/16 Q2 | B53: =VLOOKUP(J53,'Control Panel'!$O$3:$S$47,5,FALSE) -> NW6 | J53: F84676 | L53: 4391 | M53: 18 | N53: 16 | O53: 16 | P53: 16 | Q53: 16 | R53: 16 | S53: 21 | T53: 21 | U53: 21 | V53: 21 | W53: 21 | X53: 23 | Y53: 23 | Z53: 23 | AA53: 20 | AB53: 22 | AC53: 21
A54: 2015/16 Q2 | B54: =VLOOKUP(J54,'Control Panel'!$O$3:$S$47,5,FALSE) -> NW8 | J54: F84656 | L54: 7566 | M54: 28 | N54: 26 | O54: 26 | P54: 25 | Q54: 26 | R54: 24 | S54: 22 | T54: 21 | U54: 20 | V54: 18 | W54: 19 | X54: 14 | Y54: 13 | Z54: 13 | AA54: 11 | AB54: 12 | AC54: 12
A55: 2015/16 Q2 | B55: =VLOOKUP(J55,'Control Panel'!$O$3:$S$47,5,FALSE) -> NW8 | J55: F84647 | L55: 6324 | M55: 16 | N55: 15 | O55: 14 | P55: 14 | Q55: 14 | R55: 14 | S55: 17 | T55: 16 | U55: 15 | V55: 14 | W55: 15 | X55: 11 | Y55: 10 | Z55: 11 | AA55: 10 | AB55: 9 | AC55: 11
A56: 2015/16 Q2 | B56: =VLOOKUP(J56,'Control Panel'!$O$3:$S$47,5,FALSE) -> NW3&4 | J56: F84682 | L56: 10447 | M56: 49 | N56: 46 | O56: 48 | P56: 46 | Q56: 40 | R56: 44 | S56: 43 | T56: 39 | U56: 36 | V56: 35 | W56: 39 | X56: 47 | Y56: 46 | Z56: 47 | AA56: 42 | AB56: 42 | AC56: 43
A57: 2015/16 Q2 | B57: =VLOOKUP(J57,'Control Panel'!$O$3:$S$47,5,FALSE) -> NW5 | J57: F84030 | L57: 2798 | M57: 8 | N57: 8 | O57: 8 | P57: 8 | Q57: 8 | R57: 8 | S57: 8 | T57: 6 | U57: 6 | V57: 5 | W57: 6 | X57: 6 | Y57: 5 | Z57: 5 | AA57: 6 | AB57: 3 | AC57: 6
A58: 2015/16 Q2 | B58: =VLOOKUP(J58,'Control Panel'!$O$3:$S$47,5,FALSE) -> NW6 | J58: Y03023 | L58: 9811 | M58: 58 | N58: 55 | O58: 55 | P58: 55 | Q58: 51 | R58: 57 | S58: 51 | T58: 50 | U58: 47 | V58: 46 | W58: 45 | X58: 36 | Y58: 35 | Z58: 34 | AA58: 30 | AB58: 32 | AC58: 33
A59: 2015/16 Q2 | B59: =VLOOKUP(J59,'Control Panel'!$O$3:$S$47,5,FALSE) -> NW6 | J59: F84118 | L59: 5204 | M59: 20 | N59: 20 | O59: 20 | P59: 20 | Q59: 18 | R59: 20 | S59: 10 | T59: 9 | U59: 9 | V59: 10 | W59: 10 | X59: 19 | Y59: 19 | Z59: 18 | AA59: 18 | AB59: 18 | AC59: 18
A60: 2015/16 Q2 | B60: =VLOOKUP(J60,'Control Panel'!$O$3:$S$47,5,FALSE) -> NW1 | J60: F84123 | L60: 11790 | M60: 22 | N60: 21 | O60: 21 | P60: 21 | Q60: 20 | R60: 21 | S60: 25 | T60: 25 | U60: 23 | V60: 23 | W60: 23 | X60: 27 | Y60: 27 | Z60: 25 | AA60: 24 | AB60: 24 | AC60: 26
A61: 2015/16 Q2 | B61: =VLOOKUP(J61,'Control Panel'!$O$3:$S$47,5,FALSE) -> NW5 | J61: F84055 | L61: 3611 | M61: 10 | N61: 10 | O61: 10 | P61: 10 | Q61: 9 | R61: 10 | S61: 8 | T61: 8 | U61: 8 | V61: 8 | W61: 8 | X61: 6 | Y61: 6 | Z61: 6 | AA61: 5 | AB61: 6 | AC61: 6
A62: 2015/16 Q2 | B62: =VLOOKUP(J62,'Control Panel'!$O$3:$S$47,5,FALSE) -> NW2 | J62: F84718 | L62: 10728 | M62: 43 | N62: 41 | O62: 42 | P62: 41 | Q62: 39 | R62: 42 | S62: 35 | T62: 33 | U62: 31 | V62: 31 | W62: 32 | X62: 28 | Y62: 27 | Z62: 27 | AA62: 19 | AB62: 27 | AC62: 25
A63: 2015/16 Q2 | B63: =VLOOKUP(J63,'Control Panel'!$O$3:$S$47,5,FALSE) -> NW3&4 | J63: F84046 | L63: 3344 | M63: 9 | N63: 9 | O63: 9 | P63: 9 | Q63: 8 | R63: 9 | S63: 15 | T63: 15 | U63: 14 | V63: 14 | W63: 14 | X63: 10 | Y63: 10 | Z63: 10 | AA63: 9 | AB63: 9 | AC63: 10
A64: 2015/16 Q2 | B64: =VLOOKUP(J64,'Control Panel'!$O$3:$S$47,5,FALSE) -> NW1 | J64: Y00212 | L64: 4911 | M64: 16 | N64: 15 | O64: 14 | P64: 15 | Q64: 10 | R64: 14 | S64: 11 | T64: 10 | U64: 9 | V64: 9 | W64: 9 | X64: 14 | Y64: 14 | Z64: 14 | AA64: 10 | AB64: 14 | AC64: 14
A65: 2015/16 Q2 | B65: =VLOOKUP(J65,'Control Panel'!$O$3:$S$47,5,FALSE) ->  | J65: F841229B1F | L65: 8416 | M65: 67 | N65: 64 | O65: 66 | P65: 64 | Q65: 59 | R65: 63 | S65: 68 | T65: 66 | U65: 64 | V65: 64 | W65: 65 | X65: 62 | Y65: 58 | Z65: 59 | AA65: 42 | AB65: 57 | AC65: 48
A66: 2015/16 Q2 | B66: =VLOOKUP(J66,'Control Panel'!$O$3:$S$47,5,FALSE) -> NW1 | J66: F84051 | L66: 3842 | M66: 13 | N66: 13 | O66: 13 | P66: 13 | Q66: 13 | R66: 13 | S66: 11 | T66: 10 | U66: 10 | V66: 10 | W66: 10 | X66: 10 | Y66: 10 | Z66: 10 | AA66: 6 | AB66: 10 | AC66: 10
A67: 2015/16 Q2 | B67: =VLOOKUP(J67,'Control Panel'!$O$3:$S$47,5,FALSE) -> NW7 | J67: F84698 | L67: 6366 | M67: 37 | N67: 34 | O67: 36 | P67: 35 | Q67: 33 | R67: 35 | S67: 41 | T67: 40 | U67: 35 | V67: 37 | W67: 36 | X67: 35 | Y67: 35 | Z67: 33 | AA67: 28 | AB67: 31 | AC67: 30
A68: 2015/16 Q2 | B68: =VLOOKUP(J68,'Control Panel'!$O$3:$S$47,5,FALSE) -> NW3&4 | J68: F84039 | L68: 8646 | M68: 36 | N68: 36 | O68: 36 | P68: 36 | Q68: 35 | R68: 35 | S68: 37 | T68: 36 | U68: 36 | V68: 36 | W68: 35 | X68: 33 | Y68: 32 | Z68: 32 | AA68: 28 | AB68: 31 | AC68: 32
A69: 2015/16 Q2 | B69: =VLOOKUP(J69,'Control Panel'!$O$3:$S$47,5,FALSE) ->  | J69: F84702 | L69: 6089 | M69: 37 | N69: 34 | O69: 34 | P69: 34 | Q69: 25 | R69: 31 | S69: 23 | T69: 21 | U69: 20 | V69: 20 | W69: 19 | X69: 30 | Y69: 30 | Z69: 29 | AA69: 27 | AB69: 26 | AC69: 27
A70: 2015/16 Q2 | B70: =VLOOKUP(J70,'Control Panel'!$O$3:$S$47,5,FALSE) -> NW6 | J70: F84714 | L70: 10739 | M70: 49 | N70: 49 | O70: 49 | P70: 49 | Q70: 43 | R70: 48 | S70: 33 | T70: 32 | U70: 32 | V70: 31 | W70: 30 | X70: 55 | Y70: 54 | Z70: 54 | AA70: 45 | AB70: 54 | AC70: 52
A71: 2015/16 Q2 | B71: =VLOOKUP(J71,'Control Panel'!$O$3:$S$47,5,FALSE) -> NW7 | J71: F84025 | L71: 4871 | M71: 17 | N71: 15 | O71: 17 | P71: 15 | Q71: 14 | R71: 17 | S71: 25 | T71: 25 | U71: 25 | V71: 25 | W71: 25 | X71: 21 | Y71: 21 | Z71: 19 | AA71: 15 | AB71: 18 | AC71: 19
A72: 2015/16 Q2 | B72: =VLOOKUP(J72,'Control Panel'!$O$3:$S$47,5,FALSE) -> NW3&4 | J72: F84114 | L72: 7557 | M72: 23 | N72: 23 | O72: 23 | P72: 23 | Q72: 12 | R72: 21 | S72: 19 | T72: 18 | U72: 17 | V72: 17 | W72: 17 | X72: 11 | Y72: 11 | Z72: 10 | AA72: 7 | AB72: 10 | AC72: 11
A73: 2015/16 Q2 | B73: =VLOOKUP(J73,'Control Panel'!$O$3:$S$47,5,FALSE) -> NW2 | J73: F84733 | L73: 1318 | M73: 0 | N73: 0 | O73: 0 | P73: 0 | Q73: 0 | R73: 0 | S73: 0 | T73: 0 | U73: 0 | V73: 0 | W73: 0 | X73: 0 | Y73: 0 | Z73: 0 | AA73: 0 | AB73: 0 | AC73: 0
A74: 2015/16 Q2 | B74: =VLOOKUP(J74,'Control Panel'!$O$3:$S$47,5,FALSE) -> NW8 | J74: F84747 | L74: 18852 | M74: 88 | N74: 81 | O74: 81 | P74: 81 | Q74: 77 | R74: 82 | S74: 76 | T74: 72 | U74: 70 | V74: 71 | W74: 73 | X74: 47 | Y74: 46 | Z74: 44 | AA74: 38 | AB74: 44 | AC74: 44
A75: 2015/16 Q2 | B75: =VLOOKUP(J75,'Control Panel'!$O$3:$S$47,5,FALSE) -> NW5 | J75: F84696 | L75: 4390 | M75: 22 | N75: 21 | O75: 21 | P75: 21 | Q75: 21 | R75: 21 | S75: 12 | T75: 12 | U75: 10 | V75: 10 | W75: 12 | X75: 10 | Y75: 10 | Z75: 9 | AA75: 8 | AB75: 10 | AC75: 8
A76: 2015/16 Q2 | B76: =VLOOKUP(J76,'Control Panel'!$O$3:$S$47,5,FALSE) -> NW2 | J76: F84012 | L76: 9030 | M76: 43 | N76: 41 | O76: 41 | P76: 41 | Q76: 37 | R76: 41 | S76: 35 | T76: 32 | U76: 31 | V76: 32 | W76: 32 | X76: 35 | Y76: 35 | Z76: 34 | AA76: 30 | AB76: 34 | AC76: 31
A77: 2015/16 Q2 | B77: =VLOOKUP(J77,'Control Panel'!$O$3:$S$47,5,FALSE) ->  | J77: F841229B1G | L77: 6518 | M77: 33 | N77: 32 | O77: 33 | P77: 32 | Q77: 28 | R77: 33 | S77: 34 | T77: 34 | U77: 33 | V77: 33 | W77: 33 | X77: 30 | Y77: 29 | Z77: 30 | AA77: 22 | AB77: 57 | AC77: 48
A78: 2015/16 Q2 | B78: =VLOOKUP(J78,'Control Panel'!$O$3:$S$47,5,FALSE) -> 0 | J78: Total | L78: 298377 | M78: 1199 | N78: 1149 | O78: 1154 | P78: 1145 | Q78: 1048 | R78: 1133 | S78: 1100 | T78: 1061 | U78: 1019 | V78: 1014 | W78: 1023 | X78: 999 | Y78: 970 | Z78: 948 | AA78: 835 | AB78: 949 | AC78: 927
A79: 2015/16 Q3 | B79: =VLOOKUP(J79,'Control Panel'!$O$3:$S$47,5,FALSE) ->  | E79: Parent Population | F79: Author | G79: Last Run | K79: Search | L79: All Patients | M79: (01) 12 MONTH COHORT | N79: (01.01) DTaP/IPV/Hib | O79: (01.02) Men B (1st and 2nd) | P79: (01.03) PCV | Q79: (01.04) Rotavirus | R79: (01.05) BCG | S79: (02) 24 MONTH COHORT | T79: (02.01) DTaP/IPV/Hib | U79: (02.02) MMR | V79: (02.03) HiB/Men C | W79: (02.04) PCV (Booster) | X79: (03) 5 YEAR COHORT | Y79: (03.01) DTaP/IPV/Hib | Z79: (03.02) MMR (Primary) | AA79: (03.03) DTaP/IPV (Booster) | AB79: (03.04) HiB/Men C | AC79: (03.05) MMR (Booster)
A80: 2015/16 Q3 | B80: =VLOOKUP(J80,'Control Panel'!$O$3:$S$47,5,FALSE) -> NW2 | E80: Currently registered patients | F80: DUNNE, Jack (Mr) | G80: 2016-01-05T16:41:00 | J80: F84081 | L80: 12630 | M80: 38 | N80: 35 | O80: 36 | P80: 35 | Q80: 31 | R80: 35 | S80: 36 | T80: 35 | U80: 33 | V80: 33 | W80: 33 | X80: 37 | Y80: 35 | Z80: 37 | AA80: 33 | AB80: 35 | AC80: 35
A81: 2015/16 Q3 | B81: =VLOOKUP(J81,'Control Panel'!$O$3:$S$47,5,FALSE) -> NW3&4 | J81: F84079 | L81: 9566 | M81: 29 | N81: 29 | O81: 29 | P81: 29 | Q81: 25 | R81: 28 | S81: 24 | T81: 24 | U81: 24 | V81: 24 | W81: 24 | X81: 35 | Y81: 32 | Z81: 33 | AA81: 25 | AB81: 31 | AC81: 33
A82: 2015/16 Q3 | B82: =VLOOKUP(J82,'Control Panel'!$O$3:$S$47,5,FALSE) -> NW3&4 | F82: Date Modified | G82: Relative Date | J82: F84087 | L82: 11268 | M82: 57 | N82: 56 | O82: 56 | P82: 56 | Q82: 53 | R82: 54 | S82: 58 | T82: 56 | U82: 54 | V82: 55 | W82: 55 | X82: 52 | Y82: 47 | Z82: 48 | AA82: 45 | AB82: 48 | AC82: 49
A83: 2015/16 Q3 | B83: =VLOOKUP(J83,'Control Panel'!$O$3:$S$47,5,FALSE) -> NW8 | F83: 2016-01-04 | G83: 2016-01-01 | J83: F84710 | L83: 11861 | M83: 40 | N83: 38 | O83: 39 | P83: 38 | Q83: 35 | R83: 39 | S83: 32 | T83: 31 | U83: 31 | V83: 31 | W83: 31 | X83: 34 | Y83: 33 | Z83: 34 | AA83: 30 | AB83: 33 | AC83: 32
A84: 2015/16 Q3 | B84: =VLOOKUP(J84,'Control Panel'!$O$3:$S$47,5,FALSE) -> NW1 | J84: F84083 | L84: 8295 | M84: 28 | N84: 28 | O84: 28 | P84: 28 | Q84: 26 | R84: 27 | S84: 25 | T84: 25 | U84: 23 | V84: 23 | W84: 23 | X84: 35 | Y84: 34 | Z84: 31 | AA84: 31 | AB84: 31 | AC84: 29
A85: 2015/16 Q3 | B85: =VLOOKUP(J85,'Control Panel'!$O$3:$S$47,5,FALSE) -> NW3&4 | J85: F84031 | L85: 11064 | M85: 37 | N85: 35 | O85: 35 | P85: 35 | Q85: 28 | R85: 37 | S85: 38 | T85: 38 | U85: 37 | V85: 37 | W85: 37 | X85: 40 | Y85: 39 | Z85: 38 | AA85: 40 | AB85: 36 | AC85: 38
A86: 2015/16 Q3 | B86: =VLOOKUP(J86,'Control Panel'!$O$3:$S$47,5,FALSE) -> NW5 | J86: F84044 | L86: 5809 | M86: 21 | N86: 17 | O86: 19 | P86: 17 | Q86: 17 | R86: 19 | S86: 24 | T86: 24 | U86: 23 | V86: 23 | W86: 23 | X86: 25 | Y86: 24 | Z86: 23 | AA86: 19 | AB86: 24 | AC86: 23
A87: 2015/16 Q3 | B87: =VLOOKUP(J87,'Control Panel'!$O$3:$S$47,5,FALSE) -> NW7 | J87: F84054 | L87: 10798 | M87: 45 | N87: 43 | O87: 44 | P87: 43 | Q87: 38 | R87: 43 | S87: 43 | T87: 40 | U87: 38 | V87: 39 | W87: 39 | X87: 40 | Y87: 38 | Z87: 38 | AA87: 36 | AB87: 38 | AC87: 38
A88: 2015/16 Q3 | B88: =VLOOKUP(J88,'Control Panel'!$O$3:$S$47,5,FALSE) -> NW7 | J88: F84062 | L88: 14176 | M88: 57 | N88: 57 | O88: 57 | P88: 57 | Q88: 52 | R88: 55 | S88: 51 | T88: 50 | U88: 48 | V88: 48 | W88: 49 | X88: 67 | Y88: 64 | Z88: 63 | AA88: 54 | AB88: 62 | AC88: 57
A89: 2015/16 Q3 | B89: =VLOOKUP(J89,'Control Panel'!$O$3:$S$47,5,FALSE) -> NW5 | J89: F84034 | L89: 12851 | M89: 58 | N89: 52 | O89: 54 | P89: 52 | Q89: 48 | R89: 53 | S89: 45 | T89: 45 | U89: 45 | V89: 44 | W89: 45 | X89: 49 | Y89: 49 | Z89: 44 | AA89: 40 | AB89: 46 | AC89: 41
A90: 2015/16 Q3 | B90: =VLOOKUP(J90,'Control Panel'!$O$3:$S$47,5,FALSE) -> NW1 | J90: F84016 | L90: 11177 | M90: 43 | N90: 39 | O90: 41 | P90: 39 | Q90: 37 | R90: 39 | S90: 37 | T90: 37 | U90: 36 | V90: 37 | W90: 37 | X90: 29 | Y90: 28 | Z90: 26 | AA90: 24 | AB90: 28 | AC90: 23
A91: 2015/16 Q3 | B91: =VLOOKUP(J91,'Control Panel'!$O$3:$S$47,5,FALSE) -> NW3&4 | J91: F84731 | L91: 1836 | M91: 5 | N91: 4 | O91: 3 | P91: 3 | Q91: 3 | R91: 2 | S91: 3 | T91: 3 | U91: 3 | V91: 3 | W91: 3 | X91: 4 | Y91: 4 | Z91: 4 | AA91: 4 | AB91: 4 | AC91: 4
A92: 2015/16 Q3 | B92: =VLOOKUP(J92,'Control Panel'!$O$3:$S$47,5,FALSE) -> NW6 | J92: F84676 | L92: 4489 | M92: 16 | N92: 14 | O92: 14 | P92: 14 | Q92: 13 | R92: 13 | S92: 15 | T92: 14 | U92: 15 | V92: 14 | W92: 15 | X92: 10 | Y92: 8 | Z92: 8 | AA92: 8 | AB92: 8 | AC92: 8
A93: 2015/16 Q3 | B93: =VLOOKUP(J93,'Control Panel'!$O$3:$S$47,5,FALSE) -> NW8 | J93: F84656 | L93: 7567 | M93: 22 | N93: 21 | O93: 22 | P93: 22 | Q93: 20 | R93: 20 | S93: 26 | T93: 26 | U93: 25 | V93: 24 | W93: 24 | X93: 20 | Y93: 19 | Z93: 19 | AA93: 17 | AB93: 19 | AC93: 17
A94: 2015/16 Q3 | B94: =VLOOKUP(J94,'Control Panel'!$O$3:$S$47,5,FALSE) -> NW8 | J94: F84647 | L94: 6597 | M94: 22 | N94: 21 | O94: 21 | P94: 21 | Q94: 17 | R94: 20 | S94: 23 | T94: 22 | U94: 23 | V94: 21 | W94: 23 | X94: 8 | Y94: 8 | Z94: 8 | AA94: 8 | AB94: 8 | AC94: 8
A95: 2015/16 Q3 | B95: =VLOOKUP(J95,'Control Panel'!$O$3:$S$47,5,FALSE) -> NW3&4 | J95: F84682 | L95: 10418 | M95: 48 | N95: 46 | O95: 46 | P95: 46 | Q95: 46 | R95: 46 | S95: 41 | T95: 40 | U95: 37 | V95: 36 | W95: 36 | X95: 37 | Y95: 33 | Z95: 33 | AA95: 32 | AB95: 32 | AC95: 32
A96: 2015/16 Q3 | B96: =VLOOKUP(J96,'Control Panel'!$O$3:$S$47,5,FALSE) -> NW5 | J96: F84030 | L96: 2810 | M96: 7 | N96: 7 | O96: 7 | P96: 7 | Q96: 7 | R96: 7 | S96: 7 | T96: 7 | U96: 7 | V96: 7 | W96: 7 | X96: 8 | Y96: 7 | Z96: 7 | AA96: 8 | AB96: 7 | AC96: 8
A97: 2015/16 Q3 | B97: =VLOOKUP(J97,'Control Panel'!$O$3:$S$47,5,FALSE) -> NW6 | J97: Y03023 | L97: 9999 | M97: 31 | N97: 31 | O97: 31 | P97: 31 | Q97: 27 | R97: 31 | S97: 58 | T97: 54 | U97: 52 | V97: 49 | W97: 51 | X97: 42 | Y97: 40 | Z97: 38 | AA97: 36 | AB97: 37 | AC97: 35
A98: 2015/16 Q3 | B98: =VLOOKUP(J98,'Control Panel'!$O$3:$S$47,5,FALSE) -> NW6 | J98: F84118 | L98: 5191 | M98: 17 | N98: 16 | O98: 16 | P98: 16 | Q98: 15 | R98: 16 | S98: 5 | T98: 4 | U98: 5 | V98: 4 | W98: 5 | X98: 12 | Y98: 12 | Z98: 12 | AA98: 12 | AB98: 12 | AC98: 12
A99: 2015/16 Q3 | B99: =VLOOKUP(J99,'Control Panel'!$O$3:$S$47,5,FALSE) -> NW1 | J99: F84123 | L99: 12215 | M99: 34 | N99: 30 | O99: 30 | P99: 30 | Q99: 28 | R99: 31 | S99: 29 | T99: 29 | U99: 25 | V99: 26 | W99: 25 | X99: 36 | Y99: 34 | Z99: 33 | AA99: 28 | AB99: 33 | AC99: 31
A100: 2015/16 Q3 | B100: =VLOOKUP(J100,'Control Panel'!$O$3:$S$47,5,FALSE) -> NW5 | J100: F84055 | L100: 3720 | M100: 12 | N100: 12 | O100: 12 | P100: 12 | Q100: 12 | R100: 10 | S100: 5 | T100: 5 | U100: 5 | V100: 5 | W100: 5 | X100: 7 | Y100: 6 | Z100: 6 | AA100: 6 | AB100: 6 | AC100: 6
A101: 2015/16 Q3 | B101: =VLOOKUP(J101,'Control Panel'!$O$3:$S$47,5,FALSE) -> NW2 | J101: F84718 | L101: 10977 | M101: 42 | N101: 38 | O101: 38 | P101: 38 | Q101: 37 | R101: 36 | S101: 31 | T101: 30 | U101: 28 | V101: 29 | W101: 28 | X101: 31 | Y101: 28 | Z101: 28 | AA101: 27 | AB101: 28 | AC101: 28
A102: 2015/16 Q3 | B102: =VLOOKUP(J102,'Control Panel'!$O$3:$S$47,5,FALSE) -> NW3&4 | J102: F84046 | L102: 3391 | M102: 17 | N102: 17 | O102: 17 | P102: 17 | Q102: 17 | R102: 17 | S102: 8 | T102: 8 | U102: 7 | V102: 7 | W102: 7 | X102: 13 | Y102: 13 | Z102: 13 | AA102: 13 | AB102: 13 | AC102: 13
A103: 2015/16 Q3 | B103: =VLOOKUP(J103,'Control Panel'!$O$3:$S$47,5,FALSE) -> NW1 | J103: Y00212 | L103: 4935 | M103: 14 | N103: 14 | O103: 14 | P103: 13 | Q103: 11 | R103: 13 | S103: 8 | T103: 8 | U103: 8 | V103: 8 | W103: 8 | X103: 12 | Y103: 11 | Z103: 11 | AA103: 7 | AB103: 9 | AC103: 10
A104: 2015/16 Q3 | B104: =VLOOKUP(J104,'Control Panel'!$O$3:$S$47,5,FALSE) ->  | J104: F841229B1F | L104: 8500 | M104: 52 | N104: 50 | O104: 50 | P104: 50 | Q104: 43 | R104: 48 | S104: 57 | T104: 53 | U104: 51 | V104: 51 | W104: 52 | X104: 45 | Y104: 43 | Z104: 41 | AA104: 35 | AB104: 40 | AC104: 37
A105: 2015/16 Q3 | B105: =VLOOKUP(J105,'Control Panel'!$O$3:$S$47,5,FALSE) -> NW1 | J105: F84051 | L105: 3858 | M105: 8 | N105: 8 | O105: 8 | P105: 8 | Q105: 8 | R105: 8 | S105: 11 | T105: 10 | U105: 10 | V105: 10 | W105: 10 | X105: 11 | Y105: 9 | Z105: 9 | AA105: 6 | AB105: 9 | AC105: 10
A106: 2015/16 Q3 | B106: =VLOOKUP(J106,'Control Panel'!$O$3:$S$47,5,FALSE) -> NW7 | J106: F84698 | L106: 6412 | M106: 28 | N106: 25 | O106: 23 | P106: 24 | Q106: 23 | R106: 25 | S106: 23 | T106: 23 | U106: 21 | V106: 21 | W106: 21 | X106: 37 | Y106: 37 | Z106: 34 | AA106: 35 | AB106: 35 | AC106: 35
A107: 2015/16 Q3 | B107: =VLOOKUP(J107,'Control Panel'!$O$3:$S$47,5,FALSE) -> NW3&4 | J107: F84039 | L107: 8760 | M107: 31 | N107: 30 | O107: 29 | P107: 29 | Q107: 27 | R107: 29 | S107: 50 | T107: 49 | U107: 49 | V107: 49 | W107: 49 | X107: 32 | Y107: 32 | Z107: 30 | AA107: 29 | AB107: 30 | AC107: 32
A108: 2015/16 Q3 | B108: =VLOOKUP(J108,'Control Panel'!$O$3:$S$47,5,FALSE) ->  | J108: F84702 | L108: 6122 | M108: 26 | N108: 25 | O108: 26 | P108: 25 | Q108: 25 | R108: 25 | S108: 21 | T108: 20 | U108: 17 | V108: 19 | W108: 19 | X108: 27 | Y108: 26 | Z108: 24 | AA108: 23 | AB108: 24 | AC108: 22
A109: 2015/16 Q3 | B109: =VLOOKUP(J109,'Control Panel'!$O$3:$S$47,5,FALSE) -> NW6 | J109: F84714 | L109: 10651 | M109: 40 | N109: 38 | O109: 39 | P109: 38 | Q109: 35 | R109: 39 | S109: 32 | T109: 30 | U109: 31 | V109: 31 | W109: 29 | X109: 37 | Y109: 36 | Z109: 35 | AA109: 35 | AB109: 36 | AC109: 35
A110: 2015/16 Q3 | B110: =VLOOKUP(J110,'Control Panel'!$O$3:$S$47,5,FALSE) -> NW7 | J110: F84025 | L110: 4768 | M110: 23 | N110: 22 | O110: 22 | P110: 22 | Q110: 18 | R110: 19 | S110: 19 | T110: 19 | U110: 19 | V110: 18 | W110: 19 | X110: 25 | Y110: 25 | Z110: 20 | AA110: 20 | AB110: 19 | AC110: 23
A111: 2015/16 Q3 | B111: =VLOOKUP(J111,'Control Panel'!$O$3:$S$47,5,FALSE) -> NW3&4 | J111: F84114 | L111: 7587 | M111: 31 | N111: 31 | O111: 31 | P111: 31 | Q111: 14 | R111: 31 | S111: 21 | T111: 21 | U111: 20 | V111: 20 | W111: 21 | X111: 11 | Y111: 11 | Z111: 10 | AA111: 9 | AB111: 10 | AC111: 10
A112: 2015/16 Q3 | B112: =VLOOKUP(J112,'Control Panel'!$O$3:$S$47,5,FALSE) -> NW2 | J112: F84733 | L112: 1295 | M112: 0 | N112: 0 | O112: 0 | P112: 0 | Q112: 0 | R112: 0 | S112: 0 | T112: 0 | U112: 0 | V112: 0 | W112: 0 | X112: 0 | Y112: 0 | Z112: 0 | AA112: 0 | AB112: 0 | AC112: 0
A113: 2015/16 Q3 | B113: =VLOOKUP(J113,'Control Panel'!$O$3:$S$47,5,FALSE) -> NW8 | J113: F84747 | L113: 18976 | M113: 105 | N113: 99 | O113: 99 | P113: 99 | Q113: 92 | R113: 101 | S113: 90 | T113: 86 | U113: 86 | V113: 85 | W113: 87 | X113: 64 | Y113: 63 | Z113: 60 | AA113: 55 | AB113: 60 | AC113: 60
A114: 2015/16 Q3 | B114: =VLOOKUP(J114,'Control Panel'!$O$3:$S$47,5,FALSE) -> NW5 | J114: F84696 | L114: 4501 | M114: 10 | N114: 8 | O114: 8 | P114: 8 | Q114: 7 | R114: 8 | S114: 8 | T114: 8 | U114: 8 | V114: 7 | W114: 8 | X114: 18 | Y114: 18 | Z114: 15 | AA114: 17 | AB114: 15 | AC114: 17
A115: 2015/16 Q3 | B115: =VLOOKUP(J115,'Control Panel'!$O$3:$S$47,5,FALSE) -> NW2 | J115: F84012 | L115: 9004 | M115: 32 | N115: 30 | O115: 31 | P115: 30 | Q115: 27 | R115: 32 | S115: 43 | T115: 42 | U115: 41 | V115: 41 | W115: 41 | X115: 26 | Y115: 26 | Z115: 25 | AA115: 19 | AB115: 21 | AC115: 19
A116: 2015/16 Q3 | B116: =VLOOKUP(J116,'Control Panel'!$O$3:$S$47,5,FALSE) ->  | J116: F841229B1G | L116: 6501 | M116: 27 | N116: 26 | O116: 26 | P116: 26 | Q116: 23 | R116: 26 | S116: 26 | T116: 23 | U116: 22 | V116: 23 | W116: 23 | X116: 26 | Y116: 25 | Z116: 24 | AA116: 21 | AB116: 40 | AC116: 37
A117: 2015/16 Q3 | B117: =VLOOKUP(J117,'Control Panel'!$O$3:$S$47,5,FALSE) -> 0 | J117: Total | L117: 300575 | M117: 1153 | N117: 1092 | O117: 1101 | P117: 1089 | Q117: 985 | R117: 1082 | S117: 1073 | T117: 1039 | U117: 1007 | V117: 1002 | W117: 1012 | X117: 1042 | Y117: 997 | Z117: 962 | AA117: 887 | AB117: 967 | AC117: 947
A118: 2015/16 Q4 | B118: =VLOOKUP(J118,'Control Panel'!$O$3:$S$47,5,FALSE) ->  | E118: Parent Population | F118: Author | G118: Last Run | K118: Search | L118: All Patients | M118: (01) 12 MONTH COHORT | N118: (01.01) DTaP/IPV/Hib | O118: (01.02) Men B (1st and 2nd) | P118: (01.03) PCV | Q118: (01.04) Rotavirus | R118: (01.05) BCG | S118: (02) 24 MONTH COHORT | T118: (02.01) DTaP/IPV/Hib | U118: (02.02) MMR | V118: (02.03) HiB/Men C | W118: (02.04) PCV (Booster) | X118: (03) 5 YEAR COHORT | Y118: (03.01) DTaP/IPV/Hib | Z118: (03.02) MMR (Primary) | AA118: (03.03) DTaP/IPV (Booster) | AB118: (03.04) HiB/Men C | AC118: (03.05) MMR (Booster)
A119: 2015/16 Q4 | B119: =VLOOKUP(J119,'Control Panel'!$O$3:$S$47,5,FALSE) -> NW2 | E119: Currently registered patients | F119: DUNNE, Jack (Mr) | G119: 2016-04-04T11:35:00 | J119: F84081 | L119: 12738 | M119: 53 | N119: 51 | O119: 51 | P119: 51 | Q119: 50 | R119: 53 | S119: 37 | T119: 37 | U119: 36 | V119: 36 | W119: 34 | X119: 27 | Y119: 27 | Z119: 26 | AA119: 26 | AB119: 25 | AC119: 26
A120: 2015/16 Q4 | B120: =VLOOKUP(J120,'Control Panel'!$O$3:$S$47,5,FALSE) -> NW3&4 | J120: F84079 | L120: 9591 | M120: 33 | N120: 32 | O120: 32 | P120: 32 | Q120: 30 | R120: 32 | S120: 25 | T120: 23 | U120: 22 | V120: 22 | W120: 22 | X120: 33 | Y120: 31 | Z120: 31 | AA120: 24 | AB120: 31 | AC120: 31
A121: 2015/16 Q4 | B121: =VLOOKUP(J121,'Control Panel'!$O$3:$S$47,5,FALSE) -> NW3&4 | F121: Date Modified | G121: Relative Date | J121: F84087 | L121: 11109 | M121: 52 | N121: 49 | O121: 50 | P121: 49 | Q121: 43 | R121: 48 | S121: 39 | T121: 39 | U121: 36 | V121: 36 | W121: 36 | X121: 52 | Y121: 52 | Z121: 49 | AA121: 49 | AB121: 50 | AC121: 51
A122: 2015/16 Q4 | B122: =VLOOKUP(J122,'Control Panel'!$O$3:$S$47,5,FALSE) -> NW8 | F122: 2016-01-14 | G122: 2016-04-01 | J122: F84710 | L122: 11943 | M122: 30 | N122: 29 | O122: 29 | P122: 29 | Q122: 27 | R122: 30 | S122: 37 | T122: 35 | U122: 35 | V122: 32 | W122: 35 | X122: 23 | Y122: 22 | Z122: 22 | AA122: 14 | AB122: 21 | AC122: 21
A123: 2015/16 Q4 | B123: =VLOOKUP(J123,'Control Panel'!$O$3:$S$47,5,FALSE) -> NW1 | J123: F84083 | L123: 8321 | M123: 24 | N123: 24 | O123: 24 | P123: 24 | Q123: 24 | R123: 23 | S123: 27 | T123: 26 | U123: 24 | V123: 24 | W123: 25 | X123: 18 | Y123: 16 | Z123: 16 | AA123: 13 | AB123: 16 | AC123: 16
A124: 2015/16 Q4 | B124: =VLOOKUP(J124,'Control Panel'!$O$3:$S$47,5,FALSE) -> NW3&4 | J124: F84031 | L124: 11116 | M124: 41 | N124: 41 | O124: 41 | P124: 41 | Q124: 37 | R124: 41 | S124: 36 | T124: 36 | U124: 35 | V124: 35 | W124: 35 | X124: 36 | Y124: 34 | Z124: 33 | AA124: 34 | AB124: 33 | AC124: 34
A125: 2015/16 Q4 | B125: =VLOOKUP(J125,'Control Panel'!$O$3:$S$47,5,FALSE) -> NW5 | J125: F84044 | L125: 5883 | M125: 20 | N125: 19 | O125: 20 | P125: 20 | Q125: 17 | R125: 20 | S125: 20 | T125: 20 | U125: 20 | V125: 20 | W125: 20 | X125: 13 | Y125: 13 | Z125: 13 | AA125: 11 | AB125: 13 | AC125: 13
A126: 2015/16 Q4 | B126: =VLOOKUP(J126,'Control Panel'!$O$3:$S$47,5,FALSE) -> NW7 | J126: F84054 | L126: 10913 | M126: 43 | N126: 40 | O126: 41 | P126: 40 | Q126: 38 | R126: 41 | S126: 47 | T126: 46 | U126: 45 | V126: 45 | W126: 45 | X126: 27 | Y126: 26 | Z126: 26 | AA126: 26 | AB126: 26 | AC126: 26
A127: 2015/16 Q4 | B127: =VLOOKUP(J127,'Control Panel'!$O$3:$S$47,5,FALSE) -> NW7 | J127: F84062 | L127: 14036 | M127: 67 | N127: 62 | O127: 62 | P127: 62 | Q127: 54 | R127: 61 | S127: 63 | T127: 58 | U127: 55 | V127: 56 | W127: 56 | X127: 60 | Y127: 58 | Z127: 58 | AA127: 52 | AB127: 57 | AC127: 55
A128: 2015/16 Q4 | B128: =VLOOKUP(J128,'Control Panel'!$O$3:$S$47,5,FALSE) -> NW5 | J128: F84034 | L128: 12909 | M128: 49 | N128: 49 | O128: 49 | P128: 49 | Q128: 46 | R128: 49 | S128: 44 | T128: 43 | U128: 41 | V128: 42 | W128: 42 | X128: 42 | Y128: 42 | Z128: 39 | AA128: 39 | AB128: 39 | AC128: 39
A129: 2015/16 Q4 | B129: =VLOOKUP(J129,'Control Panel'!$O$3:$S$47,5,FALSE) -> NW1 | J129: F84016 | L129: 11383 | M129: 44 | N129: 41 | O129: 42 | P129: 41 | Q129: 36 | R129: 39 | S129: 32 | T129: 30 | U129: 29 | V129: 30 | W129: 30 | X129: 41 | Y129: 40 | Z129: 38 | AA129: 35 | AB129: 39 | AC129: 36
A130: 2015/16 Q4 | B130: =VLOOKUP(J130,'Control Panel'!$O$3:$S$47,5,FALSE) -> NW3&4 | J130: F84731 | L130: 1885 | M130: 4 | N130: 4 | O130: 4 | P130: 4 | Q130: 4 | R130: 4 | S130: 3 | T130: 3 | U130: 3 | V130: 3 | W130: 3 | X130: 0 | Y130: 0 | Z130: 0 | AA130: 0 | AB130: 0 | AC130: 0
A131: 2015/16 Q4 | B131: =VLOOKUP(J131,'Control Panel'!$O$3:$S$47,5,FALSE) -> NW6 | J131: F84676 | L131: 4438 | M131: 24 | N131: 22 | O131: 23 | P131: 22 | Q131: 23 | R131: 22 | S131: 24 | T131: 24 | U131: 23 | V131: 23 | W131: 23 | X131: 15 | Y131: 15 | Z131: 15 | AA131: 13 | AB131: 15 | AC131: 13
A132: 2015/16 Q4 | B132: =VLOOKUP(J132,'Control Panel'!$O$3:$S$47,5,FALSE) -> NW8 | J132: F84656 | L132: 7714 | M132: 26 | N132: 26 | O132: 26 | P132: 26 | Q132: 25 | R132: 26 | S132: 19 | T132: 19 | U132: 19 | V132: 19 | W132: 19 | X132: 19 | Y132: 18 | Z132: 17 | AA132: 17 | AB132: 16 | AC132: 18
A133: 2015/16 Q4 | B133: =VLOOKUP(J133,'Control Panel'!$O$3:$S$47,5,FALSE) -> NW8 | J133: F84647 | L133: 6407 | M133: 19 | N133: 18 | O133: 18 | P133: 19 | Q133: 15 | R133: 15 | S133: 19 | T133: 19 | U133: 19 | V133: 18 | W133: 19 | X133: 11 | Y133: 11 | Z133: 11 | AA133: 11 | AB133: 11 | AC133: 11
A134: 2015/16 Q4 | B134: =VLOOKUP(J134,'Control Panel'!$O$3:$S$47,5,FALSE) -> NW3&4 | J134: F84682 | L134: 10531 | M134: 49 | N134: 42 | O134: 44 | P134: 42 | Q134: 38 | R134: 43 | S134: 33 | T134: 31 | U134: 30 | V134: 31 | W134: 31 | X134: 33 | Y134: 32 | Z134: 33 | AA134: 25 | AB134: 31 | AC134: 27
A135: 2015/16 Q4 | B135: =VLOOKUP(J135,'Control Panel'!$O$3:$S$47,5,FALSE) -> NW5 | J135: F84030 | L135: 2915 | M135: 8 | N135: 8 | O135: 8 | P135: 8 | Q135: 7 | R135: 8 | S135: 11 | T135: 11 | U135: 11 | V135: 11 | W135: 11 | X135: 12 | Y135: 11 | Z135: 12 | AA135: 10 | AB135: 11 | AC135: 10
A136: 2015/16 Q4 | B136: =VLOOKUP(J136,'Control Panel'!$O$3:$S$47,5,FALSE) -> NW6 | J136: Y03023 | L136: 10211 | M136: 37 | N136: 37 | O136: 37 | P136: 36 | Q136: 32 | R136: 37 | S136: 52 | T136: 51 | U136: 43 | V136: 44 | W136: 44 | X136: 49 | Y136: 48 | Z136: 46 | AA136: 42 | AB136: 45 | AC136: 42
A137: 2015/16 Q4 | B137: =VLOOKUP(J137,'Control Panel'!$O$3:$S$47,5,FALSE) -> NW6 | J137: F84118 | L137: 5234 | M137: 16 | N137: 16 | O137: 16 | P137: 16 | Q137: 16 | R137: 16 | S137: 15 | T137: 14 | U137: 14 | V137: 14 | W137: 14 | X137: 15 | Y137: 14 | Z137: 13 | AA137: 13 | AB137: 14 | AC137: 13
A138: 2015/16 Q4 | B138: =VLOOKUP(J138,'Control Panel'!$O$3:$S$47,5,FALSE) -> NW1 | J138: F84123 | L138: 12248 | M138: 24 | N138: 22 | O138: 24 | P138: 22 | Q138: 22 | R138: 20 | S138: 34 | T138: 32 | U138: 32 | V138: 33 | W138: 33 | X138: 33 | Y138: 32 | Z138: 30 | AA138: 26 | AB138: 28 | AC138: 30
A139: 2015/16 Q4 | B139: =VLOOKUP(J139,'Control Panel'!$O$3:$S$47,5,FALSE) -> NW5 | J139: F84055 | L139: 3604 | M139: 7 | N139: 7 | O139: 6 | P139: 6 | Q139: 5 | R139: 7 | S139: 7 | T139: 7 | U139: 7 | V139: 7 | W139: 7 | X139: 6 | Y139: 6 | Z139: 6 | AA139: 6 | AB139: 6 | AC139: 6
A140: 2015/16 Q4 | B140: =VLOOKUP(J140,'Control Panel'!$O$3:$S$47,5,FALSE) -> NW2 | J140: F84718 | L140: 11400 | M140: 28 | N140: 24 | O140: 26 | P140: 24 | Q140: 26 | R140: 26 | S140: 23 | T140: 22 | U140: 22 | V140: 22 | W140: 22 | X140: 22 | Y140: 22 | Z140: 21 | AA140: 22 | AB140: 20 | AC140: 22
A141: 2015/16 Q4 | B141: =VLOOKUP(J141,'Control Panel'!$O$3:$S$47,5,FALSE) -> NW3&4 | J141: F84046 | L141: 3382 | M141: 12 | N141: 12 | O141: 12 | P141: 12 | Q141: 12 | R141: 12 | S141: 14 | T141: 14 | U141: 14 | V141: 14 | W141: 14 | X141: 9 | Y141: 9 | Z141: 9 | AA141: 7 | AB141: 9 | AC141: 9
A142: 2015/16 Q4 | B142: =VLOOKUP(J142,'Control Panel'!$O$3:$S$47,5,FALSE) -> NW1 | J142: Y00212 | L142: 4988 | M142: 7 | N142: 6 | O142: 7 | P142: 6 | Q142: 7 | R142: 7 | S142: 9 | T142: 9 | U142: 9 | V142: 9 | W142: 9 | X142: 12 | Y142: 11 | Z142: 11 | AA142: 10 | AB142: 9 | AC142: 11
A143: 2015/16 Q4 | B143: =VLOOKUP(J143,'Control Panel'!$O$3:$S$47,5,FALSE) ->  | J143: F841229B1F | L143: 8625 | M143: 58 | N143: 57 | O143: 57 | P143: 55 | Q143: 47 | R143: 55 | S143: 60 | T143: 57 | U143: 52 | V143: 53 | W143: 53 | X143: 34 | Y143: 34 | Z143: 34 | AA143: 31 | AB143: 34 | AC143: 30
A144: 2015/16 Q4 | B144: =VLOOKUP(J144,'Control Panel'!$O$3:$S$47,5,FALSE) -> NW1 | J144: F84051 | L144: 3827 | M144: 5 | N144: 5 | O144: 5 | P144: 5 | Q144: 5 | R144: 5 | S144: 6 | T144: 6 | U144: 6 | V144: 6 | W144: 6 | X144: 1 | Y144: 1 | Z144: 1 | AA144: 1 | AB144: 1 | AC144: 1
A145: 2015/16 Q4 | B145: =VLOOKUP(J145,'Control Panel'!$O$3:$S$47,5,FALSE) -> NW7 | J145: F84698 | L145: 6548 | M145: 31 | N145: 30 | O145: 30 | P145: 30 | Q145: 29 | R145: 30 | S145: 20 | T145: 19 | U145: 18 | V145: 18 | W145: 18 | X145: 20 | Y145: 19 | Z145: 17 | AA145: 14 | AB145: 18 | AC145: 17
A146: 2015/16 Q4 | B146: =VLOOKUP(J146,'Control Panel'!$O$3:$S$47,5,FALSE) -> NW3&4 | J146: F84039 | L146: 9039 | M146: 27 | N146: 27 | O146: 27 | P146: 27 | Q146: 27 | R146: 26 | S146: 33 | T146: 32 | U146: 31 | V146: 31 | W146: 30 | X146: 28 | Y146: 27 | Z146: 28 | AA146: 26 | AB146: 28 | AC146: 28
A147: 2015/16 Q4 | B147: =VLOOKUP(J147,'Control Panel'!$O$3:$S$47,5,FALSE) ->  | J147: F84702 | L147: 6244 | M147: 20 | N147: 20 | O147: 20 | P147: 20 | Q147: 17 | R147: 19 | S147: 26 | T147: 25 | U147: 23 | V147: 23 | W147: 23 | X147: 22 | Y147: 20 | Z147: 21 | AA147: 21 | AB147: 20 | AC147: 20
A148: 2015/16 Q4 | B148: =VLOOKUP(J148,'Control Panel'!$O$3:$S$47,5,FALSE) -> NW6 | J148: F84714 | L148: 10751 | M148: 40 | N148: 37 | O148: 39 | P148: 37 | Q148: 33 | R148: 39 | S148: 42 | T148: 42 | U148: 41 | V148: 41 | W148: 41 | X148: 39 | Y148: 37 | Z148: 36 | AA148: 37 | AB148: 34 | AC148: 38
A149: 2015/16 Q4 | B149: =VLOOKUP(J149,'Control Panel'!$O$3:$S$47,5,FALSE) -> NW7 | J149: F84025 | L149: 4851 | M149: 22 | N149: 21 | O149: 22 | P149: 21 | Q149: 17 | R149: 22 | S149: 26 | T149: 24 | U149: 23 | V149: 24 | W149: 24 | X149: 24 | Y149: 24 | Z149: 23 | AA149: 21 | AB149: 24 | AC149: 24
A150: 2015/16 Q4 | B150: =VLOOKUP(J150,'Control Panel'!$O$3:$S$47,5,FALSE) -> NW3&4 | J150: F84114 | L150: 7545 | M150: 23 | N150: 22 | O150: 23 | P150: 22 | Q150: 12 | R150: 23 | S150: 25 | T150: 25 | U150: 23 | V150: 22 | W150: 22 | X150: 17 | Y150: 17 | Z150: 17 | AA150: 16 | AB150: 16 | AC150: 17
A151: 2015/16 Q4 | B151: =VLOOKUP(J151,'Control Panel'!$O$3:$S$47,5,FALSE) -> NW2 | J151: F84733 | L151: 1244 | M151: 0 | N151: 0 | O151: 0 | P151: 0 | Q151: 0 | R151: 0 | S151: 0 | T151: 0 | U151: 0 | V151: 0 | W151: 0 | X151: 0 | Y151: 0 | Z151: 0 | AA151: 0 | AB151: 0 | AC151: 0
A152: 2015/16 Q4 | B152: =VLOOKUP(J152,'Control Panel'!$O$3:$S$47,5,FALSE) -> NW8 | J152: F84747 | L152: 18871 | M152: 79 | N152: 77 | O152: 76 | P152: 77 | Q152: 69 | R152: 75 | S152: 80 | T152: 77 | U152: 76 | V152: 76 | W152: 74 | X152: 69 | Y152: 67 | Z152: 66 | AA152: 64 | AB152: 61 | AC152: 66
A153: 2015/16 Q4 | B153: =VLOOKUP(J153,'Control Panel'!$O$3:$S$47,5,FALSE) -> NW5 | J153: F84696 | L153: 4656 | M153: 16 | N153: 15 | O153: 15 | P153: 15 | Q153: 14 | R153: 15 | S153: 16 | T153: 16 | U153: 16 | V153: 16 | W153: 16 | X153: 14 | Y153: 14 | Z153: 14 | AA153: 11 | AB153: 14 | AC153: 13
A154: 2015/16 Q4 | B154: =VLOOKUP(J154,'Control Panel'!$O$3:$S$47,5,FALSE) -> NW2 | J154: F84012 | L154: 9018 | M154: 31 | N154: 31 | O154: 31 | P154: 31 | Q154: 30 | R154: 29 | S154: 40 | T154: 40 | U154: 39 | V154: 39 | W154: 39 | X154: 29 | Y154: 29 | Z154: 29 | AA154: 28 | AB154: 29 | AC154: 28
A155: 2015/16 Q4 | B155: =VLOOKUP(J155,'Control Panel'!$O$3:$S$47,5,FALSE) ->  | J155: F841229B1G | L155: 6495 | M155: 27 | N155: 27 | O155: 27 | P155: 27 | Q155: 23 | R155: 25 | S155: 27 | T155: 25 | U155: 22 | V155: 23 | W155: 23 | X155: 14 | Y155: 14 | Z155: 14 | AA155: 13 | AB155: 34 | AC155: 30
A156: 2015/16 Q4 | B156: =VLOOKUP(J156,'Control Panel'!$O$3:$S$47,5,FALSE) -> 0 | J156: Total | L156: 302613 | M156: 1096 | N156: 1050 | O156: 1064 | P156: 1048 | Q156: 957 | R156: 1043 | S156: 1071 | T156: 1037 | U156: 994 | V156: 998 | W156: 998 | X156: 919 | Y156: 893 | Z156: 875 | AA156: 808 | AB156: 878 | AC156: 872
A157: 2016/17 Q1 | B157: =VLOOKUP(J157,'Control Panel'!$O$3:$S$47,5,FALSE) ->  | E157: Parent Population | F157: Author | G157: Last Run | K157: Search | L157: All Patients | M157: (01) 12 MONTH COHORT | N157: (01.01) DTaP/IPV/Hib | O157: (01.02) Men B (1st and 2nd) | P157: (01.03) PCV | Q157: (01.04) Rotavirus | R157: (01.05) BCG | S157: (02) 24 MONTH COHORT | T157: (02.01) DTaP/IPV/Hib | U157: (02.02) MMR | V157: (02.03) HiB/Men C | W157: (02.04) PCV (Booster) | X157: (03) 5 YEAR COHORT | Y157: (03.01) DTaP/IPV/Hib | Z157: (03.02) MMR (Primary) | AA157: (03.03) DTaP/IPV (Booster) | AB157: (03.04) HiB/Men C | AC157: (03.05) MMR (Booster)
A158: 2016/17 Q1 | B158: =VLOOKUP(J158,'Control Panel'!$O$3:$S$47,5,FALSE) -> NW2 | E158: Currently registered patients | F158: AHMED, Fatima (Miss) | G158: 2016-07-04T11:35:00 | J158: F84081 | L158: 13052 | M158: 35 | N158: 31 | O158: 31 | P158: 31 | Q158: 29 | R158: 30 | S158: 30 | T158: 28 | U158: 25 | V158: 26 | W158: 25 | X158: 33 | Y158: 33 | Z158: 33 | AA158: 30 | AB158: 30 | AC158: 33
A159: 2016/17 Q1 | B159: =VLOOKUP(J159,'Control Panel'!$O$3:$S$47,5,FALSE) -> NW3&4 | J159: F84079 | L159: 9655 | M159: 35 | N159: 34 | O159: 34 | P159: 34 | Q159: 33 | R159: 34 | S159: 33 | T159: 33 | U159: 32 | V159: 33 | W159: 31 | X159: 18 | Y159: 18 | Z159: 16 | AA159: 15 | AB159: 17 | AC159: 16
A160: 2016/17 Q1 | B160: =VLOOKUP(J160,'Control Panel'!$O$3:$S$47,5,FALSE) -> NW3&4 | F160: Date Modified | G160: Relative Date | J160: F84087 | L160: 10272 | M160: 39 | N160: 37 | O160: 37 | P160: 37 | Q160: 36 | R160: 34 | S160: 43 | T160: 42 | U160: 41 | V160: 41 | W160: 41 | X160: 42 | Y160: 40 | Z160: 42 | AA160: 37 | AB160: 41 | AC160: 39
A161: 2016/17 Q1 | B161: =VLOOKUP(J161,'Control Panel'!$O$3:$S$47,5,FALSE) -> NW8 | F161: 2016-05-09 | G161: 2016-07-01 | J161: F84710 | L161: 12044 | M161: 38 | N161: 35 | O161: 35 | P161: 35 | Q161: 33 | R161: 34 | S161: 32 | T161: 29 | U161: 29 | V161: 29 | W161: 29 | X161: 29 | Y161: 29 | Z161: 26 | AA161: 24 | AB161: 28 | AC161: 26
A162: 2016/17 Q1 | B162: =VLOOKUP(J162,'Control Panel'!$O$3:$S$47,5,FALSE) -> NW1 | J162: F84083 | L162: 8316 | M162: 38 | N162: 32 | O162: 36 | P162: 32 | Q162: 35 | R162: 34 | S162: 19 | T162: 17 | U162: 17 | V162: 17 | W162: 16 | X162: 20 | Y162: 20 | Z162: 20 | AA162: 18 | AB162: 19 | AC162: 17
A163: 2016/17 Q1 | B163: =VLOOKUP(J163,'Control Panel'!$O$3:$S$47,5,FALSE) -> NW3&4 | J163: F84031 | L163: 11260 | M163: 34 | N163: 34 | O163: 34 | P163: 34 | Q163: 34 | R163: 33 | S163: 36 | T163: 36 | U163: 35 | V163: 36 | W163: 36 | X163: 45 | Y163: 42 | Z163: 39 | AA163: 40 | AB163: 37 | AC163: 42
A164: 2016/17 Q1 | B164: =VLOOKUP(J164,'Control Panel'!$O$3:$S$47,5,FALSE) -> NW5 | J164: F84044 | L164: 5947 | M164: 22 | N164: 19 | O164: 20 | P164: 19 | Q164: 16 | R164: 21 | S164: 20 | T164: 20 | U164: 19 | V164: 20 | W164: 20 | X164: 14 | Y164: 14 | Z164: 14 | AA164: 10 | AB164: 14 | AC164: 13
A165: 2016/17 Q1 | B165: =VLOOKUP(J165,'Control Panel'!$O$3:$S$47,5,FALSE) -> NW7 | J165: F84054 | L165: 10971 | M165: 40 | N165: 38 | O165: 39 | P165: 38 | Q165: 36 | R165: 39 | S165: 54 | T165: 54 | U165: 54 | V165: 53 | W165: 53 | X165: 29 | Y165: 28 | Z165: 27 | AA165: 27 | AB165: 28 | AC165: 27
A166: 2016/17 Q1 | B166: =VLOOKUP(J166,'Control Panel'!$O$3:$S$47,5,FALSE) -> NW7 | J166: F84062 | L166: 14087 | M166: 65 | N166: 60 | O166: 61 | P166: 60 | Q166: 57 | R166: 59 | S166: 48 | T166: 43 | U166: 42 | V166: 41 | W166: 41 | X166: 47 | Y166: 46 | Z166: 44 | AA166: 41 | AB166: 42 | AC166: 42
A167: 2016/17 Q1 | B167: =VLOOKUP(J167,'Control Panel'!$O$3:$S$47,5,FALSE) -> NW5 | J167: F84034 | L167: 12924 | M167: 58 | N167: 58 | O167: 58 | P167: 58 | Q167: 56 | R167: 57 | S167: 51 | T167: 51 | U167: 47 | V167: 47 | W167: 48 | X167: 32 | Y167: 30 | Z167: 30 | AA167: 23 | AB167: 28 | AC167: 29
A168: 2016/17 Q1 | B168: =VLOOKUP(J168,'Control Panel'!$O$3:$S$47,5,FALSE) -> NW1 | J168: F84016 | L168: 11449 | M168: 24 | N168: 23 | O168: 23 | P168: 23 | Q168: 20 | R168: 21 | S168: 23 | T168: 20 | U168: 17 | V168: 18 | W168: 19 | X168: 30 | Y168: 29 | Z168: 29 | AA168: 26 | AB168: 29 | AC168: 28
A169: 2016/17 Q1 | B169: =VLOOKUP(J169,'Control Panel'!$O$3:$S$47,5,FALSE) -> NW3&4 | J169: F84731 | L169: 1936 | M169: 2 | N169: 2 | O169: 2 | P169: 2 | Q169: 2 | R169: 2 | S169: 3 | T169: 3 | U169: 3 | V169: 3 | W169: 3 | X169: 2 | Y169: 2 | Z169: 2 | AA169: 2 | AB169: 2 | AC169: 2
A170: 2016/17 Q1 | B170: =VLOOKUP(J170,'Control Panel'!$O$3:$S$47,5,FALSE) -> NW6 | J170: F84676 | L170: 4409 | M170: 16 | N170: 15 | O170: 15 | P170: 15 | Q170: 11 | R170: 14 | S170: 12 | T170: 12 | U170: 12 | V170: 12 | W170: 12 | X170: 9 | Y170: 9 | Z170: 9 | AA170: 9 | AB170: 9 | AC170: 9
A171: 2016/17 Q1 | B171: =VLOOKUP(J171,'Control Panel'!$O$3:$S$47,5,FALSE) -> NW8 | J171: F84656 | L171: 7698 | M171: 27 | N171: 25 | O171: 25 | P171: 25 | Q171: 22 | R171: 24 | S171: 26 | T171: 25 | U171: 25 | V171: 25 | W171: 25 | X171: 19 | Y171: 18 | Z171: 18 | AA171: 16 | AB171: 13 | AC171: 17
A172: 2016/17 Q1 | B172: =VLOOKUP(J172,'Control Panel'!$O$3:$S$47,5,FALSE) -> NW8 | J172: F84647 | L172: 6567 | M172: 28 | N172: 28 | O172: 26 | P172: 28 | Q172: 25 | R172: 26 | S172: 19 | T172: 19 | U172: 19 | V172: 19 | W172: 19 | X172: 21 | Y172: 19 | Z172: 20 | AA172: 19 | AB172: 19 | AC172: 19
A173: 2016/17 Q1 | B173: =VLOOKUP(J173,'Control Panel'!$O$3:$S$47,5,FALSE) -> NW3&4 | J173: F84682 | L173: 10639 | M173: 30 | N173: 29 | O173: 28 | P173: 29 | Q173: 28 | R173: 26 | S173: 54 | T173: 52 | U173: 47 | V173: 46 | W173: 46 | X173: 32 | Y173: 31 | Z173: 32 | AA173: 29 | AB173: 32 | AC173: 30
A174: 2016/17 Q1 | B174: =VLOOKUP(J174,'Control Panel'!$O$3:$S$47,5,FALSE) -> NW5 | J174: F84030 | L174: 2926 | M174: 5 | N174: 5 | O174: 5 | P174: 5 | Q174: 3 | R174: 5 | S174: 3 | T174: 3 | U174: 3 | V174: 3 | W174: 3 | X174: 4 | Y174: 4 | Z174: 4 | AA174: 3 | AB174: 4 | AC174: 4
A175: 2016/17 Q1 | B175: =VLOOKUP(J175,'Control Panel'!$O$3:$S$47,5,FALSE) -> NW6 | J175: Y03023 | L175: 10561 | M175: 40 | N175: 38 | O175: 38 | P175: 38 | Q175: 35 | R175: 38 | S175: 35 | T175: 33 | U175: 32 | V175: 33 | W175: 33 | X175: 37 | Y175: 34 | Z175: 35 | AA175: 26 | AB175: 32 | AC175: 29
A176: 2016/17 Q1 | B176: =VLOOKUP(J176,'Control Panel'!$O$3:$S$47,5,FALSE) -> NW6 | J176: F84118 | L176: 5219 | M176: 17 | N176: 17 | O176: 17 | P176: 17 | Q176: 12 | R176: 16 | S176: 9 | T176: 9 | U176: 9 | V176: 8 | W176: 9 | X176: 8 | Y176: 8 | Z176: 8 | AA176: 8 | AB176: 7 | AC176: 8
A177: 2016/17 Q1 | B177: =VLOOKUP(J177,'Control Panel'!$O$3:$S$47,5,FALSE) -> NW1 | J177: F84123 | L177: 11762 | M177: 22 | N177: 21 | O177: 21 | P177: 21 | Q177: 19 | R177: 22 | S177: 25 | T177: 24 | U177: 24 | V177: 24 | W177: 24 | X177: 29 | Y177: 28 | Z177: 28 | AA177: 24 | AB177: 28 | AC177: 26
A178: 2016/17 Q1 | B178: =VLOOKUP(J178,'Control Panel'!$O$3:$S$47,5,FALSE) -> NW5 | J178: F84055 | L178: 3644 | M178: 10 | N178: 10 | O178: 10 | P178: 10 | Q178: 10 | R178: 10 | S178: 9 | T178: 8 | U178: 7 | V178: 7 | W178: 7 | X178: 4 | Y178: 4 | Z178: 4 | AA178: 3 | AB178: 4 | AC178: 4
A179: 2016/17 Q1 | B179: =VLOOKUP(J179,'Control Panel'!$O$3:$S$47,5,FALSE) -> NW2 | J179: F84718 | L179: 11649 | M179: 33 | N179: 31 | O179: 31 | P179: 31 | Q179: 27 | R179: 32 | S179: 33 | T179: 33 | U179: 31 | V179: 32 | W179: 31 | X179: 30 | Y179: 27 | Z179: 30 | AA179: 28 | AB179: 28 | AC179: 29
A180: 2016/17 Q1 | B180: =VLOOKUP(J180,'Control Panel'!$O$3:$S$47,5,FALSE) -> NW3&4 | J180: F84046 | L180: 3416 | M180: 11 | N180: 11 | O180: 11 | P180: 11 | Q180: 10 | R180: 11 | S180: 6 | T180: 6 | U180: 6 | V180: 6 | W180: 6 | X180: 10 | Y180: 10 | Z180: 10 | AA180: 7 | AB180: 10 | AC180: 10
A181: 2016/17 Q1 | B181: =VLOOKUP(J181,'Control Panel'!$O$3:$S$47,5,FALSE) -> NW1 | J181: Y00212 | L181: 4954 | M181: 13 | N181: 11 | O181: 11 | P181: 10 | Q181: 11 | R181: 11 | S181: 11 | T181: 10 | U181: 11 | V181: 10 | W181: 11 | X181: 13 | Y181: 12 | Z181: 13 | AA181: 11 | AB181: 13 | AC181: 13
A182: 2016/17 Q1 | B182: =VLOOKUP(J182,'Control Panel'!$O$3:$S$47,5,FALSE) ->  | J182: F841229B1F | L182: 8656 | M182: 55 | N182: 52 | O182: 54 | P182: 52 | Q182: 50 | R182: 54 | S182: 51 | T182: 50 | U182: 51 | V182: 51 | W182: 51 | X182: 62 | Y182: 60 | Z182: 58 | AA182: 58 | AB182: 56 | AC182: 58
A183: 2016/17 Q1 | B183: =VLOOKUP(J183,'Control Panel'!$O$3:$S$47,5,FALSE) -> NW1 | J183: F84051 | L183: 3863 | M183: 6 | N183: 6 | O183: 6 | P183: 6 | Q183: 5 | R183: 6 | S183: 9 | T183: 9 | U183: 9 | V183: 9 | W183: 9 | X183: 6 | Y183: 6 | Z183: 6 | AA183: 4 | AB183: 6 | AC183: 6
A184: 2016/17 Q1 | B184: =VLOOKUP(J184,'Control Panel'!$O$3:$S$47,5,FALSE) -> NW7 | J184: F84698 | L184: 6653 | M184: 31 | N184: 31 | O184: 31 | P184: 31 | Q184: 28 | R184: 31 | S184: 23 | T184: 23 | U184: 23 | V184: 23 | W184: 23 | X184: 25 | Y184: 25 | Z184: 23 | AA184: 25 | AB184: 24 | AC184: 25
A185: 2016/17 Q1 | B185: =VLOOKUP(J185,'Control Panel'!$O$3:$S$47,5,FALSE) -> NW3&4 | J185: F84039 | L185: 9356 | M185: 43 | N185: 41 | O185: 41 | P185: 41 | Q185: 37 | R185: 41 | S185: 32 | T185: 31 | U185: 30 | V185: 29 | W185: 29 | X185: 30 | Y185: 29 | Z185: 29 | AA185: 25 | AB185: 29 | AC185: 28
A186: 2016/17 Q1 | B186: =VLOOKUP(J186,'Control Panel'!$O$3:$S$47,5,FALSE) ->  | J186: F84702 | L186: 6337 | M186: 19 | N186: 19 | O186: 19 | P186: 19 | Q186: 18 | R186: 17 | S186: 35 | T186: 32 | U186: 31 | V186: 31 | W186: 32 | X186: 33 | Y186: 30 | Z186: 29 | AA186: 27 | AB186: 30 | AC186: 28
A187: 2016/17 Q1 | B187: =VLOOKUP(J187,'Control Panel'!$O$3:$S$47,5,FALSE) -> NW6 | J187: F84714 | L187: 11028 | M187: 41 | N187: 38 | O187: 37 | P187: 36 | Q187: 31 | R187: 35 | S187: 42 | T187: 41 | U187: 39 | V187: 40 | W187: 40 | X187: 39 | Y187: 37 | Z187: 35 | AA187: 35 | AB187: 36 | AC187: 35
A188: 2016/17 Q1 | B188: =VLOOKUP(J188,'Control Panel'!$O$3:$S$47,5,FALSE) -> NW7 | J188: F84025 | L188: 4909 | M188: 19 | N188: 17 | O188: 17 | P188: 18 | Q188: 17 | R188: 17 | S188: 22 | T188: 22 | U188: 21 | V188: 22 | W188: 22 | X188: 18 | Y188: 18 | Z188: 16 | AA188: 15 | AB188: 15 | AC188: 15
A189: 2016/17 Q1 | B189: =VLOOKUP(J189,'Control Panel'!$O$3:$S$47,5,FALSE) -> NW3&4 | J189: F84114 | L189: 7301 | M189: 25 | N189: 18 | O189: 22 | P189: 18 | Q189: 10 | R189: 21 | S189: 16 | T189: 15 | U189: 15 | V189: 15 | W189: 15 | X189: 26 | Y189: 26 | Z189: 25 | AA189: 21 | AB189: 23 | AC189: 24
A190: 2016/17 Q1 | B190: =VLOOKUP(J190,'Control Panel'!$O$3:$S$47,5,FALSE) -> NW2 | J190: F84733 | L190: 1236 | M190: 0 | N190: 0 | O190: 0 | P190: 0 | Q190: 0 | R190: 0 | S190: 0 | T190: 0 | U190: 0 | V190: 0 | W190: 0 | X190: 0 | Y190: 0 | Z190: 0 | AA190: 0 | AB190: 0 | AC190: 0
A191: 2016/17 Q1 | B191: =VLOOKUP(J191,'Control Panel'!$O$3:$S$47,5,FALSE) -> NW8 | J191: F84747 | L191: 19231 | M191: 80 | N191: 73 | O191: 71 | P191: 73 | Q191: 70 | R191: 69 | S191: 91 | T191: 85 | U191: 83 | V191: 84 | W191: 84 | X191: 68 | Y191: 65 | Z191: 61 | AA191: 52 | AB191: 56 | AC191: 51
A192: 2016/17 Q1 | B192: =VLOOKUP(J192,'Control Panel'!$O$3:$S$47,5,FALSE) -> NW5 | J192: F84696 | L192: 4793 | M192: 26 | N192: 24 | O192: 24 | P192: 24 | Q192: 24 | R192: 24 | S192: 14 | T192: 14 | U192: 14 | V192: 14 | W192: 14 | X192: 5 | Y192: 5 | Z192: 5 | AA192: 5 | AB192: 5 | AC192: 5
A193: 2016/17 Q1 | B193: =VLOOKUP(J193,'Control Panel'!$O$3:$S$47,5,FALSE) -> NW2 | J193: F84012 | L193: 9022 | M193: 36 | N193: 35 | O193: 35 | P193: 35 | Q193: 30 | R193: 33 | S193: 32 | T193: 29 | U193: 26 | V193: 27 | W193: 27 | X193: 18 | Y193: 18 | Z193: 18 | AA193: 15 | AB193: 17 | AC193: 18
A194: 2016/17 Q1 | B194: =VLOOKUP(J194,'Control Panel'!$O$3:$S$47,5,FALSE) ->  | J194: F841229B1G | L194: 6477 | M194: 24 | N194: 24 | O194: 24 | P194: 24 | Q194: 23 | R194: 24 | S194: 26 | T194: 26 | U194: 26 | V194: 26 | W194: 26 | X194: 25 | Y194: 24 | Z194: 24 | AA194: 24 | AB194: 56 | AC194: 58
A195: 2016/17 Q1 | B195: =VLOOKUP(J195,'Control Panel'!$O$3:$S$47,5,FALSE) -> 0 | J195: Total | L195: 304219 | M195: 1087 | N195: 1022 | O195: 1029 | P195: 1020 | Q195: 943 | R195: 1005 | S195: 1027 | T195: 987 | U195: 955 | V195: 960 | W195: 960 | X195: 912 | Y195: 878 | Z195: 862 | AA195: 782 | AB195: 867 | AC195: 863
A196: 2016/17 Q2 | B196: =VLOOKUP(J196,'Control Panel'!$O$3:$S$47,5,FALSE) ->  | C196: Childhood Immunisations Q2 | E196: Last Run: | G196: Patient Count | H196: 323907 | K196: Search | L196: All Patients | M196: (01) 12 MONTH COHORT | N196: (01.01) DTaP/IPV/Hib | O196: (01.02) Men B (1st and 2nd) | P196: (01.03) PCV | Q196: (01.04) Rotavirus | R196: (01.05) BCG | S196: (02) 24 MONTH COHORT | T196: (02.01) DTaP/IPV/Hib | U196: (02.02) MMR | V196: (02.03) HiB/Men C | W196: (02.04) PCV (Booster) | X196: (03) 5 YEAR COHORT | Y196: (03.01) DTaP/IPV/Hib | Z196: (03.02) MMR (Primary) | AA196: (03.03) DTaP/IPV (Booster) | AB196: (03.04) HiB/Men C | AC196: (03.05) MMR (Booster)
A197: 2016/17 Q2 | B197: =VLOOKUP(J197,'Control Panel'!$O$3:$S$47,5,FALSE) ->  | E197: 2016-10-26T15:02:00 | G197: Males | H197: 166139 | J197: Organisation Code
A198: 2016/17 Q2 | B198: =VLOOKUP(J198,'Control Panel'!$O$3:$S$47,5,FALSE) -> NW2 | E198: Relative Date: | G198: Females | H198: 157768 | J198: F84012 | L198: 9064 | M198: 25 | N198: 25 | O198: 25 | P198: 24 | Q198: 24 | R198: 25 | S198: 33 | T198: 33 | U198: 33 | V198: 33 | W198: 33 | X198: 27 | Y198: 27 | Z198: 27 | AA198: 26 | AB198: 27 | AC198: 27
A199: 2016/17 Q2 | B199: =VLOOKUP(J199,'Control Panel'!$O$3:$S$47,5,FALSE) -> NW1 | E199: 2016-10-01 | J199: F84016 | L199: 11613 | M199: 30 | N199: 29 | O199: 28 | P199: 29 | Q199: 26 | R199: 27 | S199: 23 | T199: 23 | U199: 22 | V199: 21 | W199: 22 | X199: 46 | Y199: 46 | Z199: 45 | AA199: 44 | AB199: 45 | AC199: 43
A200: 2016/17 Q2 | B200: =VLOOKUP(J200,'Control Panel'!$O$3:$S$47,5,FALSE) -> NW7 | J200: F84025 | L200: 4965 | M200: 19 | N200: 18 | O200: 18 | P200: 19 | Q200: 12 | R200: 13 | S200: 18 | T200: 17 | U200: 16 | V200: 16 | W200: 16 | X200: 25 | Y200: 25 | Z200: 23 | AA200: 24 | AB200: 22 | AC200: 24
... 2088 more rows
